Workbook

Sheet TBL_OLD
A1: idx | B1: key | C1: ofst | E1: kind | P1: SDK_HEAD
A2: =ROW()-2 -> 0 | B2: A_CK前半 | C2: 19 | D2: =HSH_VKIND(E2)+C2 -> 3019 | E2: SDK_AWAY_TEAM | F2: ="ary("&A2&").key = """ &B2&""" : " -> ary(0).key = "A_CK前半" : | G2: ="ary("&A2&").kind = " &E2&" : " -> ary(0).kind = SDK_AWAY_TEAM : | H2: ="ary("&A2&").disp = " &(HSH_VKIND(E2)+C2)&" : " -> ary(0).disp = 3019 : | I2: ="ary("&A2&").v = """"" -> ary(0).v = "" | J2: =F2&G2&H2&I2 -> ary(0).key = "A_CK前半" : ary(0).kind = SDK_AWAY_TEAM : ary(0).disp = 3019 : ary(0).v = "" | P2: SDK_GAME
A3: 1 | B3: A_CK延長前半 | C3: 21 | D3: =HSH_VKIND(E3)+C3 -> 3021 | E3: SDK_AWAY_TEAM | F3: ary(1).key = "A_CK延長前半" : | G3: ary(1).kind = SDK_AWAY_TEAM : | H3: ary(1).disp = 3021 : | I3: ary(1).v = "" | J3: ary(1).key = "A_CK延長前半" : ary(1).kind = SDK_AWAY_TEAM : ary(1).disp = 3021 : ary(1).v = "" | P3: SDK_AWAY_TEAM
A4: 2 | B4: A_CK延長後半 | C4: 22 | D4: 3022 | E4: SDK_AWAY_TEAM | F4: ary(2).key = "A_CK延長後半" : | G4: ary(2).kind = SDK_AWAY_TEAM : | H4: ary(2).disp = 3022 : | I4: ary(2).v = "" | J4: ary(2).key = "A_CK延長後半" : ary(2).kind = SDK_AWAY_TEAM : ary(2).disp = 3022 : ary(2).v = "" | P4: SDK_AWAY_PLAYER
A5: 3 | B5: A_CK後半 | C5: 20 | D5: 3020 | E5: SDK_AWAY_TEAM | F5: ary(3).key = "A_CK後半" : | G5: ary(3).kind = SDK_AWAY_TEAM : | H5: ary(3).disp = 3020 : | I5: ary(3).v = "" | J5: ary(3).key = "A_CK後半" : ary(3).kind = SDK_AWAY_TEAM : ary(3).disp = 3020 : ary(3).v = "" | P5: SDK_AWAY_PLAYER_SUB
A6: 4 | B6: A_CK計 | C6: 18 | D6: 3018 | E6: SDK_AWAY_TEAM | F6: ary(4).key = "A_CK計" : | G6: ary(4).kind = SDK_AWAY_TEAM : | H6: ary(4).disp = 3018 : | I6: ary(4).v = "" | J6: ary(4).key = "A_CK計" : ary(4).kind = SDK_AWAY_TEAM : ary(4).disp = 3018 : ary(4).v = "" | P6: SDK_AWAY_CARD
A7: 5 | B7: A_GK前半 | C7: 14 | D7: 3014 | E7: SDK_AWAY_TEAM | F7: ary(5).key = "A_GK前半" : | G7: ary(5).kind = SDK_AWAY_TEAM : | H7: ary(5).disp = 3014 : | I7: ary(5).v = "" | J7: ary(5).key = "A_GK前半" : ary(5).kind = SDK_AWAY_TEAM : ary(5).disp = 3014 : ary(5).v = "" | P7: SDK_HOME_TEAM
A8: 6 | B8: A_GK延長前半 | C8: 16 | D8: 3016 | E8: SDK_AWAY_TEAM | F8: ary(6).key = "A_GK延長前半" : | G8: ary(6).kind = SDK_AWAY_TEAM : | H8: ary(6).disp = 3016 : | I8: ary(6).v = "" | J8: ary(6).key = "A_GK延長前半" : ary(6).kind = SDK_AWAY_TEAM : ary(6).disp = 3016 : ary(6).v = "" | P8: SDK_HOME_PLAYER
A9: 7 | B9: A_GK延長後半 | C9: 17 | D9: 3017 | E9: SDK_AWAY_TEAM | F9: ary(7).key = "A_GK延長後半" : | G9: ary(7).kind = SDK_AWAY_TEAM : | H9: ary(7).disp = 3017 : | I9: ary(7).v = "" | J9: ary(7).key = "A_GK延長後半" : ary(7).kind = SDK_AWAY_TEAM : ary(7).disp = 3017 : ary(7).v = "" | P9: SDK_HOME_PLAYER_SUB
A10: 8 | B10: A_GK後半 | C10: 15 | D10: 3015 | E10: SDK_AWAY_TEAM | F10: ary(8).key = "A_GK後半" : | G10: ary(8).kind = SDK_AWAY_TEAM : | H10: ary(8).disp = 3015 : | I10: ary(8).v = "" | J10: ary(8).key = "A_GK後半" : ary(8).kind = SDK_AWAY_TEAM : ary(8).disp = 3015 : ary(8).v = "" | P10: SDK_HOME_CARD
A11: 9 | B11: A_GK計 | C11: 13 | D11: 3013 | E11: SDK_AWAY_TEAM | F11: ary(9).key = "A_GK計" : | G11: ary(9).kind = SDK_AWAY_TEAM : | H11: ary(9).disp = 3013 : | I11: ary(9).v = "" | J11: ary(9).key = "A_GK計" : ary(9).kind = SDK_AWAY_TEAM : ary(9).disp = 3013 : ary(9).v = "" | P11: SDK_POINT
A12: 10 | B12: A_PK前半 | C12: 34 | D12: 3034 | E12: SDK_AWAY_TEAM | F12: ary(10).key = "A_PK前半" : | G12: ary(10).kind = SDK_AWAY_TEAM : | H12: ary(10).disp = 3034 : | I12: ary(10).v = "" | J12: ary(10).key = "A_PK前半" : ary(10).kind = SDK_AWAY_TEAM : ary(10).disp = 3034 : ary(10).v = "" | P12: SDK_PK
A13: 11 | B13: A_PK延長前半 | C13: 36 | D13: 3036 | E13: SDK_AWAY_TEAM | F13: ary(11).key = "A_PK延長前半" : | G13: ary(11).kind = SDK_AWAY_TEAM : | H13: ary(11).disp = 3036 : | I13: ary(11).v = "" | J13: ary(11).key = "A_PK延長前半" : ary(11).kind = SDK_AWAY_TEAM : ary(11).disp = 3036 : ary(11).v = "" | P13: SDK_MEMO
A14: 12 | B14: A_PK延長後半 | C14: 37 | D14: 3037 | E14: SDK_AWAY_TEAM | F14: ary(12).key = "A_PK延長後半" : | G14: ary(12).kind = SDK_AWAY_TEAM : | H14: ary(12).disp = 3037 : | I14: ary(12).v = "" | J14: ary(12).key = "A_PK延長後半" : ary(12).kind = SDK_AWAY_TEAM : ary(12).disp = 3037 : ary(12).v = ""
A15: 13 | B15: A_PK後半 | C15: 35 | D15: 3035 | E15: SDK_AWAY_TEAM | F15: ary(13).key = "A_PK後半" : | G15: ary(13).kind = SDK_AWAY_TEAM : | H15: ary(13).disp = 3035 : | I15: ary(13).v = "" | J15: ary(13).key = "A_PK後半" : ary(13).kind = SDK_AWAY_TEAM : ary(13).disp = 3035 : ary(13).v = ""
A16: 14 | B16: A_PK計 | C16: 33 | D16: 3033 | E16: SDK_AWAY_TEAM | F16: ary(14).key = "A_PK計" : | G16: ary(14).kind = SDK_AWAY_TEAM : | H16: ary(14).disp = 3033 : | I16: ary(14).v = "" | J16: ary(14).key = "A_PK計" : ary(14).kind = SDK_AWAY_TEAM : ary(14).disp = 3033 : ary(14).v = ""
A17: 15 | B17: A_シュート前半 | C17: 9 | D17: 3009 | E17: SDK_AWAY_TEAM | F17: ary(15).key = "A_シュート前半" : | G17: ary(15).kind = SDK_AWAY_TEAM : | H17: ary(15).disp = 3009 : | I17: ary(15).v = "" | J17: ary(15).key = "A_シュート前半" : ary(15).kind = SDK_AWAY_TEAM : ary(15).disp = 3009 : ary(15).v = ""
A18: 16 | B18: A_シュート延長前半 | C18: 11 | D18: 3011 | E18: SDK_AWAY_TEAM | F18: ary(16).key = "A_シュート延長前半" : | G18: ary(16).kind = SDK_AWAY_TEAM : | H18: ary(16).disp = 3011 : | I18: ary(16).v = "" | J18: ary(16).key = "A_シュート延長前半" : ary(16).kind = SDK_AWAY_TEAM : ary(16).disp = 3011 : ary(16).v = ""
A19: 17 | B19: A_シュート延長後半 | C19: 12 | D19: 3012 | E19: SDK_AWAY_TEAM | F19: ary(17).key = "A_シュート延長後半" : | G19: ary(17).kind = SDK_AWAY_TEAM : | H19: ary(17).disp = 3012 : | I19: ary(17).v = "" | J19: ary(17).key = "A_シュート延長後半" : ary(17).kind = SDK_AWAY_TEAM : ary(17).disp = 3012 : ary(17).v = ""
A20: 18 | B20: A_シュート後半 | C20: 10 | D20: 3010 | E20: SDK_AWAY_TEAM | F20: ary(18).key = "A_シュート後半" : | G20: ary(18).kind = SDK_AWAY_TEAM : | H20: ary(18).disp = 3010 : | I20: ary(18).v = "" | J20: ary(18).key = "A_シュート後半" : ary(18).kind = SDK_AWAY_TEAM : ary(18).disp = 3010 : ary(18).v = ""
A21: 19 | B21: A_シュート計 | C21: 8 | D21: 3008 | E21: SDK_AWAY_TEAM | F21: ary(19).key = "A_シュート計" : | G21: ary(19).kind = SDK_AWAY_TEAM : | H21: ary(19).disp = 3008 : | I21: ary(19).v = "" | J21: ary(19).key = "A_シュート計" : ary(19).kind = SDK_AWAY_TEAM : ary(19).disp = 3008 : ary(19).v = ""
A22: 20 | B22: A_対象者0 | C22: 0 | D22: 6000 | E22: SDK_AWAY_CARD | F22: ary(20).key = "A_対象者0" : | G22: ary(20).kind = SDK_AWAY_CARD : | H22: ary(20).disp = 6000 : | I22: ary(20).v = "" | J22: ary(20).key = "A_対象者0" : ary(20).kind = SDK_AWAY_CARD : ary(20).disp = 6000 : ary(20).v = ""
A23: 21 | B23: A_対象者1 | C23: 5 | D23: 6005 | E23: SDK_AWAY_CARD | F23: ary(21).key = "A_対象者1" : | G23: ary(21).kind = SDK_AWAY_CARD : | H23: ary(21).disp = 6005 : | I23: ary(21).v = "" | J23: ary(21).key = "A_対象者1" : ary(21).kind = SDK_AWAY_CARD : ary(21).disp = 6005 : ary(21).v = ""
A24: 22 | B24: A_対象者2 | C24: 10 | D24: 6010 | E24: SDK_AWAY_CARD | F24: ary(22).key = "A_対象者2" : | G24: ary(22).kind = SDK_AWAY_CARD : | H24: ary(22).disp = 6010 : | I24: ary(22).v = "" | J24: ary(22).key = "A_対象者2" : ary(22).kind = SDK_AWAY_CARD : ary(22).disp = 6010 : ary(22).v = ""
A25: 23 | B25: A_対象者3 | C25: 15 | D25: 6015 | E25: SDK_AWAY_CARD | F25: ary(23).key = "A_対象者3" : | G25: ary(23).kind = SDK_AWAY_CARD : | H25: ary(23).disp = 6015 : | I25: ary(23).v = "" | J25: ary(23).key = "A_対象者3" : ary(23).kind = SDK_AWAY_CARD : ary(23).disp = 6015 : ary(23).v = ""
A26: 24 | B26: A_対象者4 | C26: 20 | D26: 6020 | E26: SDK_AWAY_CARD | F26: ary(24).key = "A_対象者4" : | G26: ary(24).kind = SDK_AWAY_CARD : | H26: ary(24).disp = 6020 : | I26: ary(24).v = "" | J26: ary(24).key = "A_対象者4" : ary(24).kind = SDK_AWAY_CARD : ary(24).disp = 6020 : ary(24).v = ""
A27: 25 | B27: A_対象者5 | C27: 25 | D27: 6025 | E27: SDK_AWAY_CARD | F27: ary(25).key = "A_対象者5" : | G27: ary(25).kind = SDK_AWAY_CARD : | H27: ary(25).disp = 6025 : | I27: ary(25).v = "" | J27: ary(25).key = "A_対象者5" : ary(25).kind = SDK_AWAY_CARD : ary(25).disp = 6025 : ary(25).v = ""
A28: 26 | B28: A_対象者6 | C28: 30 | D28: 6030 | E28: SDK_AWAY_CARD | F28: ary(26).key = "A_対象者6" : | G28: ary(26).kind = SDK_AWAY_CARD : | H28: ary(26).disp = 6030 : | I28: ary(26).v = "" | J28: ary(26).key = "A_対象者6" : ary(26).kind = SDK_AWAY_CARD : ary(26).disp = 6030 : ary(26).v = ""
A29: 27 | B29: A_対象者7 | C29: 35 | D29: 6035 | E29: SDK_AWAY_CARD | F29: ary(27).key = "A_対象者7" : | G29: ary(27).kind = SDK_AWAY_CARD : | H29: ary(27).disp = 6035 : | I29: ary(27).v = "" | J29: ary(27).key = "A_対象者7" : ary(27).kind = SDK_AWAY_CARD : ary(27).disp = 6035 : ary(27).v = ""
A30: 28 | B30: A_対象者の背番号0 | C30: 1 | D30: 6001 | E30: SDK_AWAY_CARD | F30: ary(28).key = "A_対象者の背番号0" : | G30: ary(28).kind = SDK_AWAY_CARD : | H30: ary(28).disp = 6001 : | I30: ary(28).v = "" | J30: ary(28).key = "A_対象者の背番号0" : ary(28).kind = SDK_AWAY_CARD : ary(28).disp = 6001 : ary(28).v = ""
A31: 29 | B31: A_対象者の背番号1 | C31: 6 | D31: 6006 | E31: SDK_AWAY_CARD | F31: ary(29).key = "A_対象者の背番号1" : | G31: ary(29).kind = SDK_AWAY_CARD : | H31: ary(29).disp = 6006 : | I31: ary(29).v = "" | J31: ary(29).key = "A_対象者の背番号1" : ary(29).kind = SDK_AWAY_CARD : ary(29).disp = 6006 : ary(29).v = ""
A32: 30 | B32: A_対象者の背番号2 | C32: 11 | D32: 6011 | E32: SDK_AWAY_CARD | F32: ary(30).key = "A_対象者の背番号2" : | G32: ary(30).kind = SDK_AWAY_CARD : | H32: ary(30).disp = 6011 : | I32: ary(30).v = "" | J32: ary(30).key = "A_対象者の背番号2" : ary(30).kind = SDK_AWAY_CARD : ary(30).disp = 6011 : ary(30).v = ""
A33: 31 | B33: A_対象者の背番号3 | C33: 16 | D33: 6016 | E33: SDK_AWAY_CARD | F33: ary(31).key = "A_対象者の背番号3" : | G33: ary(31).kind = SDK_AWAY_CARD : | H33: ary(31).disp = 6016 : | I33: ary(31).v = "" | J33: ary(31).key = "A_対象者の背番号3" : ary(31).kind = SDK_AWAY_CARD : ary(31).disp = 6016 : ary(31).v = ""
A34: 32 | B34: A_対象者の背番号4 | C34: 21 | D34: 6021 | E34: SDK_AWAY_CARD | F34: ary(32).key = "A_対象者の背番号4" : | G34: ary(32).kind = SDK_AWAY_CARD : | H34: ary(32).disp = 6021 : | I34: ary(32).v = "" | J34: ary(32).key = "A_対象者の背番号4" : ary(32).kind = SDK_AWAY_CARD : ary(32).disp = 6021 : ary(32).v = ""
A35: 33 | B35: A_対象者の背番号5 | C35: 26 | D35: 6026 | E35: SDK_AWAY_CARD | F35: ary(33).key = "A_対象者の背番号5" : | G35: ary(33).kind = SDK_AWAY_CARD : | H35: ary(33).disp = 6026 : | I35: ary(33).v = "" | J35: ary(33).key = "A_対象者の背番号5" : ary(33).kind = SDK_AWAY_CARD : ary(33).disp = 6026 : ary(33).v = ""
A36: 34 | B36: A_対象者の背番号6 | C36: 31 | D36: 6031 | E36: SDK_AWAY_CARD | F36: ary(34).key = "A_対象者の背番号6" : | G36: ary(34).kind = SDK_AWAY_CARD : | H36: ary(34).disp = 6031 : | I36: ary(34).v = "" | J36: ary(34).key = "A_対象者の背番号6" : ary(34).kind = SDK_AWAY_CARD : ary(34).disp = 6031 : ary(34).v = ""
A37: 35 | B37: A_対象者の背番号7 | C37: 36 | D37: 6036 | E37: SDK_AWAY_CARD | F37: ary(35).key = "A_対象者の背番号7" : | G37: ary(35).kind = SDK_AWAY_CARD : | H37: ary(35).disp = 6036 : | I37: ary(35).v = "" | J37: ary(35).key = "A_対象者の背番号7" : ary(35).kind = SDK_AWAY_CARD : ary(35).disp = 6036 : ary(35).v = ""
A38: 36 | B38: A_直接FK前半 | C38: 24 | D38: 3024 | E38: SDK_AWAY_TEAM | F38: ary(36).key = "A_直接FK前半" : | G38: ary(36).kind = SDK_AWAY_TEAM : | H38: ary(36).disp = 3024 : | I38: ary(36).v = "" | J38: ary(36).key = "A_直接FK前半" : ary(36).kind = SDK_AWAY_TEAM : ary(36).disp = 3024 : ary(36).v = ""
A39: 37 | B39: A_直接FK延長前半 | C39: 26 | D39: 3026 | E39: SDK_AWAY_TEAM | F39: ary(37).key = "A_直接FK延長前半" : | G39: ary(37).kind = SDK_AWAY_TEAM : | H39: ary(37).disp = 3026 : | I39: ary(37).v = "" | J39: ary(37).key = "A_直接FK延長前半" : ary(37).kind = SDK_AWAY_TEAM : ary(37).disp = 3026 : ary(37).v = ""
A40: 38 | B40: A_直接FK延長後半 | C40: 27 | D40: 3027 | E40: SDK_AWAY_TEAM | F40: ary(38).key = "A_直接FK延長後半" : | G40: ary(38).kind = SDK_AWAY_TEAM : | H40: ary(38).disp = 3027 : | I40: ary(38).v = "" | J40: ary(38).key = "A_直接FK延長後半" : ary(38).kind = SDK_AWAY_TEAM : ary(38).disp = 3027 : ary(38).v = ""
A41: 39 | B41: A_直接FK後半 | C41: 25 | D41: 3025 | E41: SDK_AWAY_TEAM | F41: ary(39).key = "A_直接FK後半" : | G41: ary(39).kind = SDK_AWAY_TEAM : | H41: ary(39).disp = 3025 : | I41: ary(39).v = "" | J41: ary(39).key = "A_直接FK後半" : ary(39).kind = SDK_AWAY_TEAM : ary(39).disp = 3025 : ary(39).v = ""
A42: 40 | B42: A_直接FK計 | C42: 23 | D42: 3023 | E42: SDK_AWAY_TEAM | F42: ary(40).key = "A_直接FK計" : | G42: ary(40).kind = SDK_AWAY_TEAM : | H42: ary(40).disp = 3023 : | I42: ary(40).v = "" | J42: ary(40).key = "A_直接FK計" : ary(40).kind = SDK_AWAY_TEAM : ary(40).disp = 3023 : ary(40).v = ""
A43: 41 | B43: A_警告_退場0 | C43: 2 | D43: 6002 | E43: SDK_AWAY_CARD | F43: ary(41).key = "A_警告_退場0" : | G43: ary(41).kind = SDK_AWAY_CARD : | H43: ary(41).disp = 6002 : | I43: ary(41).v = "" | J43: ary(41).key = "A_警告_退場0" : ary(41).kind = SDK_AWAY_CARD : ary(41).disp = 6002 : ary(41).v = ""
A44: 42 | B44: A_警告_退場1 | C44: 7 | D44: 6007 | E44: SDK_AWAY_CARD | F44: ary(42).key = "A_警告_退場1" : | G44: ary(42).kind = SDK_AWAY_CARD : | H44: ary(42).disp = 6007 : | I44: ary(42).v = "" | J44: ary(42).key = "A_警告_退場1" : ary(42).kind = SDK_AWAY_CARD : ary(42).disp = 6007 : ary(42).v = ""
A45: 43 | B45: A_警告_退場2 | C45: 12 | D45: 6012 | E45: SDK_AWAY_CARD | F45: ary(43).key = "A_警告_退場2" : | G45: ary(43).kind = SDK_AWAY_CARD : | H45: ary(43).disp = 6012 : | I45: ary(43).v = "" | J45: ary(43).key = "A_警告_退場2" : ary(43).kind = SDK_AWAY_CARD : ary(43).disp = 6012 : ary(43).v = ""
A46: 44 | B46: A_警告_退場3 | C46: 17 | D46: 6017 | E46: SDK_AWAY_CARD | F46: ary(44).key = "A_警告_退場3" : | G46: ary(44).kind = SDK_AWAY_CARD : | H46: ary(44).disp = 6017 : | I46: ary(44).v = "" | J46: ary(44).key = "A_警告_退場3" : ary(44).kind = SDK_AWAY_CARD : ary(44).disp = 6017 : ary(44).v = ""
A47: 45 | B47: A_警告_退場4 | C47: 22 | D47: 6022 | E47: SDK_AWAY_CARD | F47: ary(45).key = "A_警告_退場4" : | G47: ary(45).kind = SDK_AWAY_CARD : | H47: ary(45).disp = 6022 : | I47: ary(45).v = "" | J47: ary(45).key = "A_警告_退場4" : ary(45).kind = SDK_AWAY_CARD : ary(45).disp = 6022 : ary(45).v = ""
A48: 46 | B48: A_警告_退場5 | C48: 27 | D48: 6027 | E48: SDK_AWAY_CARD | F48: ary(46).key = "A_警告_退場5" : | G48: ary(46).kind = SDK_AWAY_CARD : | H48: ary(46).disp = 6027 : | I48: ary(46).v = "" | J48: ary(46).key = "A_警告_退場5" : ary(46).kind = SDK_AWAY_CARD : ary(46).disp = 6027 : ary(46).v = ""
A49: 47 | B49: A_警告_退場6 | C49: 32 | D49: 6032 | E49: SDK_AWAY_CARD | F49: ary(47).key = "A_警告_退場6" : | G49: ary(47).kind = SDK_AWAY_CARD : | H49: ary(47).disp = 6032 : | I49: ary(47).v = "" | J49: ary(47).key = "A_警告_退場6" : ary(47).kind = SDK_AWAY_CARD : ary(47).disp = 6032 : ary(47).v = ""
A50: 48 | B50: A_警告_退場7 | C50: 37 | D50: 6037 | E50: SDK_AWAY_CARD | F50: ary(48).key = "A_警告_退場7" : | G50: ary(48).kind = SDK_AWAY_CARD : | H50: ary(48).disp = 6037 : | I50: ary(48).v = "" | J50: ary(48).key = "A_警告_退場7" : ary(48).kind = SDK_AWAY_CARD : ary(48).disp = 6037 : ary(48).v = ""
A51: 49 | B51: A_警告時間0 | C51: 3 | D51: 6003 | E51: SDK_AWAY_CARD | F51: ary(49).key = "A_警告時間0" : | G51: ary(49).kind = SDK_AWAY_CARD : | H51: ary(49).disp = 6003 : | I51: ary(49).v = "" | J51: ary(49).key = "A_警告時間0" : ary(49).kind = SDK_AWAY_CARD : ary(49).disp = 6003 : ary(49).v = ""
A52: 50 | B52: A_警告時間1 | C52: 8 | D52: 6008 | E52: SDK_AWAY_CARD | F52: ary(50).key = "A_警告時間1" : | G52: ary(50).kind = SDK_AWAY_CARD : | H52: ary(50).disp = 6008 : | I52: ary(50).v = "" | J52: ary(50).key = "A_警告時間1" : ary(50).kind = SDK_AWAY_CARD : ary(50).disp = 6008 : ary(50).v = ""
A53: 51 | B53: A_警告時間2 | C53: 13 | D53: 6013 | E53: SDK_AWAY_CARD | F53: ary(51).key = "A_警告時間2" : | G53: ary(51).kind = SDK_AWAY_CARD : | H53: ary(51).disp = 6013 : | I53: ary(51).v = "" | J53: ary(51).key = "A_警告時間2" : ary(51).kind = SDK_AWAY_CARD : ary(51).disp = 6013 : ary(51).v = ""
A54: 52 | B54: A_警告時間3 | C54: 18 | D54: 6018 | E54: SDK_AWAY_CARD | F54: ary(52).key = "A_警告時間3" : | G54: ary(52).kind = SDK_AWAY_CARD : | H54: ary(52).disp = 6018 : | I54: ary(52).v = "" | J54: ary(52).key = "A_警告時間3" : ary(52).kind = SDK_AWAY_CARD : ary(52).disp = 6018 : ary(52).v = ""
A55: 53 | B55: A_警告時間4 | C55: 23 | D55: 6023 | E55: SDK_AWAY_CARD | F55: ary(53).key = "A_警告時間4" : | G55: ary(53).kind = SDK_AWAY_CARD : | H55: ary(53).disp = 6023 : | I55: ary(53).v = "" | J55: ary(53).key = "A_警告時間4" : ary(53).kind = SDK_AWAY_CARD : ary(53).disp = 6023 : ary(53).v = ""
A56: 54 | B56: A_警告時間5 | C56: 28 | D56: 6028 | E56: SDK_AWAY_CARD | F56: ary(54).key = "A_警告時間5" : | G56: ary(54).kind = SDK_AWAY_CARD : | H56: ary(54).disp = 6028 : | I56: ary(54).v = "" | J56: ary(54).key = "A_警告時間5" : ary(54).kind = SDK_AWAY_CARD : ary(54).disp = 6028 : ary(54).v = ""
A57: 55 | B57: A_警告時間6 | C57: 33 | D57: 6033 | E57: SDK_AWAY_CARD | F57: ary(55).key = "A_警告時間6" : | G57: ary(55).kind = SDK_AWAY_CARD : | H57: ary(55).disp = 6033 : | I57: ary(55).v = "" | J57: ary(55).key = "A_警告時間6" : ary(55).kind = SDK_AWAY_CARD : ary(55).disp = 6033 : ary(55).v = ""
A58: 56 | B58: A_警告時間7 | C58: 38 | D58: 6038 | E58: SDK_AWAY_CARD | F58: ary(56).key = "A_警告時間7" : | G58: ary(56).kind = SDK_AWAY_CARD : | H58: ary(56).disp = 6038 : | I58: ary(56).v = "" | J58: ary(56).key = "A_警告時間7" : ary(56).kind = SDK_AWAY_CARD : ary(56).disp = 6038 : ary(56).v = ""
A59: 57 | B59: A_警告理由0 | C59: 4 | D59: 6004 | E59: SDK_AWAY_CARD | F59: ary(57).key = "A_警告理由0" : | G59: ary(57).kind = SDK_AWAY_CARD : | H59: ary(57).disp = 6004 : | I59: ary(57).v = "" | J59: ary(57).key = "A_警告理由0" : ary(57).kind = SDK_AWAY_CARD : ary(57).disp = 6004 : ary(57).v = ""
A60: 58 | B60: A_警告理由1 | C60: 9 | D60: 6009 | E60: SDK_AWAY_CARD | F60: ary(58).key = "A_警告理由1" : | G60: ary(58).kind = SDK_AWAY_CARD : | H60: ary(58).disp = 6009 : | I60: ary(58).v = "" | J60: ary(58).key = "A_警告理由1" : ary(58).kind = SDK_AWAY_CARD : ary(58).disp = 6009 : ary(58).v = ""
A61: 59 | B61: A_警告理由2 | C61: 14 | D61: 6014 | E61: SDK_AWAY_CARD | F61: ary(59).key = "A_警告理由2" : | G61: ary(59).kind = SDK_AWAY_CARD : | H61: ary(59).disp = 6014 : | I61: ary(59).v = "" | J61: ary(59).key = "A_警告理由2" : ary(59).kind = SDK_AWAY_CARD : ary(59).disp = 6014 : ary(59).v = ""
A62: 60 | B62: A_警告理由3 | C62: 19 | D62: 6019 | E62: SDK_AWAY_CARD | F62: ary(60).key = "A_警告理由3" : | G62: ary(60).kind = SDK_AWAY_CARD : | H62: ary(60).disp = 6019 : | I62: ary(60).v = "" | J62: ary(60).key = "A_警告理由3" : ary(60).kind = SDK_AWAY_CARD : ary(60).disp = 6019 : ary(60).v = ""
A63: 61 | B63: A_警告理由4 | C63: 24 | D63: 6024 | E63: SDK_AWAY_CARD | F63: ary(61).key = "A_警告理由4" : | G63: ary(61).kind = SDK_AWAY_CARD : | H63: ary(61).disp = 6024 : | I63: ary(61).v = "" | J63: ary(61).key = "A_警告理由4" : ary(61).kind = SDK_AWAY_CARD : ary(61).disp = 6024 : ary(61).v = ""
A64: 62 | B64: A_警告理由5 | C64: 29 | D64: 6029 | E64: SDK_AWAY_CARD | F64: ary(62).key = "A_警告理由5" : | G64: ary(62).kind = SDK_AWAY_CARD : | H64: ary(62).disp = 6029 : | I64: ary(62).v = "" | J64: ary(62).key = "A_警告理由5" : ary(62).kind = SDK_AWAY_CARD : ary(62).disp = 6029 : ary(62).v = ""
A65: 63 | B65: A_警告理由6 | C65: 34 | D65: 6034 | E65: SDK_AWAY_CARD | F65: ary(63).key = "A_警告理由6" : | G65: ary(63).kind = SDK_AWAY_CARD : | H65: ary(63).disp = 6034 : | I65: ary(63).v = "" | J65: ary(63).key = "A_警告理由6" : ary(63).kind = SDK_AWAY_CARD : ary(63).disp = 6034 : ary(63).v = ""
A66: =ROW()-2 -> 64 | B66: A_警告理由7 | C66: 39 | D66: 6039 | E66: SDK_AWAY_CARD | F66: ="ary("&A66&").key = """ &B66&""" : " -> ary(64).key = "A_警告理由7" : | G66: ="ary("&A66&").kind = " &E66&" : " -> ary(64).kind = SDK_AWAY_CARD : | H66: ="ary("&A66&").disp = " &(HSH_VKIND(E66)+C66)&" : " -> ary(64).disp = 6039 : | I66: ="ary("&A66&").v = """"" -> ary(64).v = "" | J66: =F66&G66&H66&I66 -> ary(64).key = "A_警告理由7" : ary(64).kind = SDK_AWAY_CARD : ary(64).disp = 6039 : ary(64).v = ""
A67: 65 | B67: A_間接FK前半 | C67: 29 | D67: =HSH_VKIND(E67)+C67 -> 3029 | E67: SDK_AWAY_TEAM | F67: ary(65).key = "A_間接FK前半" : | G67: ary(65).kind = SDK_AWAY_TEAM : | H67: ary(65).disp = 3029 : | I67: ary(65).v = "" | J67: ary(65).key = "A_間接FK前半" : ary(65).kind = SDK_AWAY_TEAM : ary(65).disp = 3029 : ary(65).v = ""
A68: 66 | B68: A_間接FK延長前半 | C68: 31 | D68: 3031 | E68: SDK_AWAY_TEAM | F68: ary(66).key = "A_間接FK延長前半" : | G68: ary(66).kind = SDK_AWAY_TEAM : | H68: ary(66).disp = 3031 : | I68: ary(66).v = "" | J68: ary(66).key = "A_間接FK延長前半" : ary(66).kind = SDK_AWAY_TEAM : ary(66).disp = 3031 : ary(66).v = ""
A69: 67 | B69: A_間接FK延長後半 | C69: 32 | D69: 3032 | E69: SDK_AWAY_TEAM | F69: ary(67).key = "A_間接FK延長後半" : | G69: ary(67).kind = SDK_AWAY_TEAM : | H69: ary(67).disp = 3032 : | I69: ary(67).v = "" | J69: ary(67).key = "A_間接FK延長後半" : ary(67).kind = SDK_AWAY_TEAM : ary(67).disp = 3032 : ary(67).v = ""
A70: 68 | B70: A_間接FK後半 | C70: 30 | D70: 3030 | E70: SDK_AWAY_TEAM | F70: ary(68).key = "A_間接FK後半" : | G70: ary(68).kind = SDK_AWAY_TEAM : | H70: ary(68).disp = 3030 : | I70: ary(68).v = "" | J70: ary(68).key = "A_間接FK後半" : ary(68).kind = SDK_AWAY_TEAM : ary(68).disp = 3030 : ary(68).v = ""
A71: 69 | B71: A_間接FK計 | C71: 28 | D71: 3028 | E71: SDK_AWAY_TEAM | F71: ary(69).key = "A_間接FK計" : | G71: ary(69).kind = SDK_AWAY_TEAM : | H71: ary(69).disp = 3028 : | I71: ary(69).v = "" | J71: ary(69).key = "A_間接FK計" : ary(69).kind = SDK_AWAY_TEAM : ary(69).disp = 3028 : ary(69).v = ""
A72: 70 | B72: Aキックオフ情報 | C72: 1 | D72: 3001 | E72: SDK_AWAY_TEAM | F72: ary(70).key = "Aキックオフ情報" : | G72: ary(70).kind = SDK_AWAY_TEAM : | H72: ary(70).disp = 3001 : | I72: ary(70).v = "" | J72: ary(70).key = "Aキックオフ情報" : ary(70).kind = SDK_AWAY_TEAM : ary(70).disp = 3001 : ary(70).v = ""
A73: 71 | B73: Aチーム名 | C73: 0 | D73: 3000 | E73: SDK_AWAY_TEAM | F73: ary(71).key = "Aチーム名" : | G73: ary(71).kind = SDK_AWAY_TEAM : | H73: ary(71).disp = 3000 : | I73: ary(71).v = "" | J73: ary(71).key = "Aチーム名" : ary(71).kind = SDK_AWAY_TEAM : ary(71).disp = 3000 : ary(71).v = ""
A74: 72 | B74: A先_シュート前半0 | C74: 5 | D74: 4005 | E74: SDK_AWAY_PLAYER | F74: ary(72).key = "A先_シュート前半0" : | G74: ary(72).kind = SDK_AWAY_PLAYER : | H74: ary(72).disp = 4005 : | I74: ary(72).v = "" | J74: ary(72).key = "A先_シュート前半0" : ary(72).kind = SDK_AWAY_PLAYER : ary(72).disp = 4005 : ary(72).v = ""
A75: 73 | B75: A先_シュート前半1 | C75: 16 | D75: 4016 | E75: SDK_AWAY_PLAYER | F75: ary(73).key = "A先_シュート前半1" : | G75: ary(73).kind = SDK_AWAY_PLAYER : | H75: ary(73).disp = 4016 : | I75: ary(73).v = "" | J75: ary(73).key = "A先_シュート前半1" : ary(73).kind = SDK_AWAY_PLAYER : ary(73).disp = 4016 : ary(73).v = ""
A76: 74 | B76: A先_シュート前半10 | C76: 115 | D76: 4115 | E76: SDK_AWAY_PLAYER | F76: ary(74).key = "A先_シュート前半10" : | G76: ary(74).kind = SDK_AWAY_PLAYER : | H76: ary(74).disp = 4115 : | I76: ary(74).v = "" | J76: ary(74).key = "A先_シュート前半10" : ary(74).kind = SDK_AWAY_PLAYER : ary(74).disp = 4115 : ary(74).v = ""
A77: 75 | B77: A先_シュート前半2 | C77: 27 | D77: 4027 | E77: SDK_AWAY_PLAYER | F77: ary(75).key = "A先_シュート前半2" : | G77: ary(75).kind = SDK_AWAY_PLAYER : | H77: ary(75).disp = 4027 : | I77: ary(75).v = "" | J77: ary(75).key = "A先_シュート前半2" : ary(75).kind = SDK_AWAY_PLAYER : ary(75).disp = 4027 : ary(75).v = ""
A78: 76 | B78: A先_シュート前半3 | C78: 38 | D78: 4038 | E78: SDK_AWAY_PLAYER | F78: ary(76).key = "A先_シュート前半3" : | G78: ary(76).kind = SDK_AWAY_PLAYER : | H78: ary(76).disp = 4038 : | I78: ary(76).v = "" | J78: ary(76).key = "A先_シュート前半3" : ary(76).kind = SDK_AWAY_PLAYER : ary(76).disp = 4038 : ary(76).v = ""
A79: 77 | B79: A先_シュート前半4 | C79: 49 | D79: 4049 | E79: SDK_AWAY_PLAYER | F79: ary(77).key = "A先_シュート前半4" : | G79: ary(77).kind = SDK_AWAY_PLAYER : | H79: ary(77).disp = 4049 : | I79: ary(77).v = "" | J79: ary(77).key = "A先_シュート前半4" : ary(77).kind = SDK_AWAY_PLAYER : ary(77).disp = 4049 : ary(77).v = ""
A80: 78 | B80: A先_シュート前半5 | C80: 60 | D80: 4060 | E80: SDK_AWAY_PLAYER | F80: ary(78).key = "A先_シュート前半5" : | G80: ary(78).kind = SDK_AWAY_PLAYER : | H80: ary(78).disp = 4060 : | I80: ary(78).v = "" | J80: ary(78).key = "A先_シュート前半5" : ary(78).kind = SDK_AWAY_PLAYER : ary(78).disp = 4060 : ary(78).v = ""
A81: 79 | B81: A先_シュート前半6 | C81: 71 | D81: 4071 | E81: SDK_AWAY_PLAYER | F81: ary(79).key = "A先_シュート前半6" : | G81: ary(79).kind = SDK_AWAY_PLAYER : | H81: ary(79).disp = 4071 : | I81: ary(79).v = "" | J81: ary(79).key = "A先_シュート前半6" : ary(79).kind = SDK_AWAY_PLAYER : ary(79).disp = 4071 : ary(79).v = ""
A82: 80 | B82: A先_シュート前半7 | C82: 82 | D82: 4082 | E82: SDK_AWAY_PLAYER | F82: ary(80).key = "A先_シュート前半7" : | G82: ary(80).kind = SDK_AWAY_PLAYER : | H82: ary(80).disp = 4082 : | I82: ary(80).v = "" | J82: ary(80).key = "A先_シュート前半7" : ary(80).kind = SDK_AWAY_PLAYER : ary(80).disp = 4082 : ary(80).v = ""
A83: 81 | B83: A先_シュート前半8 | C83: 93 | D83: 4093 | E83: SDK_AWAY_PLAYER | F83: ary(81).key = "A先_シュート前半8" : | G83: ary(81).kind = SDK_AWAY_PLAYER : | H83: ary(81).disp = 4093 : | I83: ary(81).v = "" | J83: ary(81).key = "A先_シュート前半8" : ary(81).kind = SDK_AWAY_PLAYER : ary(81).disp = 4093 : ary(81).v = ""
A84: 82 | B84: A先_シュート前半9 | C84: 104 | D84: 4104 | E84: SDK_AWAY_PLAYER | F84: ary(82).key = "A先_シュート前半9" : | G84: ary(82).kind = SDK_AWAY_PLAYER : | H84: ary(82).disp = 4104 : | I84: ary(82).v = "" | J84: ary(82).key = "A先_シュート前半9" : ary(82).kind = SDK_AWAY_PLAYER : ary(82).disp = 4104 : ary(82).v = ""
A85: 83 | B85: A先_シュート延長前半0 | C85: 7 | D85: 4007 | E85: SDK_AWAY_PLAYER | F85: ary(83).key = "A先_シュート延長前半0" : | G85: ary(83).kind = SDK_AWAY_PLAYER : | H85: ary(83).disp = 4007 : | I85: ary(83).v = "" | J85: ary(83).key = "A先_シュート延長前半0" : ary(83).kind = SDK_AWAY_PLAYER : ary(83).disp = 4007 : ary(83).v = ""
A86: 84 | B86: A先_シュート延長前半1 | C86: 18 | D86: 4018 | E86: SDK_AWAY_PLAYER | F86: ary(84).key = "A先_シュート延長前半1" : | G86: ary(84).kind = SDK_AWAY_PLAYER : | H86: ary(84).disp = 4018 : | I86: ary(84).v = "" | J86: ary(84).key = "A先_シュート延長前半1" : ary(84).kind = SDK_AWAY_PLAYER : ary(84).disp = 4018 : ary(84).v = ""
A87: 85 | B87: A先_シュート延長前半10 | C87: 117 | D87: 4117 | E87: SDK_AWAY_PLAYER | F87: ary(85).key = "A先_シュート延長前半10" : | G87: ary(85).kind = SDK_AWAY_PLAYER : | H87: ary(85).disp = 4117 : | I87: ary(85).v = "" | J87: ary(85).key = "A先_シュート延長前半10" : ary(85).kind = SDK_AWAY_PLAYER : ary(85).disp = 4117 : ary(85).v = ""
A88: 86 | B88: A先_シュート延長前半2 | C88: 29 | D88: 4029 | E88: SDK_AWAY_PLAYER | F88: ary(86).key = "A先_シュート延長前半2" : | G88: ary(86).kind = SDK_AWAY_PLAYER : | H88: ary(86).disp = 4029 : | I88: ary(86).v = "" | J88: ary(86).key = "A先_シュート延長前半2" : ary(86).kind = SDK_AWAY_PLAYER : ary(86).disp = 4029 : ary(86).v = ""
A89: 87 | B89: A先_シュート延長前半3 | C89: 40 | D89: 4040 | E89: SDK_AWAY_PLAYER | F89: ary(87).key = "A先_シュート延長前半3" : | G89: ary(87).kind = SDK_AWAY_PLAYER : | H89: ary(87).disp = 4040 : | I89: ary(87).v = "" | J89: ary(87).key = "A先_シュート延長前半3" : ary(87).kind = SDK_AWAY_PLAYER : ary(87).disp = 4040 : ary(87).v = ""
A90: 88 | B90: A先_シュート延長前半4 | C90: 51 | D90: 4051 | E90: SDK_AWAY_PLAYER | F90: ary(88).key = "A先_シュート延長前半4" : | G90: ary(88).kind = SDK_AWAY_PLAYER : | H90: ary(88).disp = 4051 : | I90: ary(88).v = "" | J90: ary(88).key = "A先_シュート延長前半4" : ary(88).kind = SDK_AWAY_PLAYER : ary(88).disp = 4051 : ary(88).v = ""
A91: 89 | B91: A先_シュート延長前半5 | C91: 62 | D91: 4062 | E91: SDK_AWAY_PLAYER | F91: ary(89).key = "A先_シュート延長前半5" : | G91: ary(89).kind = SDK_AWAY_PLAYER : | H91: ary(89).disp = 4062 : | I91: ary(89).v = "" | J91: ary(89).key = "A先_シュート延長前半5" : ary(89).kind = SDK_AWAY_PLAYER : ary(89).disp = 4062 : ary(89).v = ""
A92: 90 | B92: A先_シュート延長前半6 | C92: 73 | D92: 4073 | E92: SDK_AWAY_PLAYER | F92: ary(90).key = "A先_シュート延長前半6" : | G92: ary(90).kind = SDK_AWAY_PLAYER : | H92: ary(90).disp = 4073 : | I92: ary(90).v = "" | J92: ary(90).key = "A先_シュート延長前半6" : ary(90).kind = SDK_AWAY_PLAYER : ary(90).disp = 4073 : ary(90).v = ""
A93: 91 | B93: A先_シュート延長前半7 | C93: 84 | D93: 4084 | E93: SDK_AWAY_PLAYER | F93: ary(91).key = "A先_シュート延長前半7" : | G93: ary(91).kind = SDK_AWAY_PLAYER : | H93: ary(91).disp = 4084 : | I93: ary(91).v = "" | J93: ary(91).key = "A先_シュート延長前半7" : ary(91).kind = SDK_AWAY_PLAYER : ary(91).disp = 4084 : ary(91).v = ""
A94: 92 | B94: A先_シュート延長前半8 | C94: 95 | D94: 4095 | E94: SDK_AWAY_PLAYER | F94: ary(92).key = "A先_シュート延長前半8" : | G94: ary(92).kind = SDK_AWAY_PLAYER : | H94: ary(92).disp = 4095 : | I94: ary(92).v = "" | J94: ary(92).key = "A先_シュート延長前半8" : ary(92).kind = SDK_AWAY_PLAYER : ary(92).disp = 4095 : ary(92).v = ""
A95: 93 | B95: A先_シュート延長前半9 | C95: 106 | D95: 4106 | E95: SDK_AWAY_PLAYER | F95: ary(93).key = "A先_シュート延長前半9" : | G95: ary(93).kind = SDK_AWAY_PLAYER : | H95: ary(93).disp = 4106 : | I95: ary(93).v = "" | J95: ary(93).key = "A先_シュート延長前半9" : ary(93).kind = SDK_AWAY_PLAYER : ary(93).disp = 4106 : ary(93).v = ""
A96: 94 | B96: A先_シュート延長後半0 | C96: 8 | D96: 4008 | E96: SDK_AWAY_PLAYER | F96: ary(94).key = "A先_シュート延長後半0" : | G96: ary(94).kind = SDK_AWAY_PLAYER : | H96: ary(94).disp = 4008 : | I96: ary(94).v = "" | J96: ary(94).key = "A先_シュート延長後半0" : ary(94).kind = SDK_AWAY_PLAYER : ary(94).disp = 4008 : ary(94).v = ""
A97: 95 | B97: A先_シュート延長後半1 | C97: 19 | D97: 4019 | E97: SDK_AWAY_PLAYER | F97: ary(95).key = "A先_シュート延長後半1" : | G97: ary(95).kind = SDK_AWAY_PLAYER : | H97: ary(95).disp = 4019 : | I97: ary(95).v = "" | J97: ary(95).key = "A先_シュート延長後半1" : ary(95).kind = SDK_AWAY_PLAYER : ary(95).disp = 4019 : ary(95).v = ""
A98: 96 | B98: A先_シュート延長後半10 | C98: 118 | D98: 4118 | E98: SDK_AWAY_PLAYER | F98: ary(96).key = "A先_シュート延長後半10" : | G98: ary(96).kind = SDK_AWAY_PLAYER : | H98: ary(96).disp = 4118 : | I98: ary(96).v = "" | J98: ary(96).key = "A先_シュート延長後半10" : ary(96).kind = SDK_AWAY_PLAYER : ary(96).disp = 4118 : ary(96).v = ""
A99: 97 | B99: A先_シュート延長後半2 | C99: 30 | D99: 4030 | E99: SDK_AWAY_PLAYER | F99: ary(97).key = "A先_シュート延長後半2" : | G99: ary(97).kind = SDK_AWAY_PLAYER : | H99: ary(97).disp = 4030 : | I99: ary(97).v = "" | J99: ary(97).key = "A先_シュート延長後半2" : ary(97).kind = SDK_AWAY_PLAYER : ary(97).disp = 4030 : ary(97).v = ""
A100: 98 | B100: A先_シュート延長後半3 | C100: 41 | D100: 4041 | E100: SDK_AWAY_PLAYER | F100: ary(98).key = "A先_シュート延長後半3" : | G100: ary(98).kind = SDK_AWAY_PLAYER : | H100: ary(98).disp = 4041 : | I100: ary(98).v = "" | J100: ary(98).key = "A先_シュート延長後半3" : ary(98).kind = SDK_AWAY_PLAYER : ary(98).disp = 4041 : ary(98).v = ""
A101: 99 | B101: A先_シュート延長後半4 | C101: 52 | D101: 4052 | E101: SDK_AWAY_PLAYER | F101: ary(99).key = "A先_シュート延長後半4" : | G101: ary(99).kind = SDK_AWAY_PLAYER : | H101: ary(99).disp = 4052 : | I101: ary(99).v = "" | J101: ary(99).key = "A先_シュート延長後半4" : ary(99).kind = SDK_AWAY_PLAYER : ary(99).disp = 4052 : ary(99).v = ""
A102: 100 | B102: A先_シュート延長後半5 | C102: 63 | D102: 4063 | E102: SDK_AWAY_PLAYER | F102: ary(100).key = "A先_シュート延長後半5" : | G102: ary(100).kind = SDK_AWAY_PLAYER : | H102: ary(100).disp = 4063 : | I102: ary(100).v = "" | J102: ary(100).key = "A先_シュート延長後半5" : ary(100).kind = SDK_AWAY_PLAYER : ary(100).disp = 4063 : ary(100).v = ""
A103: 101 | B103: A先_シュート延長後半6 | C103: 74 | D103: 4074 | E103: SDK_AWAY_PLAYER | F103: ary(101).key = "A先_シュート延長後半6" : | G103: ary(101).kind = SDK_AWAY_PLAYER : | H103: ary(101).disp = 4074 : | I103: ary(101).v = "" | J103: ary(101).key = "A先_シュート延長後半6" : ary(101).kind = SDK_AWAY_PLAYER : ary(101).disp = 4074 : ary(101).v = ""
A104: 102 | B104: A先_シュート延長後半7 | C104: 85 | D104: 4085 | E104: SDK_AWAY_PLAYER | F104: ary(102).key = "A先_シュート延長後半7" : | G104: ary(102).kind = SDK_AWAY_PLAYER : | H104: ary(102).disp = 4085 : | I104: ary(102).v = "" | J104: ary(102).key = "A先_シュート延長後半7" : ary(102).kind = SDK_AWAY_PLAYER : ary(102).disp = 4085 : ary(102).v = ""
A105: 103 | B105: A先_シュート延長後半8 | C105: 96 | D105: 4096 | E105: SDK_AWAY_PLAYER | F105: ary(103).key = "A先_シュート延長後半8" : | G105: ary(103).kind = SDK_AWAY_PLAYER : | H105: ary(103).disp = 4096 : | I105: ary(103).v = "" | J105: ary(103).key = "A先_シュート延長後半8" : ary(103).kind = SDK_AWAY_PLAYER : ary(103).disp = 4096 : ary(103).v = ""
A106: 104 | B106: A先_シュート延長後半9 | C106: 107 | D106: 4107 | E106: SDK_AWAY_PLAYER | F106: ary(104).key = "A先_シュート延長後半9" : | G106: ary(104).kind = SDK_AWAY_PLAYER : | H106: ary(104).disp = 4107 : | I106: ary(104).v = "" | J106: ary(104).key = "A先_シュート延長後半9" : ary(104).kind = SDK_AWAY_PLAYER : ary(104).disp = 4107 : ary(104).v = ""
A107: 105 | B107: A先_シュート後半0 | C107: 6 | D107: 4006 | E107: SDK_AWAY_PLAYER | F107: ary(105).key = "A先_シュート後半0" : | G107: ary(105).kind = SDK_AWAY_PLAYER : | H107: ary(105).disp = 4006 : | I107: ary(105).v = "" | J107: ary(105).key = "A先_シュート後半0" : ary(105).kind = SDK_AWAY_PLAYER : ary(105).disp = 4006 : ary(105).v = ""
A108: 106 | B108: A先_シュート後半1 | C108: 17 | D108: 4017 | E108: SDK_AWAY_PLAYER | F108: ary(106).key = "A先_シュート後半1" : | G108: ary(106).kind = SDK_AWAY_PLAYER : | H108: ary(106).disp = 4017 : | I108: ary(106).v = "" | J108: ary(106).key = "A先_シュート後半1" : ary(106).kind = SDK_AWAY_PLAYER : ary(106).disp = 4017 : ary(106).v = ""
A109: 107 | B109: A先_シュート後半10 | C109: 116 | D109: 4116 | E109: SDK_AWAY_PLAYER | F109: ary(107).key = "A先_シュート後半10" : | G109: ary(107).kind = SDK_AWAY_PLAYER : | H109: ary(107).disp = 4116 : | I109: ary(107).v = "" | J109: ary(107).key = "A先_シュート後半10" : ary(107).kind = SDK_AWAY_PLAYER : ary(107).disp = 4116 : ary(107).v = ""
A110: 108 | B110: A先_シュート後半2 | C110: 28 | D110: 4028 | E110: SDK_AWAY_PLAYER | F110: ary(108).key = "A先_シュート後半2" : | G110: ary(108).kind = SDK_AWAY_PLAYER : | H110: ary(108).disp = 4028 : | I110: ary(108).v = "" | J110: ary(108).key = "A先_シュート後半2" : ary(108).kind = SDK_AWAY_PLAYER : ary(108).disp = 4028 : ary(108).v = ""
A111: 109 | B111: A先_シュート後半3 | C111: 39 | D111: 4039 | E111: SDK_AWAY_PLAYER | F111: ary(109).key = "A先_シュート後半3" : | G111: ary(109).kind = SDK_AWAY_PLAYER : | H111: ary(109).disp = 4039 : | I111: ary(109).v = "" | J111: ary(109).key = "A先_シュート後半3" : ary(109).kind = SDK_AWAY_PLAYER : ary(109).disp = 4039 : ary(109).v = ""
A112: 110 | B112: A先_シュート後半4 | C112: 50 | D112: 4050 | E112: SDK_AWAY_PLAYER | F112: ary(110).key = "A先_シュート後半4" : | G112: ary(110).kind = SDK_AWAY_PLAYER : | H112: ary(110).disp = 4050 : | I112: ary(110).v = "" | J112: ary(110).key = "A先_シュート後半4" : ary(110).kind = SDK_AWAY_PLAYER : ary(110).disp = 4050 : ary(110).v = ""
A113: 111 | B113: A先_シュート後半5 | C113: 61 | D113: 4061 | E113: SDK_AWAY_PLAYER | F113: ary(111).key = "A先_シュート後半5" : | G113: ary(111).kind = SDK_AWAY_PLAYER : | H113: ary(111).disp = 4061 : | I113: ary(111).v = "" | J113: ary(111).key = "A先_シュート後半5" : ary(111).kind = SDK_AWAY_PLAYER : ary(111).disp = 4061 : ary(111).v = ""
A114: 112 | B114: A先_シュート後半6 | C114: 72 | D114: 4072 | E114: SDK_AWAY_PLAYER | F114: ary(112).key = "A先_シュート後半6" : | G114: ary(112).kind = SDK_AWAY_PLAYER : | H114: ary(112).disp = 4072 : | I114: ary(112).v = "" | J114: ary(112).key = "A先_シュート後半6" : ary(112).kind = SDK_AWAY_PLAYER : ary(112).disp = 4072 : ary(112).v = ""
A115: 113 | B115: A先_シュート後半7 | C115: 83 | D115: 4083 | E115: SDK_AWAY_PLAYER | F115: ary(113).key = "A先_シュート後半7" : | G115: ary(113).kind = SDK_AWAY_PLAYER : | H115: ary(113).disp = 4083 : | I115: ary(113).v = "" | J115: ary(113).key = "A先_シュート後半7" : ary(113).kind = SDK_AWAY_PLAYER : ary(113).disp = 4083 : ary(113).v = ""
A116: 114 | B116: A先_シュート後半8 | C116: 94 | D116: 4094 | E116: SDK_AWAY_PLAYER | F116: ary(114).key = "A先_シュート後半8" : | G116: ary(114).kind = SDK_AWAY_PLAYER : | H116: ary(114).disp = 4094 : | I116: ary(114).v = "" | J116: ary(114).key = "A先_シュート後半8" : ary(114).kind = SDK_AWAY_PLAYER : ary(114).disp = 4094 : ary(114).v = ""
A117: 115 | B117: A先_シュート後半9 | C117: 105 | D117: 4105 | E117: SDK_AWAY_PLAYER | F117: ary(115).key = "A先_シュート後半9" : | G117: ary(115).kind = SDK_AWAY_PLAYER : | H117: ary(115).disp = 4105 : | I117: ary(115).v = "" | J117: ary(115).key = "A先_シュート後半9" : ary(115).kind = SDK_AWAY_PLAYER : ary(115).disp = 4105 : ary(115).v = ""
A118: 116 | B118: A先_シュート計0 | C118: 4 | D118: 4004 | E118: SDK_AWAY_PLAYER | F118: ary(116).key = "A先_シュート計0" : | G118: ary(116).kind = SDK_AWAY_PLAYER : | H118: ary(116).disp = 4004 : | I118: ary(116).v = "" | J118: ary(116).key = "A先_シュート計0" : ary(116).kind = SDK_AWAY_PLAYER : ary(116).disp = 4004 : ary(116).v = ""
A119: 117 | B119: A先_シュート計1 | C119: 15 | D119: 4015 | E119: SDK_AWAY_PLAYER | F119: ary(117).key = "A先_シュート計1" : | G119: ary(117).kind = SDK_AWAY_PLAYER : | H119: ary(117).disp = 4015 : | I119: ary(117).v = "" | J119: ary(117).key = "A先_シュート計1" : ary(117).kind = SDK_AWAY_PLAYER : ary(117).disp = 4015 : ary(117).v = ""
A120: 118 | B120: A先_シュート計10 | C120: 114 | D120: 4114 | E120: SDK_AWAY_PLAYER | F120: ary(118).key = "A先_シュート計10" : | G120: ary(118).kind = SDK_AWAY_PLAYER : | H120: ary(118).disp = 4114 : | I120: ary(118).v = "" | J120: ary(118).key = "A先_シュート計10" : ary(118).kind = SDK_AWAY_PLAYER : ary(118).disp = 4114 : ary(118).v = ""
A121: 119 | B121: A先_シュート計2 | C121: 26 | D121: 4026 | E121: SDK_AWAY_PLAYER | F121: ary(119).key = "A先_シュート計2" : | G121: ary(119).kind = SDK_AWAY_PLAYER : | H121: ary(119).disp = 4026 : | I121: ary(119).v = "" | J121: ary(119).key = "A先_シュート計2" : ary(119).kind = SDK_AWAY_PLAYER : ary(119).disp = 4026 : ary(119).v = ""
A122: 120 | B122: A先_シュート計3 | C122: 37 | D122: 4037 | E122: SDK_AWAY_PLAYER | F122: ary(120).key = "A先_シュート計3" : | G122: ary(120).kind = SDK_AWAY_PLAYER : | H122: ary(120).disp = 4037 : | I122: ary(120).v = "" | J122: ary(120).key = "A先_シュート計3" : ary(120).kind = SDK_AWAY_PLAYER : ary(120).disp = 4037 : ary(120).v = ""
A123: 121 | B123: A先_シュート計4 | C123: 48 | D123: 4048 | E123: SDK_AWAY_PLAYER | F123: ary(121).key = "A先_シュート計4" : | G123: ary(121).kind = SDK_AWAY_PLAYER : | H123: ary(121).disp = 4048 : | I123: ary(121).v = "" | J123: ary(121).key = "A先_シュート計4" : ary(121).kind = SDK_AWAY_PLAYER : ary(121).disp = 4048 : ary(121).v = ""
A124: 122 | B124: A先_シュート計5 | C124: 59 | D124: 4059 | E124: SDK_AWAY_PLAYER | F124: ary(122).key = "A先_シュート計5" : | G124: ary(122).kind = SDK_AWAY_PLAYER : | H124: ary(122).disp = 4059 : | I124: ary(122).v = "" | J124: ary(122).key = "A先_シュート計5" : ary(122).kind = SDK_AWAY_PLAYER : ary(122).disp = 4059 : ary(122).v = ""
A125: 123 | B125: A先_シュート計6 | C125: 70 | D125: 4070 | E125: SDK_AWAY_PLAYER | F125: ary(123).key = "A先_シュート計6" : | G125: ary(123).kind = SDK_AWAY_PLAYER : | H125: ary(123).disp = 4070 : | I125: ary(123).v = "" | J125: ary(123).key = "A先_シュート計6" : ary(123).kind = SDK_AWAY_PLAYER : ary(123).disp = 4070 : ary(123).v = ""
A126: 124 | B126: A先_シュート計7 | C126: 81 | D126: 4081 | E126: SDK_AWAY_PLAYER | F126: ary(124).key = "A先_シュート計7" : | G126: ary(124).kind = SDK_AWAY_PLAYER : | H126: ary(124).disp = 4081 : | I126: ary(124).v = "" | J126: ary(124).key = "A先_シュート計7" : ary(124).kind = SDK_AWAY_PLAYER : ary(124).disp = 4081 : ary(124).v = ""
A127: 125 | B127: A先_シュート計8 | C127: 92 | D127: 4092 | E127: SDK_AWAY_PLAYER | F127: ary(125).key = "A先_シュート計8" : | G127: ary(125).kind = SDK_AWAY_PLAYER : | H127: ary(125).disp = 4092 : | I127: ary(125).v = "" | J127: ary(125).key = "A先_シュート計8" : ary(125).kind = SDK_AWAY_PLAYER : ary(125).disp = 4092 : ary(125).v = ""
A128: 126 | B128: A先_シュート計9 | C128: 103 | D128: 4103 | E128: SDK_AWAY_PLAYER | F128: ary(126).key = "A先_シュート計9" : | G128: ary(126).kind = SDK_AWAY_PLAYER : | H128: ary(126).disp = 4103 : | I128: ary(126).v = "" | J128: ary(126).key = "A先_シュート計9" : ary(126).kind = SDK_AWAY_PLAYER : ary(126).disp = 4103 : ary(126).v = ""
A129: 127 | B129: A先_交代時間0 | C129: 10 | D129: 4010 | E129: SDK_AWAY_PLAYER | F129: ary(127).key = "A先_交代時間0" : | G129: ary(127).kind = SDK_AWAY_PLAYER : | H129: ary(127).disp = 4010 : | I129: ary(127).v = "" | J129: ary(127).key = "A先_交代時間0" : ary(127).kind = SDK_AWAY_PLAYER : ary(127).disp = 4010 : ary(127).v = ""
A130: =ROW()-2 -> 128 | B130: A先_交代時間1 | C130: 21 | D130: 4021 | E130: SDK_AWAY_PLAYER | F130: ="ary("&A130&").key = """ &B130&""" : " -> ary(128).key = "A先_交代時間1" : | G130: ="ary("&A130&").kind = " &E130&" : " -> ary(128).kind = SDK_AWAY_PLAYER : | H130: ="ary("&A130&").disp = " &(HSH_VKIND(E130)+C130)&" : " -> ary(128).disp = 4021 : | I130: ="ary("&A130&").v = """"" -> ary(128).v = "" | J130: =F130&G130&H130&I130 -> ary(128).key = "A先_交代時間1" : ary(128).kind = SDK_AWAY_PLAYER : ary(128).disp = 4021 : ary(128).v = ""
A131: 129 | B131: A先_交代時間10 | C131: 120 | D131: =HSH_VKIND(E131)+C131 -> 4120 | E131: SDK_AWAY_PLAYER | F131: ary(129).key = "A先_交代時間10" : | G131: ary(129).kind = SDK_AWAY_PLAYER : | H131: ary(129).disp = 4120 : | I131: ary(129).v = "" | J131: ary(129).key = "A先_交代時間10" : ary(129).kind = SDK_AWAY_PLAYER : ary(129).disp = 4120 : ary(129).v = ""
A132: 130 | B132: A先_交代時間2 | C132: 32 | D132: 4032 | E132: SDK_AWAY_PLAYER | F132: ary(130).key = "A先_交代時間2" : | G132: ary(130).kind = SDK_AWAY_PLAYER : | H132: ary(130).disp = 4032 : | I132: ary(130).v = "" | J132: ary(130).key = "A先_交代時間2" : ary(130).kind = SDK_AWAY_PLAYER : ary(130).disp = 4032 : ary(130).v = ""
A133: 131 | B133: A先_交代時間3 | C133: 43 | D133: 4043 | E133: SDK_AWAY_PLAYER | F133: ary(131).key = "A先_交代時間3" : | G133: ary(131).kind = SDK_AWAY_PLAYER : | H133: ary(131).disp = 4043 : | I133: ary(131).v = "" | J133: ary(131).key = "A先_交代時間3" : ary(131).kind = SDK_AWAY_PLAYER : ary(131).disp = 4043 : ary(131).v = ""
A134: 132 | B134: A先_交代時間4 | C134: 54 | D134: 4054 | E134: SDK_AWAY_PLAYER | F134: ary(132).key = "A先_交代時間4" : | G134: ary(132).kind = SDK_AWAY_PLAYER : | H134: ary(132).disp = 4054 : | I134: ary(132).v = "" | J134: ary(132).key = "A先_交代時間4" : ary(132).kind = SDK_AWAY_PLAYER : ary(132).disp = 4054 : ary(132).v = ""
A135: 133 | B135: A先_交代時間5 | C135: 65 | D135: 4065 | E135: SDK_AWAY_PLAYER | F135: ary(133).key = "A先_交代時間5" : | G135: ary(133).kind = SDK_AWAY_PLAYER : | H135: ary(133).disp = 4065 : | I135: ary(133).v = "" | J135: ary(133).key = "A先_交代時間5" : ary(133).kind = SDK_AWAY_PLAYER : ary(133).disp = 4065 : ary(133).v = ""
A136: 134 | B136: A先_交代時間6 | C136: 76 | D136: 4076 | E136: SDK_AWAY_PLAYER | F136: ary(134).key = "A先_交代時間6" : | G136: ary(134).kind = SDK_AWAY_PLAYER : | H136: ary(134).disp = 4076 : | I136: ary(134).v = "" | J136: ary(134).key = "A先_交代時間6" : ary(134).kind = SDK_AWAY_PLAYER : ary(134).disp = 4076 : ary(134).v = ""
A137: 135 | B137: A先_交代時間7 | C137: 87 | D137: 4087 | E137: SDK_AWAY_PLAYER | F137: ary(135).key = "A先_交代時間7" : | G137: ary(135).kind = SDK_AWAY_PLAYER : | H137: ary(135).disp = 4087 : | I137: ary(135).v = "" | J137: ary(135).key = "A先_交代時間7" : ary(135).kind = SDK_AWAY_PLAYER : ary(135).disp = 4087 : ary(135).v = ""
A138: 136 | B138: A先_交代時間8 | C138: 98 | D138: 4098 | E138: SDK_AWAY_PLAYER | F138: ary(136).key = "A先_交代時間8" : | G138: ary(136).kind = SDK_AWAY_PLAYER : | H138: ary(136).disp = 4098 : | I138: ary(136).v = "" | J138: ary(136).key = "A先_交代時間8" : ary(136).kind = SDK_AWAY_PLAYER : ary(136).disp = 4098 : ary(136).v = ""
A139: 137 | B139: A先_交代時間9 | C139: 109 | D139: 4109 | E139: SDK_AWAY_PLAYER | F139: ary(137).key = "A先_交代時間9" : | G139: ary(137).kind = SDK_AWAY_PLAYER : | H139: ary(137).disp = 4109 : | I139: ary(137).v = "" | J139: ary(137).key = "A先_交代時間9" : ary(137).kind = SDK_AWAY_PLAYER : ary(137).disp = 4109 : ary(137).v = ""
A140: 138 | B140: A先_交代背番号0 | C140: 9 | D140: 4009 | E140: SDK_AWAY_PLAYER | F140: ary(138).key = "A先_交代背番号0" : | G140: ary(138).kind = SDK_AWAY_PLAYER : | H140: ary(138).disp = 4009 : | I140: ary(138).v = "" | J140: ary(138).key = "A先_交代背番号0" : ary(138).kind = SDK_AWAY_PLAYER : ary(138).disp = 4009 : ary(138).v = ""
A141: 139 | B141: A先_交代背番号1 | C141: 20 | D141: 4020 | E141: SDK_AWAY_PLAYER | F141: ary(139).key = "A先_交代背番号1" : | G141: ary(139).kind = SDK_AWAY_PLAYER : | H141: ary(139).disp = 4020 : | I141: ary(139).v = "" | J141: ary(139).key = "A先_交代背番号1" : ary(139).kind = SDK_AWAY_PLAYER : ary(139).disp = 4020 : ary(139).v = ""
A142: 140 | B142: A先_交代背番号10 | C142: 119 | D142: 4119 | E142: SDK_AWAY_PLAYER | F142: ary(140).key = "A先_交代背番号10" : | G142: ary(140).kind = SDK_AWAY_PLAYER : | H142: ary(140).disp = 4119 : | I142: ary(140).v = "" | J142: ary(140).key = "A先_交代背番号10" : ary(140).kind = SDK_AWAY_PLAYER : ary(140).disp = 4119 : ary(140).v = ""
A143: 141 | B143: A先_交代背番号2 | C143: 31 | D143: 4031 | E143: SDK_AWAY_PLAYER | F143: ary(141).key = "A先_交代背番号2" : | G143: ary(141).kind = SDK_AWAY_PLAYER : | H143: ary(141).disp = 4031 : | I143: ary(141).v = "" | J143: ary(141).key = "A先_交代背番号2" : ary(141).kind = SDK_AWAY_PLAYER : ary(141).disp = 4031 : ary(141).v = ""
A144: 142 | B144: A先_交代背番号3 | C144: 42 | D144: 4042 | E144: SDK_AWAY_PLAYER | F144: ary(142).key = "A先_交代背番号3" : | G144: ary(142).kind = SDK_AWAY_PLAYER : | H144: ary(142).disp = 4042 : | I144: ary(142).v = "" | J144: ary(142).key = "A先_交代背番号3" : ary(142).kind = SDK_AWAY_PLAYER : ary(142).disp = 4042 : ary(142).v = ""
A145: 143 | B145: A先_交代背番号4 | C145: 53 | D145: 4053 | E145: SDK_AWAY_PLAYER | F145: ary(143).key = "A先_交代背番号4" : | G145: ary(143).kind = SDK_AWAY_PLAYER : | H145: ary(143).disp = 4053 : | I145: ary(143).v = "" | J145: ary(143).key = "A先_交代背番号4" : ary(143).kind = SDK_AWAY_PLAYER : ary(143).disp = 4053 : ary(143).v = ""
A146: 144 | B146: A先_交代背番号5 | C146: 64 | D146: 4064 | E146: SDK_AWAY_PLAYER | F146: ary(144).key = "A先_交代背番号5" : | G146: ary(144).kind = SDK_AWAY_PLAYER : | H146: ary(144).disp = 4064 : | I146: ary(144).v = "" | J146: ary(144).key = "A先_交代背番号5" : ary(144).kind = SDK_AWAY_PLAYER : ary(144).disp = 4064 : ary(144).v = ""
A147: 145 | B147: A先_交代背番号6 | C147: 75 | D147: 4075 | E147: SDK_AWAY_PLAYER | F147: ary(145).key = "A先_交代背番号6" : | G147: ary(145).kind = SDK_AWAY_PLAYER : | H147: ary(145).disp = 4075 : | I147: ary(145).v = "" | J147: ary(145).key = "A先_交代背番号6" : ary(145).kind = SDK_AWAY_PLAYER : ary(145).disp = 4075 : ary(145).v = ""
A148: 146 | B148: A先_交代背番号7 | C148: 86 | D148: 4086 | E148: SDK_AWAY_PLAYER | F148: ary(146).key = "A先_交代背番号7" : | G148: ary(146).kind = SDK_AWAY_PLAYER : | H148: ary(146).disp = 4086 : | I148: ary(146).v = "" | J148: ary(146).key = "A先_交代背番号7" : ary(146).kind = SDK_AWAY_PLAYER : ary(146).disp = 4086 : ary(146).v = ""
A149: 147 | B149: A先_交代背番号8 | C149: 97 | D149: 4097 | E149: SDK_AWAY_PLAYER | F149: ary(147).key = "A先_交代背番号8" : | G149: ary(147).kind = SDK_AWAY_PLAYER : | H149: ary(147).disp = 4097 : | I149: ary(147).v = "" | J149: ary(147).key = "A先_交代背番号8" : ary(147).kind = SDK_AWAY_PLAYER : ary(147).disp = 4097 : ary(147).v = ""
A150: 148 | B150: A先_交代背番号9 | C150: 108 | D150: 4108 | E150: SDK_AWAY_PLAYER | F150: ary(148).key = "A先_交代背番号9" : | G150: ary(148).kind = SDK_AWAY_PLAYER : | H150: ary(148).disp = 4108 : | I150: ary(148).v = "" | J150: ary(148).key = "A先_交代背番号9" : ary(148).kind = SDK_AWAY_PLAYER : ary(148).disp = 4108 : ary(148).v = ""
A151: 149 | B151: A先_位置0 | C151: 2 | D151: 4002 | E151: SDK_AWAY_PLAYER | F151: ary(149).key = "A先_位置0" : | G151: ary(149).kind = SDK_AWAY_PLAYER : | H151: ary(149).disp = 4002 : | I151: ary(149).v = "" | J151: ary(149).key = "A先_位置0" : ary(149).kind = SDK_AWAY_PLAYER : ary(149).disp = 4002 : ary(149).v = ""
A152: 150 | B152: A先_位置1 | C152: 13 | D152: 4013 | E152: SDK_AWAY_PLAYER | F152: ary(150).key = "A先_位置1" : | G152: ary(150).kind = SDK_AWAY_PLAYER : | H152: ary(150).disp = 4013 : | I152: ary(150).v = "" | J152: ary(150).key = "A先_位置1" : ary(150).kind = SDK_AWAY_PLAYER : ary(150).disp = 4013 : ary(150).v = ""
A153: 151 | B153: A先_位置10 | C153: 112 | D153: 4112 | E153: SDK_AWAY_PLAYER | F153: ary(151).key = "A先_位置10" : | G153: ary(151).kind = SDK_AWAY_PLAYER : | H153: ary(151).disp = 4112 : | I153: ary(151).v = "" | J153: ary(151).key = "A先_位置10" : ary(151).kind = SDK_AWAY_PLAYER : ary(151).disp = 4112 : ary(151).v = ""
A154: 152 | B154: A先_位置2 | C154: 24 | D154: 4024 | E154: SDK_AWAY_PLAYER | F154: ary(152).key = "A先_位置2" : | G154: ary(152).kind = SDK_AWAY_PLAYER : | H154: ary(152).disp = 4024 : | I154: ary(152).v = "" | J154: ary(152).key = "A先_位置2" : ary(152).kind = SDK_AWAY_PLAYER : ary(152).disp = 4024 : ary(152).v = ""
A155: 153 | B155: A先_位置3 | C155: 35 | D155: 4035 | E155: SDK_AWAY_PLAYER | F155: ary(153).key = "A先_位置3" : | G155: ary(153).kind = SDK_AWAY_PLAYER : | H155: ary(153).disp = 4035 : | I155: ary(153).v = "" | J155: ary(153).key = "A先_位置3" : ary(153).kind = SDK_AWAY_PLAYER : ary(153).disp = 4035 : ary(153).v = ""
A156: 154 | B156: A先_位置4 | C156: 46 | D156: 4046 | E156: SDK_AWAY_PLAYER | F156: ary(154).key = "A先_位置4" : | G156: ary(154).kind = SDK_AWAY_PLAYER : | H156: ary(154).disp = 4046 : | I156: ary(154).v = "" | J156: ary(154).key = "A先_位置4" : ary(154).kind = SDK_AWAY_PLAYER : ary(154).disp = 4046 : ary(154).v = ""
A157: 155 | B157: A先_位置5 | C157: 57 | D157: 4057 | E157: SDK_AWAY_PLAYER | F157: ary(155).key = "A先_位置5" : | G157: ary(155).kind = SDK_AWAY_PLAYER : | H157: ary(155).disp = 4057 : | I157: ary(155).v = "" | J157: ary(155).key = "A先_位置5" : ary(155).kind = SDK_AWAY_PLAYER : ary(155).disp = 4057 : ary(155).v = ""
A158: 156 | B158: A先_位置6 | C158: 68 | D158: 4068 | E158: SDK_AWAY_PLAYER | F158: ary(156).key = "A先_位置6" : | G158: ary(156).kind = SDK_AWAY_PLAYER : | H158: ary(156).disp = 4068 : | I158: ary(156).v = "" | J158: ary(156).key = "A先_位置6" : ary(156).kind = SDK_AWAY_PLAYER : ary(156).disp = 4068 : ary(156).v = ""
A159: 157 | B159: A先_位置7 | C159: 79 | D159: 4079 | E159: SDK_AWAY_PLAYER | F159: ary(157).key = "A先_位置7" : | G159: ary(157).kind = SDK_AWAY_PLAYER : | H159: ary(157).disp = 4079 : | I159: ary(157).v = "" | J159: ary(157).key = "A先_位置7" : ary(157).kind = SDK_AWAY_PLAYER : ary(157).disp = 4079 : ary(157).v = ""
A160: 158 | B160: A先_位置8 | C160: 90 | D160: 4090 | E160: SDK_AWAY_PLAYER | F160: ary(158).key = "A先_位置8" : | G160: ary(158).kind = SDK_AWAY_PLAYER : | H160: ary(158).disp = 4090 : | I160: ary(158).v = "" | J160: ary(158).key = "A先_位置8" : ary(158).kind = SDK_AWAY_PLAYER : ary(158).disp = 4090 : ary(158).v = ""
A161: 159 | B161: A先_位置9 | C161: 101 | D161: 4101 | E161: SDK_AWAY_PLAYER | F161: ary(159).key = "A先_位置9" : | G161: ary(159).kind = SDK_AWAY_PLAYER : | H161: ary(159).disp = 4101 : | I161: ary(159).v = "" | J161: ary(159).key = "A先_位置9" : ary(159).kind = SDK_AWAY_PLAYER : ary(159).disp = 4101 : ary(159).v = ""
A162: 160 | B162: A先_得点0 | C162: 3 | D162: 4003 | E162: SDK_AWAY_PLAYER | F162: ary(160).key = "A先_得点0" : | G162: ary(160).kind = SDK_AWAY_PLAYER : | H162: ary(160).disp = 4003 : | I162: ary(160).v = "" | J162: ary(160).key = "A先_得点0" : ary(160).kind = SDK_AWAY_PLAYER : ary(160).disp = 4003 : ary(160).v = ""
A163: 161 | B163: A先_得点1 | C163: 14 | D163: 4014 | E163: SDK_AWAY_PLAYER | F163: ary(161).key = "A先_得点1" : | G163: ary(161).kind = SDK_AWAY_PLAYER : | H163: ary(161).disp = 4014 : | I163: ary(161).v = "" | J163: ary(161).key = "A先_得点1" : ary(161).kind = SDK_AWAY_PLAYER : ary(161).disp = 4014 : ary(161).v = ""
A164: 162 | B164: A先_得点10 | C164: 113 | D164: 4113 | E164: SDK_AWAY_PLAYER | F164: ary(162).key = "A先_得点10" : | G164: ary(162).kind = SDK_AWAY_PLAYER : | H164: ary(162).disp = 4113 : | I164: ary(162).v = "" | J164: ary(162).key = "A先_得点10" : ary(162).kind = SDK_AWAY_PLAYER : ary(162).disp = 4113 : ary(162).v = ""
A165: 163 | B165: A先_得点2 | C165: 25 | D165: 4025 | E165: SDK_AWAY_PLAYER | F165: ary(163).key = "A先_得点2" : | G165: ary(163).kind = SDK_AWAY_PLAYER : | H165: ary(163).disp = 4025 : | I165: ary(163).v = "" | J165: ary(163).key = "A先_得点2" : ary(163).kind = SDK_AWAY_PLAYER : ary(163).disp = 4025 : ary(163).v = ""
A166: 164 | B166: A先_得点3 | C166: 36 | D166: 4036 | E166: SDK_AWAY_PLAYER | F166: ary(164).key = "A先_得点3" : | G166: ary(164).kind = SDK_AWAY_PLAYER : | H166: ary(164).disp = 4036 : | I166: ary(164).v = "" | J166: ary(164).key = "A先_得点3" : ary(164).kind = SDK_AWAY_PLAYER : ary(164).disp = 4036 : ary(164).v = ""
A167: 165 | B167: A先_得点4 | C167: 47 | D167: 4047 | E167: SDK_AWAY_PLAYER | F167: ary(165).key = "A先_得点4" : | G167: ary(165).kind = SDK_AWAY_PLAYER : | H167: ary(165).disp = 4047 : | I167: ary(165).v = "" | J167: ary(165).key = "A先_得点4" : ary(165).kind = SDK_AWAY_PLAYER : ary(165).disp = 4047 : ary(165).v = ""
A168: 166 | B168: A先_得点5 | C168: 58 | D168: 4058 | E168: SDK_AWAY_PLAYER | F168: ary(166).key = "A先_得点5" : | G168: ary(166).kind = SDK_AWAY_PLAYER : | H168: ary(166).disp = 4058 : | I168: ary(166).v = "" | J168: ary(166).key = "A先_得点5" : ary(166).kind = SDK_AWAY_PLAYER : ary(166).disp = 4058 : ary(166).v = ""
A169: 167 | B169: A先_得点6 | C169: 69 | D169: 4069 | E169: SDK_AWAY_PLAYER | F169: ary(167).key = "A先_得点6" : | G169: ary(167).kind = SDK_AWAY_PLAYER : | H169: ary(167).disp = 4069 : | I169: ary(167).v = "" | J169: ary(167).key = "A先_得点6" : ary(167).kind = SDK_AWAY_PLAYER : ary(167).disp = 4069 : ary(167).v = ""
A170: 168 | B170: A先_得点7 | C170: 80 | D170: 4080 | E170: SDK_AWAY_PLAYER | F170: ary(168).key = "A先_得点7" : | G170: ary(168).kind = SDK_AWAY_PLAYER : | H170: ary(168).disp = 4080 : | I170: ary(168).v = "" | J170: ary(168).key = "A先_得点7" : ary(168).kind = SDK_AWAY_PLAYER : ary(168).disp = 4080 : ary(168).v = ""
A171: 169 | B171: A先_得点8 | C171: 91 | D171: 4091 | E171: SDK_AWAY_PLAYER | F171: ary(169).key = "A先_得点8" : | G171: ary(169).kind = SDK_AWAY_PLAYER : | H171: ary(169).disp = 4091 : | I171: ary(169).v = "" | J171: ary(169).key = "A先_得点8" : ary(169).kind = SDK_AWAY_PLAYER : ary(169).disp = 4091 : ary(169).v = ""
A172: 170 | B172: A先_得点9 | C172: 102 | D172: 4102 | E172: SDK_AWAY_PLAYER | F172: ary(170).key = "A先_得点9" : | G172: ary(170).kind = SDK_AWAY_PLAYER : | H172: ary(170).disp = 4102 : | I172: ary(170).v = "" | J172: ary(170).key = "A先_得点9" : ary(170).kind = SDK_AWAY_PLAYER : ary(170).disp = 4102 : ary(170).v = ""
A173: 171 | B173: A先_背番号0 | C173: 1 | D173: 4001 | E173: SDK_AWAY_PLAYER | F173: ary(171).key = "A先_背番号0" : | G173: ary(171).kind = SDK_AWAY_PLAYER : | H173: ary(171).disp = 4001 : | I173: ary(171).v = "" | J173: ary(171).key = "A先_背番号0" : ary(171).kind = SDK_AWAY_PLAYER : ary(171).disp = 4001 : ary(171).v = ""
A174: 172 | B174: A先_背番号1 | C174: 12 | D174: 4012 | E174: SDK_AWAY_PLAYER | F174: ary(172).key = "A先_背番号1" : | G174: ary(172).kind = SDK_AWAY_PLAYER : | H174: ary(172).disp = 4012 : | I174: ary(172).v = "" | J174: ary(172).key = "A先_背番号1" : ary(172).kind = SDK_AWAY_PLAYER : ary(172).disp = 4012 : ary(172).v = ""
A175: 173 | B175: A先_背番号10 | C175: 111 | D175: 4111 | E175: SDK_AWAY_PLAYER | F175: ary(173).key = "A先_背番号10" : | G175: ary(173).kind = SDK_AWAY_PLAYER : | H175: ary(173).disp = 4111 : | I175: ary(173).v = "" | J175: ary(173).key = "A先_背番号10" : ary(173).kind = SDK_AWAY_PLAYER : ary(173).disp = 4111 : ary(173).v = ""
A176: 174 | B176: A先_背番号2 | C176: 23 | D176: 4023 | E176: SDK_AWAY_PLAYER | F176: ary(174).key = "A先_背番号2" : | G176: ary(174).kind = SDK_AWAY_PLAYER : | H176: ary(174).disp = 4023 : | I176: ary(174).v = "" | J176: ary(174).key = "A先_背番号2" : ary(174).kind = SDK_AWAY_PLAYER : ary(174).disp = 4023 : ary(174).v = ""
A177: 175 | B177: A先_背番号3 | C177: 34 | D177: 4034 | E177: SDK_AWAY_PLAYER | F177: ary(175).key = "A先_背番号3" : | G177: ary(175).kind = SDK_AWAY_PLAYER : | H177: ary(175).disp = 4034 : | I177: ary(175).v = "" | J177: ary(175).key = "A先_背番号3" : ary(175).kind = SDK_AWAY_PLAYER : ary(175).disp = 4034 : ary(175).v = ""
A178: 176 | B178: A先_背番号4 | C178: 45 | D178: 4045 | E178: SDK_AWAY_PLAYER | F178: ary(176).key = "A先_背番号4" : | G178: ary(176).kind = SDK_AWAY_PLAYER : | H178: ary(176).disp = 4045 : | I178: ary(176).v = "" | J178: ary(176).key = "A先_背番号4" : ary(176).kind = SDK_AWAY_PLAYER : ary(176).disp = 4045 : ary(176).v = ""
A179: 177 | B179: A先_背番号5 | C179: 56 | D179: 4056 | E179: SDK_AWAY_PLAYER | F179: ary(177).key = "A先_背番号5" : | G179: ary(177).kind = SDK_AWAY_PLAYER : | H179: ary(177).disp = 4056 : | I179: ary(177).v = "" | J179: ary(177).key = "A先_背番号5" : ary(177).kind = SDK_AWAY_PLAYER : ary(177).disp = 4056 : ary(177).v = ""
A180: 178 | B180: A先_背番号6 | C180: 67 | D180: 4067 | E180: SDK_AWAY_PLAYER | F180: ary(178).key = "A先_背番号6" : | G180: ary(178).kind = SDK_AWAY_PLAYER : | H180: ary(178).disp = 4067 : | I180: ary(178).v = "" | J180: ary(178).key = "A先_背番号6" : ary(178).kind = SDK_AWAY_PLAYER : ary(178).disp = 4067 : ary(178).v = ""
A181: 179 | B181: A先_背番号7 | C181: 78 | D181: 4078 | E181: SDK_AWAY_PLAYER | F181: ary(179).key = "A先_背番号7" : | G181: ary(179).kind = SDK_AWAY_PLAYER : | H181: ary(179).disp = 4078 : | I181: ary(179).v = "" | J181: ary(179).key = "A先_背番号7" : ary(179).kind = SDK_AWAY_PLAYER : ary(179).disp = 4078 : ary(179).v = ""
A182: 180 | B182: A先_背番号8 | C182: 89 | D182: 4089 | E182: SDK_AWAY_PLAYER | F182: ary(180).key = "A先_背番号8" : | G182: ary(180).kind = SDK_AWAY_PLAYER : | H182: ary(180).disp = 4089 : | I182: ary(180).v = "" | J182: ary(180).key = "A先_背番号8" : ary(180).kind = SDK_AWAY_PLAYER : ary(180).disp = 4089 : ary(180).v = ""
A183: 181 | B183: A先_背番号9 | C183: 100 | D183: 4100 | E183: SDK_AWAY_PLAYER | F183: ary(181).key = "A先_背番号9" : | G183: ary(181).kind = SDK_AWAY_PLAYER : | H183: ary(181).disp = 4100 : | I183: ary(181).v = "" | J183: ary(181).key = "A先_背番号9" : ary(181).kind = SDK_AWAY_PLAYER : ary(181).disp = 4100 : ary(181).v = ""
A184: 182 | B184: A先_選手名0 | C184: 0 | D184: 4000 | E184: SDK_AWAY_PLAYER | F184: ary(182).key = "A先_選手名0" : | G184: ary(182).kind = SDK_AWAY_PLAYER : | H184: ary(182).disp = 4000 : | I184: ary(182).v = "" | J184: ary(182).key = "A先_選手名0" : ary(182).kind = SDK_AWAY_PLAYER : ary(182).disp = 4000 : ary(182).v = ""
A185: 183 | B185: A先_選手名1 | C185: 11 | D185: 4011 | E185: SDK_AWAY_PLAYER | F185: ary(183).key = "A先_選手名1" : | G185: ary(183).kind = SDK_AWAY_PLAYER : | H185: ary(183).disp = 4011 : | I185: ary(183).v = "" | J185: ary(183).key = "A先_選手名1" : ary(183).kind = SDK_AWAY_PLAYER : ary(183).disp = 4011 : ary(183).v = ""
A186: 184 | B186: A先_選手名10 | C186: 110 | D186: 4110 | E186: SDK_AWAY_PLAYER | F186: ary(184).key = "A先_選手名10" : | G186: ary(184).kind = SDK_AWAY_PLAYER : | H186: ary(184).disp = 4110 : | I186: ary(184).v = "" | J186: ary(184).key = "A先_選手名10" : ary(184).kind = SDK_AWAY_PLAYER : ary(184).disp = 4110 : ary(184).v = ""
A187: 185 | B187: A先_選手名2 | C187: 22 | D187: 4022 | E187: SDK_AWAY_PLAYER | F187: ary(185).key = "A先_選手名2" : | G187: ary(185).kind = SDK_AWAY_PLAYER : | H187: ary(185).disp = 4022 : | I187: ary(185).v = "" | J187: ary(185).key = "A先_選手名2" : ary(185).kind = SDK_AWAY_PLAYER : ary(185).disp = 4022 : ary(185).v = ""
A188: 186 | B188: A先_選手名3 | C188: 33 | D188: 4033 | E188: SDK_AWAY_PLAYER | F188: ary(186).key = "A先_選手名3" : | G188: ary(186).kind = SDK_AWAY_PLAYER : | H188: ary(186).disp = 4033 : | I188: ary(186).v = "" | J188: ary(186).key = "A先_選手名3" : ary(186).kind = SDK_AWAY_PLAYER : ary(186).disp = 4033 : ary(186).v = ""
A189: 187 | B189: A先_選手名4 | C189: 44 | D189: 4044 | E189: SDK_AWAY_PLAYER | F189: ary(187).key = "A先_選手名4" : | G189: ary(187).kind = SDK_AWAY_PLAYER : | H189: ary(187).disp = 4044 : | I189: ary(187).v = "" | J189: ary(187).key = "A先_選手名4" : ary(187).kind = SDK_AWAY_PLAYER : ary(187).disp = 4044 : ary(187).v = ""
A190: 188 | B190: A先_選手名5 | C190: 55 | D190: 4055 | E190: SDK_AWAY_PLAYER | F190: ary(188).key = "A先_選手名5" : | G190: ary(188).kind = SDK_AWAY_PLAYER : | H190: ary(188).disp = 4055 : | I190: ary(188).v = "" | J190: ary(188).key = "A先_選手名5" : ary(188).kind = SDK_AWAY_PLAYER : ary(188).disp = 4055 : ary(188).v = ""
A191: 189 | B191: A先_選手名6 | C191: 66 | D191: 4066 | E191: SDK_AWAY_PLAYER | F191: ary(189).key = "A先_選手名6" : | G191: ary(189).kind = SDK_AWAY_PLAYER : | H191: ary(189).disp = 4066 : | I191: ary(189).v = "" | J191: ary(189).key = "A先_選手名6" : ary(189).kind = SDK_AWAY_PLAYER : ary(189).disp = 4066 : ary(189).v = ""
A192: 190 | B192: A先_選手名7 | C192: 77 | D192: 4077 | E192: SDK_AWAY_PLAYER | F192: ary(190).key = "A先_選手名7" : | G192: ary(190).kind = SDK_AWAY_PLAYER : | H192: ary(190).disp = 4077 : | I192: ary(190).v = "" | J192: ary(190).key = "A先_選手名7" : ary(190).kind = SDK_AWAY_PLAYER : ary(190).disp = 4077 : ary(190).v = ""
A193: 191 | B193: A先_選手名8 | C193: 88 | D193: 4088 | E193: SDK_AWAY_PLAYER | F193: ary(191).key = "A先_選手名8" : | G193: ary(191).kind = SDK_AWAY_PLAYER : | H193: ary(191).disp = 4088 : | I193: ary(191).v = "" | J193: ary(191).key = "A先_選手名8" : ary(191).kind = SDK_AWAY_PLAYER : ary(191).disp = 4088 : ary(191).v = ""
A194: =ROW()-2 -> 192 | B194: A先_選手名9 | C194: 99 | D194: 4099 | E194: SDK_AWAY_PLAYER | F194: ="ary("&A194&").key = """ &B194&""" : " -> ary(192).key = "A先_選手名9" : | G194: ="ary("&A194&").kind = " &E194&" : " -> ary(192).kind = SDK_AWAY_PLAYER : | H194: ="ary("&A194&").disp = " &(HSH_VKIND(E194)+C194)&" : " -> ary(192).disp = 4099 : | I194: ="ary("&A194&").v = """"" -> ary(192).v = "" | J194: =F194&G194&H194&I194 -> ary(192).key = "A先_選手名9" : ary(192).kind = SDK_AWAY_PLAYER : ary(192).disp = 4099 : ary(192).v = ""
A195: 193 | B195: A得点前半 | C195: 4 | D195: =HSH_VKIND(E195)+C195 -> 3004 | E195: SDK_AWAY_TEAM | F195: ary(193).key = "A得点前半" : | G195: ary(193).kind = SDK_AWAY_TEAM : | H195: ary(193).disp = 3004 : | I195: ary(193).v = "" | J195: ary(193).key = "A得点前半" : ary(193).kind = SDK_AWAY_TEAM : ary(193).disp = 3004 : ary(193).v = ""
A196: 194 | B196: A得点合計 | C196: 3 | D196: 3003 | E196: SDK_AWAY_TEAM | F196: ary(194).key = "A得点合計" : | G196: ary(194).kind = SDK_AWAY_TEAM : | H196: ary(194).disp = 3003 : | I196: ary(194).v = "" | J196: ary(194).key = "A得点合計" : ary(194).kind = SDK_AWAY_TEAM : ary(194).disp = 3003 : ary(194).v = ""
A197: 195 | B197: A得点延前 | C197: 6 | D197: 3006 | E197: SDK_AWAY_TEAM | F197: ary(195).key = "A得点延前" : | G197: ary(195).kind = SDK_AWAY_TEAM : | H197: ary(195).disp = 3006 : | I197: ary(195).v = "" | J197: ary(195).key = "A得点延前" : ary(195).kind = SDK_AWAY_TEAM : ary(195).disp = 3006 : ary(195).v = ""
A198: 196 | B198: A得点延後 | C198: 7 | D198: 3007 | E198: SDK_AWAY_TEAM | F198: ary(196).key = "A得点延後" : | G198: ary(196).kind = SDK_AWAY_TEAM : | H198: ary(196).disp = 3007 : | I198: ary(196).v = "" | J198: ary(196).key = "A得点延後" : ary(196).kind = SDK_AWAY_TEAM : ary(196).disp = 3007 : ary(196).v = ""
A199: 197 | B199: A得点後半 | C199: 5 | D199: 3005 | E199: SDK_AWAY_TEAM | F199: ary(197).key = "A得点後半" : | G199: ary(197).kind = SDK_AWAY_TEAM : | H199: ary(197).disp = 3005 : | I199: ary(197).v = "" | J199: ary(197).key = "A得点後半" : ary(197).kind = SDK_AWAY_TEAM : ary(197).disp = 3005 : ary(197).v = ""
A200: 198 | B200: A控_シュート前半0 | C200: 5 | D200: 5005 | E200: SDK_AWAY_PLAYER_SUB | F200: ary(198).key = "A控_シュート前半0" : | G200: ary(198).kind = SDK_AWAY_PLAYER_SUB : | H200: ary(198).disp = 5005 : | I200: ary(198).v = "" | J200: ary(198).key = "A控_シュート前半0" : ary(198).kind = SDK_AWAY_PLAYER_SUB : ary(198).disp = 5005 : ary(198).v = ""
... 600 more rows

Sheet TBL_v117
A1: idx | B1: key | C1: ofst | D1: seg+ofst | E1: kind(seg)
A2: 0 | B2: A_CK延長後半 | C2: 22 | D2: 3022 | E2: SDK_AWAY_TEAM | F2: ="ary("&A2&").key = """ &B2&""" : " -> ary(0).key = "A_CK延長後半" : | G2: ="ary("&A2&").kind = " &E2&" : " -> ary(0).kind = SDK_AWAY_TEAM : | H2: ="ary("&A2&").disp = " &(HSH_VKIND(E2)+C2)&" : " -> ary(0).disp = 3022 : | I2: ="ary("&A2&").v = """"" -> ary(0).v = "" | J2: =F2&G2&H2&I2 -> ary(0).key = "A_CK延長後半" : ary(0).kind = SDK_AWAY_TEAM : ary(0).disp = 3022 : ary(0).v = ""
A3: 1 | B3: A_CK延長前半 | C3: 21 | D3: 3021 | E3: SDK_AWAY_TEAM | F3: ="ary("&A3&").key = """ &B3&""" : " -> ary(1).key = "A_CK延長前半" : | G3: ="ary("&A3&").kind = " &E3&" : " -> ary(1).kind = SDK_AWAY_TEAM : | H3: ="ary("&A3&").disp = " &(HSH_VKIND(E3)+C3)&" : " -> ary(1).disp = 3021 : | I3: ="ary("&A3&").v = """"" -> ary(1).v = "" | J3: =F3&G3&H3&I3 -> ary(1).key = "A_CK延長前半" : ary(1).kind = SDK_AWAY_TEAM : ary(1).disp = 3021 : ary(1).v = ""
A4: 2 | B4: A_CK計 | C4: 18 | D4: 3018 | E4: SDK_AWAY_TEAM | F4: ary(2).key = "A_CK計" : | G4: ary(2).kind = SDK_AWAY_TEAM : | H4: ary(2).disp = 3018 : | I4: ary(2).v = "" | J4: ary(2).key = "A_CK計" : ary(2).kind = SDK_AWAY_TEAM : ary(2).disp = 3018 : ary(2).v = ""
A5: 3 | B5: A_CK後半 | C5: 20 | D5: 3020 | E5: SDK_AWAY_TEAM | F5: ary(3).key = "A_CK後半" : | G5: ary(3).kind = SDK_AWAY_TEAM : | H5: ary(3).disp = 3020 : | I5: ary(3).v = "" | J5: ary(3).key = "A_CK後半" : ary(3).kind = SDK_AWAY_TEAM : ary(3).disp = 3020 : ary(3).v = ""
A6: 4 | B6: A_CK前半 | C6: 19 | D6: 3019 | E6: SDK_AWAY_TEAM | F6: ary(4).key = "A_CK前半" : | G6: ary(4).kind = SDK_AWAY_TEAM : | H6: ary(4).disp = 3019 : | I6: ary(4).v = "" | J6: ary(4).key = "A_CK前半" : ary(4).kind = SDK_AWAY_TEAM : ary(4).disp = 3019 : ary(4).v = ""
A7: 5 | B7: A_GK延長後半 | C7: 17 | D7: 3017 | E7: SDK_AWAY_TEAM | F7: ary(5).key = "A_GK延長後半" : | G7: ary(5).kind = SDK_AWAY_TEAM : | H7: ary(5).disp = 3017 : | I7: ary(5).v = "" | J7: ary(5).key = "A_GK延長後半" : ary(5).kind = SDK_AWAY_TEAM : ary(5).disp = 3017 : ary(5).v = ""
A8: 6 | B8: A_GK延長前半 | C8: 16 | D8: 3016 | E8: SDK_AWAY_TEAM | F8: ary(6).key = "A_GK延長前半" : | G8: ary(6).kind = SDK_AWAY_TEAM : | H8: ary(6).disp = 3016 : | I8: ary(6).v = "" | J8: ary(6).key = "A_GK延長前半" : ary(6).kind = SDK_AWAY_TEAM : ary(6).disp = 3016 : ary(6).v = ""
A9: 7 | B9: A_GK計 | C9: 13 | D9: 3013 | E9: SDK_AWAY_TEAM | F9: ary(7).key = "A_GK計" : | G9: ary(7).kind = SDK_AWAY_TEAM : | H9: ary(7).disp = 3013 : | I9: ary(7).v = "" | J9: ary(7).key = "A_GK計" : ary(7).kind = SDK_AWAY_TEAM : ary(7).disp = 3013 : ary(7).v = ""
A10: 8 | B10: A_GK後半 | C10: 15 | D10: 3015 | E10: SDK_AWAY_TEAM | F10: ary(8).key = "A_GK後半" : | G10: ary(8).kind = SDK_AWAY_TEAM : | H10: ary(8).disp = 3015 : | I10: ary(8).v = "" | J10: ary(8).key = "A_GK後半" : ary(8).kind = SDK_AWAY_TEAM : ary(8).disp = 3015 : ary(8).v = ""
A11: 9 | B11: A_GK前半 | C11: 14 | D11: 3014 | E11: SDK_AWAY_TEAM | F11: ary(9).key = "A_GK前半" : | G11: ary(9).kind = SDK_AWAY_TEAM : | H11: ary(9).disp = 3014 : | I11: ary(9).v = "" | J11: ary(9).key = "A_GK前半" : ary(9).kind = SDK_AWAY_TEAM : ary(9).disp = 3014 : ary(9).v = ""
A12: 10 | B12: A_PK延長後半 | C12: 37 | D12: 3037 | E12: SDK_AWAY_TEAM | F12: ary(10).key = "A_PK延長後半" : | G12: ary(10).kind = SDK_AWAY_TEAM : | H12: ary(10).disp = 3037 : | I12: ary(10).v = "" | J12: ary(10).key = "A_PK延長後半" : ary(10).kind = SDK_AWAY_TEAM : ary(10).disp = 3037 : ary(10).v = ""
A13: 11 | B13: A_PK延長前半 | C13: 36 | D13: 3036 | E13: SDK_AWAY_TEAM | F13: ary(11).key = "A_PK延長前半" : | G13: ary(11).kind = SDK_AWAY_TEAM : | H13: ary(11).disp = 3036 : | I13: ary(11).v = "" | J13: ary(11).key = "A_PK延長前半" : ary(11).kind = SDK_AWAY_TEAM : ary(11).disp = 3036 : ary(11).v = ""
A14: 12 | B14: A_PK計 | C14: 33 | D14: 3033 | E14: SDK_AWAY_TEAM | F14: ary(12).key = "A_PK計" : | G14: ary(12).kind = SDK_AWAY_TEAM : | H14: ary(12).disp = 3033 : | I14: ary(12).v = "" | J14: ary(12).key = "A_PK計" : ary(12).kind = SDK_AWAY_TEAM : ary(12).disp = 3033 : ary(12).v = ""
A15: 13 | B15: A_PK後半 | C15: 35 | D15: 3035 | E15: SDK_AWAY_TEAM | F15: ary(13).key = "A_PK後半" : | G15: ary(13).kind = SDK_AWAY_TEAM : | H15: ary(13).disp = 3035 : | I15: ary(13).v = "" | J15: ary(13).key = "A_PK後半" : ary(13).kind = SDK_AWAY_TEAM : ary(13).disp = 3035 : ary(13).v = ""
A16: 14 | B16: A_PK前半 | C16: 34 | D16: 3034 | E16: SDK_AWAY_TEAM | F16: ary(14).key = "A_PK前半" : | G16: ary(14).kind = SDK_AWAY_TEAM : | H16: ary(14).disp = 3034 : | I16: ary(14).v = "" | J16: ary(14).key = "A_PK前半" : ary(14).kind = SDK_AWAY_TEAM : ary(14).disp = 3034 : ary(14).v = ""
A17: 15 | B17: A_シュート延長後半 | C17: 12 | D17: 3012 | E17: SDK_AWAY_TEAM | F17: ary(15).key = "A_シュート延長後半" : | G17: ary(15).kind = SDK_AWAY_TEAM : | H17: ary(15).disp = 3012 : | I17: ary(15).v = "" | J17: ary(15).key = "A_シュート延長後半" : ary(15).kind = SDK_AWAY_TEAM : ary(15).disp = 3012 : ary(15).v = ""
A18: 16 | B18: A_シュート延長前半 | C18: 11 | D18: 3011 | E18: SDK_AWAY_TEAM | F18: ary(16).key = "A_シュート延長前半" : | G18: ary(16).kind = SDK_AWAY_TEAM : | H18: ary(16).disp = 3011 : | I18: ary(16).v = "" | J18: ary(16).key = "A_シュート延長前半" : ary(16).kind = SDK_AWAY_TEAM : ary(16).disp = 3011 : ary(16).v = ""
A19: 17 | B19: A_シュート計 | C19: 8 | D19: 3008 | E19: SDK_AWAY_TEAM | F19: ary(17).key = "A_シュート計" : | G19: ary(17).kind = SDK_AWAY_TEAM : | H19: ary(17).disp = 3008 : | I19: ary(17).v = "" | J19: ary(17).key = "A_シュート計" : ary(17).kind = SDK_AWAY_TEAM : ary(17).disp = 3008 : ary(17).v = ""
A20: 18 | B20: A_シュート後半 | C20: 10 | D20: 3010 | E20: SDK_AWAY_TEAM | F20: ary(18).key = "A_シュート後半" : | G20: ary(18).kind = SDK_AWAY_TEAM : | H20: ary(18).disp = 3010 : | I20: ary(18).v = "" | J20: ary(18).key = "A_シュート後半" : ary(18).kind = SDK_AWAY_TEAM : ary(18).disp = 3010 : ary(18).v = ""
A21: 19 | B21: A_シュート前半 | C21: 9 | D21: 3009 | E21: SDK_AWAY_TEAM | F21: ary(19).key = "A_シュート前半" : | G21: ary(19).kind = SDK_AWAY_TEAM : | H21: ary(19).disp = 3009 : | I21: ary(19).v = "" | J21: ary(19).key = "A_シュート前半" : ary(19).kind = SDK_AWAY_TEAM : ary(19).disp = 3009 : ary(19).v = ""
A22: 20 | B22: A_間接FK延長後半 | C22: 32 | D22: 3032 | E22: SDK_AWAY_TEAM | F22: ary(20).key = "A_間接FK延長後半" : | G22: ary(20).kind = SDK_AWAY_TEAM : | H22: ary(20).disp = 3032 : | I22: ary(20).v = "" | J22: ary(20).key = "A_間接FK延長後半" : ary(20).kind = SDK_AWAY_TEAM : ary(20).disp = 3032 : ary(20).v = ""
A23: 21 | B23: A_間接FK延長前半 | C23: 31 | D23: 3031 | E23: SDK_AWAY_TEAM | F23: ary(21).key = "A_間接FK延長前半" : | G23: ary(21).kind = SDK_AWAY_TEAM : | H23: ary(21).disp = 3031 : | I23: ary(21).v = "" | J23: ary(21).key = "A_間接FK延長前半" : ary(21).kind = SDK_AWAY_TEAM : ary(21).disp = 3031 : ary(21).v = ""
A24: 22 | B24: A_間接FK計 | C24: 28 | D24: 3028 | E24: SDK_AWAY_TEAM | F24: ary(22).key = "A_間接FK計" : | G24: ary(22).kind = SDK_AWAY_TEAM : | H24: ary(22).disp = 3028 : | I24: ary(22).v = "" | J24: ary(22).key = "A_間接FK計" : ary(22).kind = SDK_AWAY_TEAM : ary(22).disp = 3028 : ary(22).v = ""
A25: 23 | B25: A_間接FK後半 | C25: 30 | D25: 3030 | E25: SDK_AWAY_TEAM | F25: ary(23).key = "A_間接FK後半" : | G25: ary(23).kind = SDK_AWAY_TEAM : | H25: ary(23).disp = 3030 : | I25: ary(23).v = "" | J25: ary(23).key = "A_間接FK後半" : ary(23).kind = SDK_AWAY_TEAM : ary(23).disp = 3030 : ary(23).v = ""
A26: 24 | B26: A_間接FK前半 | C26: 29 | D26: 3029 | E26: SDK_AWAY_TEAM | F26: ary(24).key = "A_間接FK前半" : | G26: ary(24).kind = SDK_AWAY_TEAM : | H26: ary(24).disp = 3029 : | I26: ary(24).v = "" | J26: ary(24).key = "A_間接FK前半" : ary(24).kind = SDK_AWAY_TEAM : ary(24).disp = 3029 : ary(24).v = ""
A27: 25 | B27: A_警告_退場0 | C27: 2 | D27: 6002 | E27: SDK_AWAY_CARD | F27: ary(25).key = "A_警告_退場0" : | G27: ary(25).kind = SDK_AWAY_CARD : | H27: ary(25).disp = 6002 : | I27: ary(25).v = "" | J27: ary(25).key = "A_警告_退場0" : ary(25).kind = SDK_AWAY_CARD : ary(25).disp = 6002 : ary(25).v = ""
A28: 26 | B28: A_警告_退場1 | C28: 7 | D28: 6007 | E28: SDK_AWAY_CARD | F28: ary(26).key = "A_警告_退場1" : | G28: ary(26).kind = SDK_AWAY_CARD : | H28: ary(26).disp = 6007 : | I28: ary(26).v = "" | J28: ary(26).key = "A_警告_退場1" : ary(26).kind = SDK_AWAY_CARD : ary(26).disp = 6007 : ary(26).v = ""
A29: 27 | B29: A_警告_退場2 | C29: 12 | D29: 6012 | E29: SDK_AWAY_CARD | F29: ary(27).key = "A_警告_退場2" : | G29: ary(27).kind = SDK_AWAY_CARD : | H29: ary(27).disp = 6012 : | I29: ary(27).v = "" | J29: ary(27).key = "A_警告_退場2" : ary(27).kind = SDK_AWAY_CARD : ary(27).disp = 6012 : ary(27).v = ""
A30: 28 | B30: A_警告_退場3 | C30: 17 | D30: 6017 | E30: SDK_AWAY_CARD | F30: ary(28).key = "A_警告_退場3" : | G30: ary(28).kind = SDK_AWAY_CARD : | H30: ary(28).disp = 6017 : | I30: ary(28).v = "" | J30: ary(28).key = "A_警告_退場3" : ary(28).kind = SDK_AWAY_CARD : ary(28).disp = 6017 : ary(28).v = ""
A31: 29 | B31: A_警告_退場4 | C31: 22 | D31: 6022 | E31: SDK_AWAY_CARD | F31: ary(29).key = "A_警告_退場4" : | G31: ary(29).kind = SDK_AWAY_CARD : | H31: ary(29).disp = 6022 : | I31: ary(29).v = "" | J31: ary(29).key = "A_警告_退場4" : ary(29).kind = SDK_AWAY_CARD : ary(29).disp = 6022 : ary(29).v = ""
A32: 30 | B32: A_警告_退場5 | C32: 27 | D32: 6027 | E32: SDK_AWAY_CARD | F32: ary(30).key = "A_警告_退場5" : | G32: ary(30).kind = SDK_AWAY_CARD : | H32: ary(30).disp = 6027 : | I32: ary(30).v = "" | J32: ary(30).key = "A_警告_退場5" : ary(30).kind = SDK_AWAY_CARD : ary(30).disp = 6027 : ary(30).v = ""
A33: 31 | B33: A_警告_退場6 | C33: 32 | D33: 6032 | E33: SDK_AWAY_CARD | F33: ary(31).key = "A_警告_退場6" : | G33: ary(31).kind = SDK_AWAY_CARD : | H33: ary(31).disp = 6032 : | I33: ary(31).v = "" | J33: ary(31).key = "A_警告_退場6" : ary(31).kind = SDK_AWAY_CARD : ary(31).disp = 6032 : ary(31).v = ""
A34: 32 | B34: A_警告_退場7 | C34: 37 | D34: 6037 | E34: SDK_AWAY_CARD | F34: ary(32).key = "A_警告_退場7" : | G34: ary(32).kind = SDK_AWAY_CARD : | H34: ary(32).disp = 6037 : | I34: ary(32).v = "" | J34: ary(32).key = "A_警告_退場7" : ary(32).kind = SDK_AWAY_CARD : ary(32).disp = 6037 : ary(32).v = ""
A35: 33 | B35: A_警告時間0 | C35: 3 | D35: 6003 | E35: SDK_AWAY_CARD | F35: ary(33).key = "A_警告時間0" : | G35: ary(33).kind = SDK_AWAY_CARD : | H35: ary(33).disp = 6003 : | I35: ary(33).v = "" | J35: ary(33).key = "A_警告時間0" : ary(33).kind = SDK_AWAY_CARD : ary(33).disp = 6003 : ary(33).v = ""
A36: 34 | B36: A_警告時間1 | C36: 8 | D36: 6008 | E36: SDK_AWAY_CARD | F36: ary(34).key = "A_警告時間1" : | G36: ary(34).kind = SDK_AWAY_CARD : | H36: ary(34).disp = 6008 : | I36: ary(34).v = "" | J36: ary(34).key = "A_警告時間1" : ary(34).kind = SDK_AWAY_CARD : ary(34).disp = 6008 : ary(34).v = ""
A37: 35 | B37: A_警告時間2 | C37: 13 | D37: 6013 | E37: SDK_AWAY_CARD | F37: ary(35).key = "A_警告時間2" : | G37: ary(35).kind = SDK_AWAY_CARD : | H37: ary(35).disp = 6013 : | I37: ary(35).v = "" | J37: ary(35).key = "A_警告時間2" : ary(35).kind = SDK_AWAY_CARD : ary(35).disp = 6013 : ary(35).v = ""
A38: 36 | B38: A_警告時間3 | C38: 18 | D38: 6018 | E38: SDK_AWAY_CARD | F38: ary(36).key = "A_警告時間3" : | G38: ary(36).kind = SDK_AWAY_CARD : | H38: ary(36).disp = 6018 : | I38: ary(36).v = "" | J38: ary(36).key = "A_警告時間3" : ary(36).kind = SDK_AWAY_CARD : ary(36).disp = 6018 : ary(36).v = ""
A39: 37 | B39: A_警告時間4 | C39: 23 | D39: 6023 | E39: SDK_AWAY_CARD | F39: ary(37).key = "A_警告時間4" : | G39: ary(37).kind = SDK_AWAY_CARD : | H39: ary(37).disp = 6023 : | I39: ary(37).v = "" | J39: ary(37).key = "A_警告時間4" : ary(37).kind = SDK_AWAY_CARD : ary(37).disp = 6023 : ary(37).v = ""
A40: 38 | B40: A_警告時間5 | C40: 28 | D40: 6028 | E40: SDK_AWAY_CARD | F40: ary(38).key = "A_警告時間5" : | G40: ary(38).kind = SDK_AWAY_CARD : | H40: ary(38).disp = 6028 : | I40: ary(38).v = "" | J40: ary(38).key = "A_警告時間5" : ary(38).kind = SDK_AWAY_CARD : ary(38).disp = 6028 : ary(38).v = ""
A41: 39 | B41: A_警告時間6 | C41: 33 | D41: 6033 | E41: SDK_AWAY_CARD | F41: ary(39).key = "A_警告時間6" : | G41: ary(39).kind = SDK_AWAY_CARD : | H41: ary(39).disp = 6033 : | I41: ary(39).v = "" | J41: ary(39).key = "A_警告時間6" : ary(39).kind = SDK_AWAY_CARD : ary(39).disp = 6033 : ary(39).v = ""
A42: 40 | B42: A_警告時間7 | C42: 38 | D42: 6038 | E42: SDK_AWAY_CARD | F42: ary(40).key = "A_警告時間7" : | G42: ary(40).kind = SDK_AWAY_CARD : | H42: ary(40).disp = 6038 : | I42: ary(40).v = "" | J42: ary(40).key = "A_警告時間7" : ary(40).kind = SDK_AWAY_CARD : ary(40).disp = 6038 : ary(40).v = ""
A43: 41 | B43: A_警告理由0 | C43: 4 | D43: 6004 | E43: SDK_AWAY_CARD | F43: ary(41).key = "A_警告理由0" : | G43: ary(41).kind = SDK_AWAY_CARD : | H43: ary(41).disp = 6004 : | I43: ary(41).v = "" | J43: ary(41).key = "A_警告理由0" : ary(41).kind = SDK_AWAY_CARD : ary(41).disp = 6004 : ary(41).v = ""
A44: 42 | B44: A_警告理由1 | C44: 9 | D44: 6009 | E44: SDK_AWAY_CARD | F44: ary(42).key = "A_警告理由1" : | G44: ary(42).kind = SDK_AWAY_CARD : | H44: ary(42).disp = 6009 : | I44: ary(42).v = "" | J44: ary(42).key = "A_警告理由1" : ary(42).kind = SDK_AWAY_CARD : ary(42).disp = 6009 : ary(42).v = ""
A45: 43 | B45: A_警告理由2 | C45: 14 | D45: 6014 | E45: SDK_AWAY_CARD | F45: ary(43).key = "A_警告理由2" : | G45: ary(43).kind = SDK_AWAY_CARD : | H45: ary(43).disp = 6014 : | I45: ary(43).v = "" | J45: ary(43).key = "A_警告理由2" : ary(43).kind = SDK_AWAY_CARD : ary(43).disp = 6014 : ary(43).v = ""
A46: 44 | B46: A_警告理由3 | C46: 19 | D46: 6019 | E46: SDK_AWAY_CARD | F46: ary(44).key = "A_警告理由3" : | G46: ary(44).kind = SDK_AWAY_CARD : | H46: ary(44).disp = 6019 : | I46: ary(44).v = "" | J46: ary(44).key = "A_警告理由3" : ary(44).kind = SDK_AWAY_CARD : ary(44).disp = 6019 : ary(44).v = ""
A47: 45 | B47: A_警告理由4 | C47: 24 | D47: 6024 | E47: SDK_AWAY_CARD | F47: ary(45).key = "A_警告理由4" : | G47: ary(45).kind = SDK_AWAY_CARD : | H47: ary(45).disp = 6024 : | I47: ary(45).v = "" | J47: ary(45).key = "A_警告理由4" : ary(45).kind = SDK_AWAY_CARD : ary(45).disp = 6024 : ary(45).v = ""
A48: 46 | B48: A_警告理由5 | C48: 29 | D48: 6029 | E48: SDK_AWAY_CARD | F48: ary(46).key = "A_警告理由5" : | G48: ary(46).kind = SDK_AWAY_CARD : | H48: ary(46).disp = 6029 : | I48: ary(46).v = "" | J48: ary(46).key = "A_警告理由5" : ary(46).kind = SDK_AWAY_CARD : ary(46).disp = 6029 : ary(46).v = ""
A49: 47 | B49: A_警告理由6 | C49: 34 | D49: 6034 | E49: SDK_AWAY_CARD | F49: ary(47).key = "A_警告理由6" : | G49: ary(47).kind = SDK_AWAY_CARD : | H49: ary(47).disp = 6034 : | I49: ary(47).v = "" | J49: ary(47).key = "A_警告理由6" : ary(47).kind = SDK_AWAY_CARD : ary(47).disp = 6034 : ary(47).v = ""
A50: 48 | B50: A_警告理由7 | C50: 39 | D50: 6039 | E50: SDK_AWAY_CARD | F50: ary(48).key = "A_警告理由7" : | G50: ary(48).kind = SDK_AWAY_CARD : | H50: ary(48).disp = 6039 : | I50: ary(48).v = "" | J50: ary(48).key = "A_警告理由7" : ary(48).kind = SDK_AWAY_CARD : ary(48).disp = 6039 : ary(48).v = ""
A51: 49 | B51: A_対象者0 | C51: 0 | D51: 6000 | E51: SDK_AWAY_CARD | F51: ary(49).key = "A_対象者0" : | G51: ary(49).kind = SDK_AWAY_CARD : | H51: ary(49).disp = 6000 : | I51: ary(49).v = "" | J51: ary(49).key = "A_対象者0" : ary(49).kind = SDK_AWAY_CARD : ary(49).disp = 6000 : ary(49).v = ""
A52: 50 | B52: A_対象者1 | C52: 5 | D52: 6005 | E52: SDK_AWAY_CARD | F52: ary(50).key = "A_対象者1" : | G52: ary(50).kind = SDK_AWAY_CARD : | H52: ary(50).disp = 6005 : | I52: ary(50).v = "" | J52: ary(50).key = "A_対象者1" : ary(50).kind = SDK_AWAY_CARD : ary(50).disp = 6005 : ary(50).v = ""
A53: 51 | B53: A_対象者2 | C53: 10 | D53: 6010 | E53: SDK_AWAY_CARD | F53: ary(51).key = "A_対象者2" : | G53: ary(51).kind = SDK_AWAY_CARD : | H53: ary(51).disp = 6010 : | I53: ary(51).v = "" | J53: ary(51).key = "A_対象者2" : ary(51).kind = SDK_AWAY_CARD : ary(51).disp = 6010 : ary(51).v = ""
A54: 52 | B54: A_対象者3 | C54: 15 | D54: 6015 | E54: SDK_AWAY_CARD | F54: ary(52).key = "A_対象者3" : | G54: ary(52).kind = SDK_AWAY_CARD : | H54: ary(52).disp = 6015 : | I54: ary(52).v = "" | J54: ary(52).key = "A_対象者3" : ary(52).kind = SDK_AWAY_CARD : ary(52).disp = 6015 : ary(52).v = ""
A55: 53 | B55: A_対象者4 | C55: 20 | D55: 6020 | E55: SDK_AWAY_CARD | F55: ary(53).key = "A_対象者4" : | G55: ary(53).kind = SDK_AWAY_CARD : | H55: ary(53).disp = 6020 : | I55: ary(53).v = "" | J55: ary(53).key = "A_対象者4" : ary(53).kind = SDK_AWAY_CARD : ary(53).disp = 6020 : ary(53).v = ""
A56: 54 | B56: A_対象者5 | C56: 25 | D56: 6025 | E56: SDK_AWAY_CARD | F56: ary(54).key = "A_対象者5" : | G56: ary(54).kind = SDK_AWAY_CARD : | H56: ary(54).disp = 6025 : | I56: ary(54).v = "" | J56: ary(54).key = "A_対象者5" : ary(54).kind = SDK_AWAY_CARD : ary(54).disp = 6025 : ary(54).v = ""
A57: 55 | B57: A_対象者6 | C57: 30 | D57: 6030 | E57: SDK_AWAY_CARD | F57: ary(55).key = "A_対象者6" : | G57: ary(55).kind = SDK_AWAY_CARD : | H57: ary(55).disp = 6030 : | I57: ary(55).v = "" | J57: ary(55).key = "A_対象者6" : ary(55).kind = SDK_AWAY_CARD : ary(55).disp = 6030 : ary(55).v = ""
A58: 56 | B58: A_対象者7 | C58: 35 | D58: 6035 | E58: SDK_AWAY_CARD | F58: ary(56).key = "A_対象者7" : | G58: ary(56).kind = SDK_AWAY_CARD : | H58: ary(56).disp = 6035 : | I58: ary(56).v = "" | J58: ary(56).key = "A_対象者7" : ary(56).kind = SDK_AWAY_CARD : ary(56).disp = 6035 : ary(56).v = ""
A59: 57 | B59: A_対象者の背番号0 | C59: 1 | D59: 6001 | E59: SDK_AWAY_CARD | F59: ary(57).key = "A_対象者の背番号0" : | G59: ary(57).kind = SDK_AWAY_CARD : | H59: ary(57).disp = 6001 : | I59: ary(57).v = "" | J59: ary(57).key = "A_対象者の背番号0" : ary(57).kind = SDK_AWAY_CARD : ary(57).disp = 6001 : ary(57).v = ""
A60: 58 | B60: A_対象者の背番号1 | C60: 6 | D60: 6006 | E60: SDK_AWAY_CARD | F60: ary(58).key = "A_対象者の背番号1" : | G60: ary(58).kind = SDK_AWAY_CARD : | H60: ary(58).disp = 6006 : | I60: ary(58).v = "" | J60: ary(58).key = "A_対象者の背番号1" : ary(58).kind = SDK_AWAY_CARD : ary(58).disp = 6006 : ary(58).v = ""
A61: 59 | B61: A_対象者の背番号2 | C61: 11 | D61: 6011 | E61: SDK_AWAY_CARD | F61: ary(59).key = "A_対象者の背番号2" : | G61: ary(59).kind = SDK_AWAY_CARD : | H61: ary(59).disp = 6011 : | I61: ary(59).v = "" | J61: ary(59).key = "A_対象者の背番号2" : ary(59).kind = SDK_AWAY_CARD : ary(59).disp = 6011 : ary(59).v = ""
A62: 60 | B62: A_対象者の背番号3 | C62: 16 | D62: 6016 | E62: SDK_AWAY_CARD | F62: ary(60).key = "A_対象者の背番号3" : | G62: ary(60).kind = SDK_AWAY_CARD : | H62: ary(60).disp = 6016 : | I62: ary(60).v = "" | J62: ary(60).key = "A_対象者の背番号3" : ary(60).kind = SDK_AWAY_CARD : ary(60).disp = 6016 : ary(60).v = ""
A63: 61 | B63: A_対象者の背番号4 | C63: 21 | D63: 6021 | E63: SDK_AWAY_CARD | F63: ary(61).key = "A_対象者の背番号4" : | G63: ary(61).kind = SDK_AWAY_CARD : | H63: ary(61).disp = 6021 : | I63: ary(61).v = "" | J63: ary(61).key = "A_対象者の背番号4" : ary(61).kind = SDK_AWAY_CARD : ary(61).disp = 6021 : ary(61).v = ""
A64: 62 | B64: A_対象者の背番号5 | C64: 26 | D64: 6026 | E64: SDK_AWAY_CARD | F64: ary(62).key = "A_対象者の背番号5" : | G64: ary(62).kind = SDK_AWAY_CARD : | H64: ary(62).disp = 6026 : | I64: ary(62).v = "" | J64: ary(62).key = "A_対象者の背番号5" : ary(62).kind = SDK_AWAY_CARD : ary(62).disp = 6026 : ary(62).v = ""
A65: 63 | B65: A_対象者の背番号6 | C65: 31 | D65: 6031 | E65: SDK_AWAY_CARD | F65: ary(63).key = "A_対象者の背番号6" : | G65: ary(63).kind = SDK_AWAY_CARD : | H65: ary(63).disp = 6031 : | I65: ary(63).v = "" | J65: ary(63).key = "A_対象者の背番号6" : ary(63).kind = SDK_AWAY_CARD : ary(63).disp = 6031 : ary(63).v = ""
A66: 64 | B66: A_対象者の背番号7 | C66: 36 | D66: 6036 | E66: SDK_AWAY_CARD | F66: ary(64).key = "A_対象者の背番号7" : | G66: ary(64).kind = SDK_AWAY_CARD : | H66: ary(64).disp = 6036 : | I66: ary(64).v = "" | J66: ary(64).key = "A_対象者の背番号7" : ary(64).kind = SDK_AWAY_CARD : ary(64).disp = 6036 : ary(64).v = ""
A67: 65 | B67: A_直接FK延長後半 | C67: 27 | D67: 3027 | E67: SDK_AWAY_TEAM | F67: ="ary("&A67&").key = """ &B67&""" : " -> ary(65).key = "A_直接FK延長後半" : | G67: ="ary("&A67&").kind = " &E67&" : " -> ary(65).kind = SDK_AWAY_TEAM : | H67: ="ary("&A67&").disp = " &(HSH_VKIND(E67)+C67)&" : " -> ary(65).disp = 3027 : | I67: ="ary("&A67&").v = """"" -> ary(65).v = "" | J67: =F67&G67&H67&I67 -> ary(65).key = "A_直接FK延長後半" : ary(65).kind = SDK_AWAY_TEAM : ary(65).disp = 3027 : ary(65).v = ""
A68: 66 | B68: A_直接FK延長前半 | C68: 26 | D68: 3026 | E68: SDK_AWAY_TEAM | F68: ary(66).key = "A_直接FK延長前半" : | G68: ary(66).kind = SDK_AWAY_TEAM : | H68: ary(66).disp = 3026 : | I68: ary(66).v = "" | J68: ary(66).key = "A_直接FK延長前半" : ary(66).kind = SDK_AWAY_TEAM : ary(66).disp = 3026 : ary(66).v = ""
A69: 67 | B69: A_直接FK計 | C69: 23 | D69: 3023 | E69: SDK_AWAY_TEAM | F69: ary(67).key = "A_直接FK計" : | G69: ary(67).kind = SDK_AWAY_TEAM : | H69: ary(67).disp = 3023 : | I69: ary(67).v = "" | J69: ary(67).key = "A_直接FK計" : ary(67).kind = SDK_AWAY_TEAM : ary(67).disp = 3023 : ary(67).v = ""
A70: 68 | B70: A_直接FK後半 | C70: 25 | D70: 3025 | E70: SDK_AWAY_TEAM | F70: ary(68).key = "A_直接FK後半" : | G70: ary(68).kind = SDK_AWAY_TEAM : | H70: ary(68).disp = 3025 : | I70: ary(68).v = "" | J70: ary(68).key = "A_直接FK後半" : ary(68).kind = SDK_AWAY_TEAM : ary(68).disp = 3025 : ary(68).v = ""
A71: 69 | B71: A_直接FK前半 | C71: 24 | D71: 3024 | E71: SDK_AWAY_TEAM | F71: ary(69).key = "A_直接FK前半" : | G71: ary(69).kind = SDK_AWAY_TEAM : | H71: ary(69).disp = 3024 : | I71: ary(69).v = "" | J71: ary(69).key = "A_直接FK前半" : ary(69).kind = SDK_AWAY_TEAM : ary(69).disp = 3024 : ary(69).v = ""
A72: 70 | B72: A監督名 | C72: 2 | D72: 3002 | E72: SDK_AWAY_TEAM | F72: ary(70).key = "A監督名" : | G72: ary(70).kind = SDK_AWAY_TEAM : | H72: ary(70).disp = 3002 : | I72: ary(70).v = "" | J72: ary(70).key = "A監督名" : ary(70).kind = SDK_AWAY_TEAM : ary(70).disp = 3002 : ary(70).v = ""
A73: 71 | B73: Aキックオフ情報 | C73: 1 | D73: 3001 | E73: SDK_AWAY_TEAM | F73: ary(71).key = "Aキックオフ情報" : | G73: ary(71).kind = SDK_AWAY_TEAM : | H73: ary(71).disp = 3001 : | I73: ary(71).v = "" | J73: ary(71).key = "Aキックオフ情報" : ary(71).kind = SDK_AWAY_TEAM : ary(71).disp = 3001 : ary(71).v = ""
A74: 72 | B74: Aチーム名 | C74: 0 | D74: 3000 | E74: SDK_AWAY_TEAM | F74: ary(72).key = "Aチーム名" : | G74: ary(72).kind = SDK_AWAY_TEAM : | H74: ary(72).disp = 3000 : | I74: ary(72).v = "" | J74: ary(72).key = "Aチーム名" : ary(72).kind = SDK_AWAY_TEAM : ary(72).disp = 3000 : ary(72).v = ""
A75: 73 | B75: A控_シュート延長後半0 | C75: 8 | D75: 5008 | E75: SDK_AWAY_PLAYER_SUB | F75: ary(73).key = "A控_シュート延長後半0" : | G75: ary(73).kind = SDK_AWAY_PLAYER_SUB : | H75: ary(73).disp = 5008 : | I75: ary(73).v = "" | J75: ary(73).key = "A控_シュート延長後半0" : ary(73).kind = SDK_AWAY_PLAYER_SUB : ary(73).disp = 5008 : ary(73).v = ""
A76: 74 | B76: A控_シュート延長後半1 | C76: 19 | D76: 5019 | E76: SDK_AWAY_PLAYER_SUB | F76: ary(74).key = "A控_シュート延長後半1" : | G76: ary(74).kind = SDK_AWAY_PLAYER_SUB : | H76: ary(74).disp = 5019 : | I76: ary(74).v = "" | J76: ary(74).key = "A控_シュート延長後半1" : ary(74).kind = SDK_AWAY_PLAYER_SUB : ary(74).disp = 5019 : ary(74).v = ""
A77: 75 | B77: A控_シュート延長後半2 | C77: 30 | D77: 5030 | E77: SDK_AWAY_PLAYER_SUB | F77: ary(75).key = "A控_シュート延長後半2" : | G77: ary(75).kind = SDK_AWAY_PLAYER_SUB : | H77: ary(75).disp = 5030 : | I77: ary(75).v = "" | J77: ary(75).key = "A控_シュート延長後半2" : ary(75).kind = SDK_AWAY_PLAYER_SUB : ary(75).disp = 5030 : ary(75).v = ""
A78: 76 | B78: A控_シュート延長後半3 | C78: 41 | D78: 5041 | E78: SDK_AWAY_PLAYER_SUB | F78: ary(76).key = "A控_シュート延長後半3" : | G78: ary(76).kind = SDK_AWAY_PLAYER_SUB : | H78: ary(76).disp = 5041 : | I78: ary(76).v = "" | J78: ary(76).key = "A控_シュート延長後半3" : ary(76).kind = SDK_AWAY_PLAYER_SUB : ary(76).disp = 5041 : ary(76).v = ""
A79: 77 | B79: A控_シュート延長後半4 | C79: 52 | D79: 5052 | E79: SDK_AWAY_PLAYER_SUB | F79: ary(77).key = "A控_シュート延長後半4" : | G79: ary(77).kind = SDK_AWAY_PLAYER_SUB : | H79: ary(77).disp = 5052 : | I79: ary(77).v = "" | J79: ary(77).key = "A控_シュート延長後半4" : ary(77).kind = SDK_AWAY_PLAYER_SUB : ary(77).disp = 5052 : ary(77).v = ""
A80: 78 | B80: A控_シュート延長後半5 | C80: 63 | D80: 5063 | E80: SDK_AWAY_PLAYER_SUB | F80: ary(78).key = "A控_シュート延長後半5" : | G80: ary(78).kind = SDK_AWAY_PLAYER_SUB : | H80: ary(78).disp = 5063 : | I80: ary(78).v = "" | J80: ary(78).key = "A控_シュート延長後半5" : ary(78).kind = SDK_AWAY_PLAYER_SUB : ary(78).disp = 5063 : ary(78).v = ""
A81: 79 | B81: A控_シュート延長後半6 | C81: 74 | D81: 5074 | E81: SDK_AWAY_PLAYER_SUB | F81: ary(79).key = "A控_シュート延長後半6" : | G81: ary(79).kind = SDK_AWAY_PLAYER_SUB : | H81: ary(79).disp = 5074 : | I81: ary(79).v = "" | J81: ary(79).key = "A控_シュート延長後半6" : ary(79).kind = SDK_AWAY_PLAYER_SUB : ary(79).disp = 5074 : ary(79).v = ""
A82: 80 | B82: A控_シュート延長前半0 | C82: 7 | D82: 5007 | E82: SDK_AWAY_PLAYER_SUB | F82: ary(80).key = "A控_シュート延長前半0" : | G82: ary(80).kind = SDK_AWAY_PLAYER_SUB : | H82: ary(80).disp = 5007 : | I82: ary(80).v = "" | J82: ary(80).key = "A控_シュート延長前半0" : ary(80).kind = SDK_AWAY_PLAYER_SUB : ary(80).disp = 5007 : ary(80).v = ""
A83: 81 | B83: A控_シュート延長前半1 | C83: 18 | D83: 5018 | E83: SDK_AWAY_PLAYER_SUB | F83: ary(81).key = "A控_シュート延長前半1" : | G83: ary(81).kind = SDK_AWAY_PLAYER_SUB : | H83: ary(81).disp = 5018 : | I83: ary(81).v = "" | J83: ary(81).key = "A控_シュート延長前半1" : ary(81).kind = SDK_AWAY_PLAYER_SUB : ary(81).disp = 5018 : ary(81).v = ""
A84: 82 | B84: A控_シュート延長前半2 | C84: 29 | D84: 5029 | E84: SDK_AWAY_PLAYER_SUB | F84: ary(82).key = "A控_シュート延長前半2" : | G84: ary(82).kind = SDK_AWAY_PLAYER_SUB : | H84: ary(82).disp = 5029 : | I84: ary(82).v = "" | J84: ary(82).key = "A控_シュート延長前半2" : ary(82).kind = SDK_AWAY_PLAYER_SUB : ary(82).disp = 5029 : ary(82).v = ""
A85: 83 | B85: A控_シュート延長前半3 | C85: 40 | D85: 5040 | E85: SDK_AWAY_PLAYER_SUB | F85: ary(83).key = "A控_シュート延長前半3" : | G85: ary(83).kind = SDK_AWAY_PLAYER_SUB : | H85: ary(83).disp = 5040 : | I85: ary(83).v = "" | J85: ary(83).key = "A控_シュート延長前半3" : ary(83).kind = SDK_AWAY_PLAYER_SUB : ary(83).disp = 5040 : ary(83).v = ""
A86: 84 | B86: A控_シュート延長前半4 | C86: 51 | D86: 5051 | E86: SDK_AWAY_PLAYER_SUB | F86: ary(84).key = "A控_シュート延長前半4" : | G86: ary(84).kind = SDK_AWAY_PLAYER_SUB : | H86: ary(84).disp = 5051 : | I86: ary(84).v = "" | J86: ary(84).key = "A控_シュート延長前半4" : ary(84).kind = SDK_AWAY_PLAYER_SUB : ary(84).disp = 5051 : ary(84).v = ""
A87: 85 | B87: A控_シュート延長前半5 | C87: 62 | D87: 5062 | E87: SDK_AWAY_PLAYER_SUB | F87: ary(85).key = "A控_シュート延長前半5" : | G87: ary(85).kind = SDK_AWAY_PLAYER_SUB : | H87: ary(85).disp = 5062 : | I87: ary(85).v = "" | J87: ary(85).key = "A控_シュート延長前半5" : ary(85).kind = SDK_AWAY_PLAYER_SUB : ary(85).disp = 5062 : ary(85).v = ""
A88: 86 | B88: A控_シュート延長前半6 | C88: 73 | D88: 5073 | E88: SDK_AWAY_PLAYER_SUB | F88: ary(86).key = "A控_シュート延長前半6" : | G88: ary(86).kind = SDK_AWAY_PLAYER_SUB : | H88: ary(86).disp = 5073 : | I88: ary(86).v = "" | J88: ary(86).key = "A控_シュート延長前半6" : ary(86).kind = SDK_AWAY_PLAYER_SUB : ary(86).disp = 5073 : ary(86).v = ""
A89: 87 | B89: A控_シュート計0 | C89: 4 | D89: 5004 | E89: SDK_AWAY_PLAYER_SUB | F89: ary(87).key = "A控_シュート計0" : | G89: ary(87).kind = SDK_AWAY_PLAYER_SUB : | H89: ary(87).disp = 5004 : | I89: ary(87).v = "" | J89: ary(87).key = "A控_シュート計0" : ary(87).kind = SDK_AWAY_PLAYER_SUB : ary(87).disp = 5004 : ary(87).v = ""
A90: 88 | B90: A控_シュート計1 | C90: 15 | D90: 5015 | E90: SDK_AWAY_PLAYER_SUB | F90: ary(88).key = "A控_シュート計1" : | G90: ary(88).kind = SDK_AWAY_PLAYER_SUB : | H90: ary(88).disp = 5015 : | I90: ary(88).v = "" | J90: ary(88).key = "A控_シュート計1" : ary(88).kind = SDK_AWAY_PLAYER_SUB : ary(88).disp = 5015 : ary(88).v = ""
A91: 89 | B91: A控_シュート計2 | C91: 26 | D91: 5026 | E91: SDK_AWAY_PLAYER_SUB | F91: ary(89).key = "A控_シュート計2" : | G91: ary(89).kind = SDK_AWAY_PLAYER_SUB : | H91: ary(89).disp = 5026 : | I91: ary(89).v = "" | J91: ary(89).key = "A控_シュート計2" : ary(89).kind = SDK_AWAY_PLAYER_SUB : ary(89).disp = 5026 : ary(89).v = ""
A92: 90 | B92: A控_シュート計3 | C92: 37 | D92: 5037 | E92: SDK_AWAY_PLAYER_SUB | F92: ary(90).key = "A控_シュート計3" : | G92: ary(90).kind = SDK_AWAY_PLAYER_SUB : | H92: ary(90).disp = 5037 : | I92: ary(90).v = "" | J92: ary(90).key = "A控_シュート計3" : ary(90).kind = SDK_AWAY_PLAYER_SUB : ary(90).disp = 5037 : ary(90).v = ""
A93: 91 | B93: A控_シュート計4 | C93: 48 | D93: 5048 | E93: SDK_AWAY_PLAYER_SUB | F93: ary(91).key = "A控_シュート計4" : | G93: ary(91).kind = SDK_AWAY_PLAYER_SUB : | H93: ary(91).disp = 5048 : | I93: ary(91).v = "" | J93: ary(91).key = "A控_シュート計4" : ary(91).kind = SDK_AWAY_PLAYER_SUB : ary(91).disp = 5048 : ary(91).v = ""
A94: 92 | B94: A控_シュート計5 | C94: 59 | D94: 5059 | E94: SDK_AWAY_PLAYER_SUB | F94: ary(92).key = "A控_シュート計5" : | G94: ary(92).kind = SDK_AWAY_PLAYER_SUB : | H94: ary(92).disp = 5059 : | I94: ary(92).v = "" | J94: ary(92).key = "A控_シュート計5" : ary(92).kind = SDK_AWAY_PLAYER_SUB : ary(92).disp = 5059 : ary(92).v = ""
A95: 93 | B95: A控_シュート計6 | C95: 70 | D95: 5070 | E95: SDK_AWAY_PLAYER_SUB | F95: ary(93).key = "A控_シュート計6" : | G95: ary(93).kind = SDK_AWAY_PLAYER_SUB : | H95: ary(93).disp = 5070 : | I95: ary(93).v = "" | J95: ary(93).key = "A控_シュート計6" : ary(93).kind = SDK_AWAY_PLAYER_SUB : ary(93).disp = 5070 : ary(93).v = ""
A96: 94 | B96: A控_シュート後半0 | C96: 6 | D96: 5006 | E96: SDK_AWAY_PLAYER_SUB | F96: ary(94).key = "A控_シュート後半0" : | G96: ary(94).kind = SDK_AWAY_PLAYER_SUB : | H96: ary(94).disp = 5006 : | I96: ary(94).v = "" | J96: ary(94).key = "A控_シュート後半0" : ary(94).kind = SDK_AWAY_PLAYER_SUB : ary(94).disp = 5006 : ary(94).v = ""
A97: 95 | B97: A控_シュート後半1 | C97: 17 | D97: 5017 | E97: SDK_AWAY_PLAYER_SUB | F97: ary(95).key = "A控_シュート後半1" : | G97: ary(95).kind = SDK_AWAY_PLAYER_SUB : | H97: ary(95).disp = 5017 : | I97: ary(95).v = "" | J97: ary(95).key = "A控_シュート後半1" : ary(95).kind = SDK_AWAY_PLAYER_SUB : ary(95).disp = 5017 : ary(95).v = ""
A98: 96 | B98: A控_シュート後半2 | C98: 28 | D98: 5028 | E98: SDK_AWAY_PLAYER_SUB | F98: ary(96).key = "A控_シュート後半2" : | G98: ary(96).kind = SDK_AWAY_PLAYER_SUB : | H98: ary(96).disp = 5028 : | I98: ary(96).v = "" | J98: ary(96).key = "A控_シュート後半2" : ary(96).kind = SDK_AWAY_PLAYER_SUB : ary(96).disp = 5028 : ary(96).v = ""
A99: 97 | B99: A控_シュート後半3 | C99: 39 | D99: 5039 | E99: SDK_AWAY_PLAYER_SUB | F99: ary(97).key = "A控_シュート後半3" : | G99: ary(97).kind = SDK_AWAY_PLAYER_SUB : | H99: ary(97).disp = 5039 : | I99: ary(97).v = "" | J99: ary(97).key = "A控_シュート後半3" : ary(97).kind = SDK_AWAY_PLAYER_SUB : ary(97).disp = 5039 : ary(97).v = ""
A100: 98 | B100: A控_シュート後半4 | C100: 50 | D100: 5050 | E100: SDK_AWAY_PLAYER_SUB | F100: ary(98).key = "A控_シュート後半4" : | G100: ary(98).kind = SDK_AWAY_PLAYER_SUB : | H100: ary(98).disp = 5050 : | I100: ary(98).v = "" | J100: ary(98).key = "A控_シュート後半4" : ary(98).kind = SDK_AWAY_PLAYER_SUB : ary(98).disp = 5050 : ary(98).v = ""
A101: 99 | B101: A控_シュート後半5 | C101: 61 | D101: 5061 | E101: SDK_AWAY_PLAYER_SUB | F101: ary(99).key = "A控_シュート後半5" : | G101: ary(99).kind = SDK_AWAY_PLAYER_SUB : | H101: ary(99).disp = 5061 : | I101: ary(99).v = "" | J101: ary(99).key = "A控_シュート後半5" : ary(99).kind = SDK_AWAY_PLAYER_SUB : ary(99).disp = 5061 : ary(99).v = ""
A102: 100 | B102: A控_シュート後半6 | C102: 72 | D102: 5072 | E102: SDK_AWAY_PLAYER_SUB | F102: ary(100).key = "A控_シュート後半6" : | G102: ary(100).kind = SDK_AWAY_PLAYER_SUB : | H102: ary(100).disp = 5072 : | I102: ary(100).v = "" | J102: ary(100).key = "A控_シュート後半6" : ary(100).kind = SDK_AWAY_PLAYER_SUB : ary(100).disp = 5072 : ary(100).v = ""
A103: 101 | B103: A控_シュート前半0 | C103: 5 | D103: 5005 | E103: SDK_AWAY_PLAYER_SUB | F103: ary(101).key = "A控_シュート前半0" : | G103: ary(101).kind = SDK_AWAY_PLAYER_SUB : | H103: ary(101).disp = 5005 : | I103: ary(101).v = "" | J103: ary(101).key = "A控_シュート前半0" : ary(101).kind = SDK_AWAY_PLAYER_SUB : ary(101).disp = 5005 : ary(101).v = ""
A104: 102 | B104: A控_シュート前半1 | C104: 16 | D104: 5016 | E104: SDK_AWAY_PLAYER_SUB | F104: ary(102).key = "A控_シュート前半1" : | G104: ary(102).kind = SDK_AWAY_PLAYER_SUB : | H104: ary(102).disp = 5016 : | I104: ary(102).v = "" | J104: ary(102).key = "A控_シュート前半1" : ary(102).kind = SDK_AWAY_PLAYER_SUB : ary(102).disp = 5016 : ary(102).v = ""
A105: 103 | B105: A控_シュート前半2 | C105: 27 | D105: 5027 | E105: SDK_AWAY_PLAYER_SUB | F105: ary(103).key = "A控_シュート前半2" : | G105: ary(103).kind = SDK_AWAY_PLAYER_SUB : | H105: ary(103).disp = 5027 : | I105: ary(103).v = "" | J105: ary(103).key = "A控_シュート前半2" : ary(103).kind = SDK_AWAY_PLAYER_SUB : ary(103).disp = 5027 : ary(103).v = ""
A106: 104 | B106: A控_シュート前半3 | C106: 38 | D106: 5038 | E106: SDK_AWAY_PLAYER_SUB | F106: ary(104).key = "A控_シュート前半3" : | G106: ary(104).kind = SDK_AWAY_PLAYER_SUB : | H106: ary(104).disp = 5038 : | I106: ary(104).v = "" | J106: ary(104).key = "A控_シュート前半3" : ary(104).kind = SDK_AWAY_PLAYER_SUB : ary(104).disp = 5038 : ary(104).v = ""
A107: 105 | B107: A控_シュート前半4 | C107: 49 | D107: 5049 | E107: SDK_AWAY_PLAYER_SUB | F107: ary(105).key = "A控_シュート前半4" : | G107: ary(105).kind = SDK_AWAY_PLAYER_SUB : | H107: ary(105).disp = 5049 : | I107: ary(105).v = "" | J107: ary(105).key = "A控_シュート前半4" : ary(105).kind = SDK_AWAY_PLAYER_SUB : ary(105).disp = 5049 : ary(105).v = ""
A108: 106 | B108: A控_シュート前半5 | C108: 60 | D108: 5060 | E108: SDK_AWAY_PLAYER_SUB | F108: ary(106).key = "A控_シュート前半5" : | G108: ary(106).kind = SDK_AWAY_PLAYER_SUB : | H108: ary(106).disp = 5060 : | I108: ary(106).v = "" | J108: ary(106).key = "A控_シュート前半5" : ary(106).kind = SDK_AWAY_PLAYER_SUB : ary(106).disp = 5060 : ary(106).v = ""
A109: 107 | B109: A控_シュート前半6 | C109: 71 | D109: 5071 | E109: SDK_AWAY_PLAYER_SUB | F109: ary(107).key = "A控_シュート前半6" : | G109: ary(107).kind = SDK_AWAY_PLAYER_SUB : | H109: ary(107).disp = 5071 : | I109: ary(107).v = "" | J109: ary(107).key = "A控_シュート前半6" : ary(107).kind = SDK_AWAY_PLAYER_SUB : ary(107).disp = 5071 : ary(107).v = ""
A110: 108 | B110: A控_位置0 | C110: 2 | D110: 5002 | E110: SDK_AWAY_PLAYER_SUB | F110: ary(108).key = "A控_位置0" : | G110: ary(108).kind = SDK_AWAY_PLAYER_SUB : | H110: ary(108).disp = 5002 : | I110: ary(108).v = "" | J110: ary(108).key = "A控_位置0" : ary(108).kind = SDK_AWAY_PLAYER_SUB : ary(108).disp = 5002 : ary(108).v = ""
A111: 109 | B111: A控_位置1 | C111: 13 | D111: 5013 | E111: SDK_AWAY_PLAYER_SUB | F111: ary(109).key = "A控_位置1" : | G111: ary(109).kind = SDK_AWAY_PLAYER_SUB : | H111: ary(109).disp = 5013 : | I111: ary(109).v = "" | J111: ary(109).key = "A控_位置1" : ary(109).kind = SDK_AWAY_PLAYER_SUB : ary(109).disp = 5013 : ary(109).v = ""
A112: 110 | B112: A控_位置2 | C112: 24 | D112: 5024 | E112: SDK_AWAY_PLAYER_SUB | F112: ary(110).key = "A控_位置2" : | G112: ary(110).kind = SDK_AWAY_PLAYER_SUB : | H112: ary(110).disp = 5024 : | I112: ary(110).v = "" | J112: ary(110).key = "A控_位置2" : ary(110).kind = SDK_AWAY_PLAYER_SUB : ary(110).disp = 5024 : ary(110).v = ""
A113: 111 | B113: A控_位置3 | C113: 35 | D113: 5035 | E113: SDK_AWAY_PLAYER_SUB | F113: ary(111).key = "A控_位置3" : | G113: ary(111).kind = SDK_AWAY_PLAYER_SUB : | H113: ary(111).disp = 5035 : | I113: ary(111).v = "" | J113: ary(111).key = "A控_位置3" : ary(111).kind = SDK_AWAY_PLAYER_SUB : ary(111).disp = 5035 : ary(111).v = ""
A114: 112 | B114: A控_位置4 | C114: 46 | D114: 5046 | E114: SDK_AWAY_PLAYER_SUB | F114: ary(112).key = "A控_位置4" : | G114: ary(112).kind = SDK_AWAY_PLAYER_SUB : | H114: ary(112).disp = 5046 : | I114: ary(112).v = "" | J114: ary(112).key = "A控_位置4" : ary(112).kind = SDK_AWAY_PLAYER_SUB : ary(112).disp = 5046 : ary(112).v = ""
A115: 113 | B115: A控_位置5 | C115: 57 | D115: 5057 | E115: SDK_AWAY_PLAYER_SUB | F115: ary(113).key = "A控_位置5" : | G115: ary(113).kind = SDK_AWAY_PLAYER_SUB : | H115: ary(113).disp = 5057 : | I115: ary(113).v = "" | J115: ary(113).key = "A控_位置5" : ary(113).kind = SDK_AWAY_PLAYER_SUB : ary(113).disp = 5057 : ary(113).v = ""
A116: 114 | B116: A控_位置6 | C116: 68 | D116: 5068 | E116: SDK_AWAY_PLAYER_SUB | F116: ary(114).key = "A控_位置6" : | G116: ary(114).kind = SDK_AWAY_PLAYER_SUB : | H116: ary(114).disp = 5068 : | I116: ary(114).v = "" | J116: ary(114).key = "A控_位置6" : ary(114).kind = SDK_AWAY_PLAYER_SUB : ary(114).disp = 5068 : ary(114).v = ""
A117: 115 | B117: A控_交代時間0 | C117: 10 | D117: 5010 | E117: SDK_AWAY_PLAYER_SUB | F117: ary(115).key = "A控_交代時間0" : | G117: ary(115).kind = SDK_AWAY_PLAYER_SUB : | H117: ary(115).disp = 5010 : | I117: ary(115).v = "" | J117: ary(115).key = "A控_交代時間0" : ary(115).kind = SDK_AWAY_PLAYER_SUB : ary(115).disp = 5010 : ary(115).v = ""
A118: 116 | B118: A控_交代時間1 | C118: 21 | D118: 5021 | E118: SDK_AWAY_PLAYER_SUB | F118: ary(116).key = "A控_交代時間1" : | G118: ary(116).kind = SDK_AWAY_PLAYER_SUB : | H118: ary(116).disp = 5021 : | I118: ary(116).v = "" | J118: ary(116).key = "A控_交代時間1" : ary(116).kind = SDK_AWAY_PLAYER_SUB : ary(116).disp = 5021 : ary(116).v = ""
A119: 117 | B119: A控_交代時間2 | C119: 32 | D119: 5032 | E119: SDK_AWAY_PLAYER_SUB | F119: ary(117).key = "A控_交代時間2" : | G119: ary(117).kind = SDK_AWAY_PLAYER_SUB : | H119: ary(117).disp = 5032 : | I119: ary(117).v = "" | J119: ary(117).key = "A控_交代時間2" : ary(117).kind = SDK_AWAY_PLAYER_SUB : ary(117).disp = 5032 : ary(117).v = ""
A120: 118 | B120: A控_交代時間3 | C120: 43 | D120: 5043 | E120: SDK_AWAY_PLAYER_SUB | F120: ary(118).key = "A控_交代時間3" : | G120: ary(118).kind = SDK_AWAY_PLAYER_SUB : | H120: ary(118).disp = 5043 : | I120: ary(118).v = "" | J120: ary(118).key = "A控_交代時間3" : ary(118).kind = SDK_AWAY_PLAYER_SUB : ary(118).disp = 5043 : ary(118).v = ""
A121: 119 | B121: A控_交代時間4 | C121: 54 | D121: 5054 | E121: SDK_AWAY_PLAYER_SUB | F121: ary(119).key = "A控_交代時間4" : | G121: ary(119).kind = SDK_AWAY_PLAYER_SUB : | H121: ary(119).disp = 5054 : | I121: ary(119).v = "" | J121: ary(119).key = "A控_交代時間4" : ary(119).kind = SDK_AWAY_PLAYER_SUB : ary(119).disp = 5054 : ary(119).v = ""
A122: 120 | B122: A控_交代時間5 | C122: 65 | D122: 5065 | E122: SDK_AWAY_PLAYER_SUB | F122: ary(120).key = "A控_交代時間5" : | G122: ary(120).kind = SDK_AWAY_PLAYER_SUB : | H122: ary(120).disp = 5065 : | I122: ary(120).v = "" | J122: ary(120).key = "A控_交代時間5" : ary(120).kind = SDK_AWAY_PLAYER_SUB : ary(120).disp = 5065 : ary(120).v = ""
A123: 121 | B123: A控_交代時間6 | C123: 76 | D123: 5076 | E123: SDK_AWAY_PLAYER_SUB | F123: ary(121).key = "A控_交代時間6" : | G123: ary(121).kind = SDK_AWAY_PLAYER_SUB : | H123: ary(121).disp = 5076 : | I123: ary(121).v = "" | J123: ary(121).key = "A控_交代時間6" : ary(121).kind = SDK_AWAY_PLAYER_SUB : ary(121).disp = 5076 : ary(121).v = ""
A124: 122 | B124: A控_交代背番号0 | C124: 9 | D124: 5009 | E124: SDK_AWAY_PLAYER_SUB | F124: ary(122).key = "A控_交代背番号0" : | G124: ary(122).kind = SDK_AWAY_PLAYER_SUB : | H124: ary(122).disp = 5009 : | I124: ary(122).v = "" | J124: ary(122).key = "A控_交代背番号0" : ary(122).kind = SDK_AWAY_PLAYER_SUB : ary(122).disp = 5009 : ary(122).v = ""
A125: 123 | B125: A控_交代背番号1 | C125: 20 | D125: 5020 | E125: SDK_AWAY_PLAYER_SUB | F125: ary(123).key = "A控_交代背番号1" : | G125: ary(123).kind = SDK_AWAY_PLAYER_SUB : | H125: ary(123).disp = 5020 : | I125: ary(123).v = "" | J125: ary(123).key = "A控_交代背番号1" : ary(123).kind = SDK_AWAY_PLAYER_SUB : ary(123).disp = 5020 : ary(123).v = ""
A126: 124 | B126: A控_交代背番号2 | C126: 31 | D126: 5031 | E126: SDK_AWAY_PLAYER_SUB | F126: ary(124).key = "A控_交代背番号2" : | G126: ary(124).kind = SDK_AWAY_PLAYER_SUB : | H126: ary(124).disp = 5031 : | I126: ary(124).v = "" | J126: ary(124).key = "A控_交代背番号2" : ary(124).kind = SDK_AWAY_PLAYER_SUB : ary(124).disp = 5031 : ary(124).v = ""
A127: 125 | B127: A控_交代背番号3 | C127: 42 | D127: 5042 | E127: SDK_AWAY_PLAYER_SUB | F127: ary(125).key = "A控_交代背番号3" : | G127: ary(125).kind = SDK_AWAY_PLAYER_SUB : | H127: ary(125).disp = 5042 : | I127: ary(125).v = "" | J127: ary(125).key = "A控_交代背番号3" : ary(125).kind = SDK_AWAY_PLAYER_SUB : ary(125).disp = 5042 : ary(125).v = ""
A128: 126 | B128: A控_交代背番号4 | C128: 53 | D128: 5053 | E128: SDK_AWAY_PLAYER_SUB | F128: ary(126).key = "A控_交代背番号4" : | G128: ary(126).kind = SDK_AWAY_PLAYER_SUB : | H128: ary(126).disp = 5053 : | I128: ary(126).v = "" | J128: ary(126).key = "A控_交代背番号4" : ary(126).kind = SDK_AWAY_PLAYER_SUB : ary(126).disp = 5053 : ary(126).v = ""
A129: 127 | B129: A控_交代背番号5 | C129: 64 | D129: 5064 | E129: SDK_AWAY_PLAYER_SUB | F129: ary(127).key = "A控_交代背番号5" : | G129: ary(127).kind = SDK_AWAY_PLAYER_SUB : | H129: ary(127).disp = 5064 : | I129: ary(127).v = "" | J129: ary(127).key = "A控_交代背番号5" : ary(127).kind = SDK_AWAY_PLAYER_SUB : ary(127).disp = 5064 : ary(127).v = ""
A130: 128 | B130: A控_交代背番号6 | C130: 75 | D130: 5075 | E130: SDK_AWAY_PLAYER_SUB | F130: ary(128).key = "A控_交代背番号6" : | G130: ary(128).kind = SDK_AWAY_PLAYER_SUB : | H130: ary(128).disp = 5075 : | I130: ary(128).v = "" | J130: ary(128).key = "A控_交代背番号6" : ary(128).kind = SDK_AWAY_PLAYER_SUB : ary(128).disp = 5075 : ary(128).v = ""
A131: 129 | B131: A控_選手名0 | C131: 0 | D131: 5000 | E131: SDK_AWAY_PLAYER_SUB | F131: ="ary("&A131&").key = """ &B131&""" : " -> ary(129).key = "A控_選手名0" : | G131: ="ary("&A131&").kind = " &E131&" : " -> ary(129).kind = SDK_AWAY_PLAYER_SUB : | H131: ="ary("&A131&").disp = " &(HSH_VKIND(E131)+C131)&" : " -> ary(129).disp = 5000 : | I131: ="ary("&A131&").v = """"" -> ary(129).v = "" | J131: =F131&G131&H131&I131 -> ary(129).key = "A控_選手名0" : ary(129).kind = SDK_AWAY_PLAYER_SUB : ary(129).disp = 5000 : ary(129).v = ""
A132: 130 | B132: A控_選手名1 | C132: 11 | D132: 5011 | E132: SDK_AWAY_PLAYER_SUB | F132: ary(130).key = "A控_選手名1" : | G132: ary(130).kind = SDK_AWAY_PLAYER_SUB : | H132: ary(130).disp = 5011 : | I132: ary(130).v = "" | J132: ary(130).key = "A控_選手名1" : ary(130).kind = SDK_AWAY_PLAYER_SUB : ary(130).disp = 5011 : ary(130).v = ""
A133: 131 | B133: A控_選手名2 | C133: 22 | D133: 5022 | E133: SDK_AWAY_PLAYER_SUB | F133: ary(131).key = "A控_選手名2" : | G133: ary(131).kind = SDK_AWAY_PLAYER_SUB : | H133: ary(131).disp = 5022 : | I133: ary(131).v = "" | J133: ary(131).key = "A控_選手名2" : ary(131).kind = SDK_AWAY_PLAYER_SUB : ary(131).disp = 5022 : ary(131).v = ""
A134: 132 | B134: A控_選手名3 | C134: 33 | D134: 5033 | E134: SDK_AWAY_PLAYER_SUB | F134: ary(132).key = "A控_選手名3" : | G134: ary(132).kind = SDK_AWAY_PLAYER_SUB : | H134: ary(132).disp = 5033 : | I134: ary(132).v = "" | J134: ary(132).key = "A控_選手名3" : ary(132).kind = SDK_AWAY_PLAYER_SUB : ary(132).disp = 5033 : ary(132).v = ""
A135: 133 | B135: A控_選手名4 | C135: 44 | D135: 5044 | E135: SDK_AWAY_PLAYER_SUB | F135: ary(133).key = "A控_選手名4" : | G135: ary(133).kind = SDK_AWAY_PLAYER_SUB : | H135: ary(133).disp = 5044 : | I135: ary(133).v = "" | J135: ary(133).key = "A控_選手名4" : ary(133).kind = SDK_AWAY_PLAYER_SUB : ary(133).disp = 5044 : ary(133).v = ""
A136: 134 | B136: A控_選手名5 | C136: 55 | D136: 5055 | E136: SDK_AWAY_PLAYER_SUB | F136: ary(134).key = "A控_選手名5" : | G136: ary(134).kind = SDK_AWAY_PLAYER_SUB : | H136: ary(134).disp = 5055 : | I136: ary(134).v = "" | J136: ary(134).key = "A控_選手名5" : ary(134).kind = SDK_AWAY_PLAYER_SUB : ary(134).disp = 5055 : ary(134).v = ""
A137: 135 | B137: A控_選手名6 | C137: 66 | D137: 5066 | E137: SDK_AWAY_PLAYER_SUB | F137: ary(135).key = "A控_選手名6" : | G137: ary(135).kind = SDK_AWAY_PLAYER_SUB : | H137: ary(135).disp = 5066 : | I137: ary(135).v = "" | J137: ary(135).key = "A控_選手名6" : ary(135).kind = SDK_AWAY_PLAYER_SUB : ary(135).disp = 5066 : ary(135).v = ""
A138: 136 | B138: A控_得点0 | C138: 3 | D138: 5003 | E138: SDK_AWAY_PLAYER_SUB | F138: ary(136).key = "A控_得点0" : | G138: ary(136).kind = SDK_AWAY_PLAYER_SUB : | H138: ary(136).disp = 5003 : | I138: ary(136).v = "" | J138: ary(136).key = "A控_得点0" : ary(136).kind = SDK_AWAY_PLAYER_SUB : ary(136).disp = 5003 : ary(136).v = ""
A139: 137 | B139: A控_得点1 | C139: 14 | D139: 5014 | E139: SDK_AWAY_PLAYER_SUB | F139: ary(137).key = "A控_得点1" : | G139: ary(137).kind = SDK_AWAY_PLAYER_SUB : | H139: ary(137).disp = 5014 : | I139: ary(137).v = "" | J139: ary(137).key = "A控_得点1" : ary(137).kind = SDK_AWAY_PLAYER_SUB : ary(137).disp = 5014 : ary(137).v = ""
A140: 138 | B140: A控_得点2 | C140: 25 | D140: 5025 | E140: SDK_AWAY_PLAYER_SUB | F140: ary(138).key = "A控_得点2" : | G140: ary(138).kind = SDK_AWAY_PLAYER_SUB : | H140: ary(138).disp = 5025 : | I140: ary(138).v = "" | J140: ary(138).key = "A控_得点2" : ary(138).kind = SDK_AWAY_PLAYER_SUB : ary(138).disp = 5025 : ary(138).v = ""
A141: 139 | B141: A控_得点3 | C141: 36 | D141: 5036 | E141: SDK_AWAY_PLAYER_SUB | F141: ary(139).key = "A控_得点3" : | G141: ary(139).kind = SDK_AWAY_PLAYER_SUB : | H141: ary(139).disp = 5036 : | I141: ary(139).v = "" | J141: ary(139).key = "A控_得点3" : ary(139).kind = SDK_AWAY_PLAYER_SUB : ary(139).disp = 5036 : ary(139).v = ""
A142: 140 | B142: A控_得点4 | C142: 47 | D142: 5047 | E142: SDK_AWAY_PLAYER_SUB | F142: ary(140).key = "A控_得点4" : | G142: ary(140).kind = SDK_AWAY_PLAYER_SUB : | H142: ary(140).disp = 5047 : | I142: ary(140).v = "" | J142: ary(140).key = "A控_得点4" : ary(140).kind = SDK_AWAY_PLAYER_SUB : ary(140).disp = 5047 : ary(140).v = ""
A143: 141 | B143: A控_得点5 | C143: 58 | D143: 5058 | E143: SDK_AWAY_PLAYER_SUB | F143: ary(141).key = "A控_得点5" : | G143: ary(141).kind = SDK_AWAY_PLAYER_SUB : | H143: ary(141).disp = 5058 : | I143: ary(141).v = "" | J143: ary(141).key = "A控_得点5" : ary(141).kind = SDK_AWAY_PLAYER_SUB : ary(141).disp = 5058 : ary(141).v = ""
A144: 142 | B144: A控_得点6 | C144: 69 | D144: 5069 | E144: SDK_AWAY_PLAYER_SUB | F144: ary(142).key = "A控_得点6" : | G144: ary(142).kind = SDK_AWAY_PLAYER_SUB : | H144: ary(142).disp = 5069 : | I144: ary(142).v = "" | J144: ary(142).key = "A控_得点6" : ary(142).kind = SDK_AWAY_PLAYER_SUB : ary(142).disp = 5069 : ary(142).v = ""
A145: 143 | B145: A控_背番号0 | C145: 1 | D145: 5001 | E145: SDK_AWAY_PLAYER_SUB | F145: ary(143).key = "A控_背番号0" : | G145: ary(143).kind = SDK_AWAY_PLAYER_SUB : | H145: ary(143).disp = 5001 : | I145: ary(143).v = "" | J145: ary(143).key = "A控_背番号0" : ary(143).kind = SDK_AWAY_PLAYER_SUB : ary(143).disp = 5001 : ary(143).v = ""
A146: 144 | B146: A控_背番号1 | C146: 12 | D146: 5012 | E146: SDK_AWAY_PLAYER_SUB | F146: ary(144).key = "A控_背番号1" : | G146: ary(144).kind = SDK_AWAY_PLAYER_SUB : | H146: ary(144).disp = 5012 : | I146: ary(144).v = "" | J146: ary(144).key = "A控_背番号1" : ary(144).kind = SDK_AWAY_PLAYER_SUB : ary(144).disp = 5012 : ary(144).v = ""
A147: 145 | B147: A控_背番号2 | C147: 23 | D147: 5023 | E147: SDK_AWAY_PLAYER_SUB | F147: ary(145).key = "A控_背番号2" : | G147: ary(145).kind = SDK_AWAY_PLAYER_SUB : | H147: ary(145).disp = 5023 : | I147: ary(145).v = "" | J147: ary(145).key = "A控_背番号2" : ary(145).kind = SDK_AWAY_PLAYER_SUB : ary(145).disp = 5023 : ary(145).v = ""
A148: 146 | B148: A控_背番号3 | C148: 34 | D148: 5034 | E148: SDK_AWAY_PLAYER_SUB | F148: ary(146).key = "A控_背番号3" : | G148: ary(146).kind = SDK_AWAY_PLAYER_SUB : | H148: ary(146).disp = 5034 : | I148: ary(146).v = "" | J148: ary(146).key = "A控_背番号3" : ary(146).kind = SDK_AWAY_PLAYER_SUB : ary(146).disp = 5034 : ary(146).v = ""
A149: 147 | B149: A控_背番号4 | C149: 45 | D149: 5045 | E149: SDK_AWAY_PLAYER_SUB | F149: ary(147).key = "A控_背番号4" : | G149: ary(147).kind = SDK_AWAY_PLAYER_SUB : | H149: ary(147).disp = 5045 : | I149: ary(147).v = "" | J149: ary(147).key = "A控_背番号4" : ary(147).kind = SDK_AWAY_PLAYER_SUB : ary(147).disp = 5045 : ary(147).v = ""
A150: 148 | B150: A控_背番号5 | C150: 56 | D150: 5056 | E150: SDK_AWAY_PLAYER_SUB | F150: ary(148).key = "A控_背番号5" : | G150: ary(148).kind = SDK_AWAY_PLAYER_SUB : | H150: ary(148).disp = 5056 : | I150: ary(148).v = "" | J150: ary(148).key = "A控_背番号5" : ary(148).kind = SDK_AWAY_PLAYER_SUB : ary(148).disp = 5056 : ary(148).v = ""
A151: 149 | B151: A控_背番号6 | C151: 67 | D151: 5067 | E151: SDK_AWAY_PLAYER_SUB | F151: ary(149).key = "A控_背番号6" : | G151: ary(149).kind = SDK_AWAY_PLAYER_SUB : | H151: ary(149).disp = 5067 : | I151: ary(149).v = "" | J151: ary(149).key = "A控_背番号6" : ary(149).kind = SDK_AWAY_PLAYER_SUB : ary(149).disp = 5067 : ary(149).v = ""
A152: 150 | B152: A先_シュート延長後半0 | C152: 8 | D152: 4008 | E152: SDK_AWAY_PLAYER | F152: ary(150).key = "A先_シュート延長後半0" : | G152: ary(150).kind = SDK_AWAY_PLAYER : | H152: ary(150).disp = 4008 : | I152: ary(150).v = "" | J152: ary(150).key = "A先_シュート延長後半0" : ary(150).kind = SDK_AWAY_PLAYER : ary(150).disp = 4008 : ary(150).v = ""
A153: 151 | B153: A先_シュート延長後半1 | C153: 19 | D153: 4019 | E153: SDK_AWAY_PLAYER | F153: ary(151).key = "A先_シュート延長後半1" : | G153: ary(151).kind = SDK_AWAY_PLAYER : | H153: ary(151).disp = 4019 : | I153: ary(151).v = "" | J153: ary(151).key = "A先_シュート延長後半1" : ary(151).kind = SDK_AWAY_PLAYER : ary(151).disp = 4019 : ary(151).v = ""
A154: 152 | B154: A先_シュート延長後半10 | C154: 118 | D154: 4118 | E154: SDK_AWAY_PLAYER | F154: ary(152).key = "A先_シュート延長後半10" : | G154: ary(152).kind = SDK_AWAY_PLAYER : | H154: ary(152).disp = 4118 : | I154: ary(152).v = "" | J154: ary(152).key = "A先_シュート延長後半10" : ary(152).kind = SDK_AWAY_PLAYER : ary(152).disp = 4118 : ary(152).v = ""
A155: 153 | B155: A先_シュート延長後半2 | C155: 30 | D155: 4030 | E155: SDK_AWAY_PLAYER | F155: ary(153).key = "A先_シュート延長後半2" : | G155: ary(153).kind = SDK_AWAY_PLAYER : | H155: ary(153).disp = 4030 : | I155: ary(153).v = "" | J155: ary(153).key = "A先_シュート延長後半2" : ary(153).kind = SDK_AWAY_PLAYER : ary(153).disp = 4030 : ary(153).v = ""
A156: 154 | B156: A先_シュート延長後半3 | C156: 41 | D156: 4041 | E156: SDK_AWAY_PLAYER | F156: ary(154).key = "A先_シュート延長後半3" : | G156: ary(154).kind = SDK_AWAY_PLAYER : | H156: ary(154).disp = 4041 : | I156: ary(154).v = "" | J156: ary(154).key = "A先_シュート延長後半3" : ary(154).kind = SDK_AWAY_PLAYER : ary(154).disp = 4041 : ary(154).v = ""
A157: 155 | B157: A先_シュート延長後半4 | C157: 52 | D157: 4052 | E157: SDK_AWAY_PLAYER | F157: ary(155).key = "A先_シュート延長後半4" : | G157: ary(155).kind = SDK_AWAY_PLAYER : | H157: ary(155).disp = 4052 : | I157: ary(155).v = "" | J157: ary(155).key = "A先_シュート延長後半4" : ary(155).kind = SDK_AWAY_PLAYER : ary(155).disp = 4052 : ary(155).v = ""
A158: 156 | B158: A先_シュート延長後半5 | C158: 63 | D158: 4063 | E158: SDK_AWAY_PLAYER | F158: ary(156).key = "A先_シュート延長後半5" : | G158: ary(156).kind = SDK_AWAY_PLAYER : | H158: ary(156).disp = 4063 : | I158: ary(156).v = "" | J158: ary(156).key = "A先_シュート延長後半5" : ary(156).kind = SDK_AWAY_PLAYER : ary(156).disp = 4063 : ary(156).v = ""
A159: 157 | B159: A先_シュート延長後半6 | C159: 74 | D159: 4074 | E159: SDK_AWAY_PLAYER | F159: ary(157).key = "A先_シュート延長後半6" : | G159: ary(157).kind = SDK_AWAY_PLAYER : | H159: ary(157).disp = 4074 : | I159: ary(157).v = "" | J159: ary(157).key = "A先_シュート延長後半6" : ary(157).kind = SDK_AWAY_PLAYER : ary(157).disp = 4074 : ary(157).v = ""
A160: 158 | B160: A先_シュート延長後半7 | C160: 85 | D160: 4085 | E160: SDK_AWAY_PLAYER | F160: ary(158).key = "A先_シュート延長後半7" : | G160: ary(158).kind = SDK_AWAY_PLAYER : | H160: ary(158).disp = 4085 : | I160: ary(158).v = "" | J160: ary(158).key = "A先_シュート延長後半7" : ary(158).kind = SDK_AWAY_PLAYER : ary(158).disp = 4085 : ary(158).v = ""
A161: 159 | B161: A先_シュート延長後半8 | C161: 96 | D161: 4096 | E161: SDK_AWAY_PLAYER | F161: ary(159).key = "A先_シュート延長後半8" : | G161: ary(159).kind = SDK_AWAY_PLAYER : | H161: ary(159).disp = 4096 : | I161: ary(159).v = "" | J161: ary(159).key = "A先_シュート延長後半8" : ary(159).kind = SDK_AWAY_PLAYER : ary(159).disp = 4096 : ary(159).v = ""
A162: 160 | B162: A先_シュート延長後半9 | C162: 107 | D162: 4107 | E162: SDK_AWAY_PLAYER | F162: ary(160).key = "A先_シュート延長後半9" : | G162: ary(160).kind = SDK_AWAY_PLAYER : | H162: ary(160).disp = 4107 : | I162: ary(160).v = "" | J162: ary(160).key = "A先_シュート延長後半9" : ary(160).kind = SDK_AWAY_PLAYER : ary(160).disp = 4107 : ary(160).v = ""
A163: 161 | B163: A先_シュート延長前半0 | C163: 7 | D163: 4007 | E163: SDK_AWAY_PLAYER | F163: ary(161).key = "A先_シュート延長前半0" : | G163: ary(161).kind = SDK_AWAY_PLAYER : | H163: ary(161).disp = 4007 : | I163: ary(161).v = "" | J163: ary(161).key = "A先_シュート延長前半0" : ary(161).kind = SDK_AWAY_PLAYER : ary(161).disp = 4007 : ary(161).v = ""
A164: 162 | B164: A先_シュート延長前半1 | C164: 18 | D164: 4018 | E164: SDK_AWAY_PLAYER | F164: ary(162).key = "A先_シュート延長前半1" : | G164: ary(162).kind = SDK_AWAY_PLAYER : | H164: ary(162).disp = 4018 : | I164: ary(162).v = "" | J164: ary(162).key = "A先_シュート延長前半1" : ary(162).kind = SDK_AWAY_PLAYER : ary(162).disp = 4018 : ary(162).v = ""
A165: 163 | B165: A先_シュート延長前半10 | C165: 117 | D165: 4117 | E165: SDK_AWAY_PLAYER | F165: ary(163).key = "A先_シュート延長前半10" : | G165: ary(163).kind = SDK_AWAY_PLAYER : | H165: ary(163).disp = 4117 : | I165: ary(163).v = "" | J165: ary(163).key = "A先_シュート延長前半10" : ary(163).kind = SDK_AWAY_PLAYER : ary(163).disp = 4117 : ary(163).v = ""
A166: 164 | B166: A先_シュート延長前半2 | C166: 29 | D166: 4029 | E166: SDK_AWAY_PLAYER | F166: ary(164).key = "A先_シュート延長前半2" : | G166: ary(164).kind = SDK_AWAY_PLAYER : | H166: ary(164).disp = 4029 : | I166: ary(164).v = "" | J166: ary(164).key = "A先_シュート延長前半2" : ary(164).kind = SDK_AWAY_PLAYER : ary(164).disp = 4029 : ary(164).v = ""
A167: 165 | B167: A先_シュート延長前半3 | C167: 40 | D167: 4040 | E167: SDK_AWAY_PLAYER | F167: ary(165).key = "A先_シュート延長前半3" : | G167: ary(165).kind = SDK_AWAY_PLAYER : | H167: ary(165).disp = 4040 : | I167: ary(165).v = "" | J167: ary(165).key = "A先_シュート延長前半3" : ary(165).kind = SDK_AWAY_PLAYER : ary(165).disp = 4040 : ary(165).v = ""
A168: 166 | B168: A先_シュート延長前半4 | C168: 51 | D168: 4051 | E168: SDK_AWAY_PLAYER | F168: ary(166).key = "A先_シュート延長前半4" : | G168: ary(166).kind = SDK_AWAY_PLAYER : | H168: ary(166).disp = 4051 : | I168: ary(166).v = "" | J168: ary(166).key = "A先_シュート延長前半4" : ary(166).kind = SDK_AWAY_PLAYER : ary(166).disp = 4051 : ary(166).v = ""
A169: 167 | B169: A先_シュート延長前半5 | C169: 62 | D169: 4062 | E169: SDK_AWAY_PLAYER | F169: ary(167).key = "A先_シュート延長前半5" : | G169: ary(167).kind = SDK_AWAY_PLAYER : | H169: ary(167).disp = 4062 : | I169: ary(167).v = "" | J169: ary(167).key = "A先_シュート延長前半5" : ary(167).kind = SDK_AWAY_PLAYER : ary(167).disp = 4062 : ary(167).v = ""
A170: 168 | B170: A先_シュート延長前半6 | C170: 73 | D170: 4073 | E170: SDK_AWAY_PLAYER | F170: ary(168).key = "A先_シュート延長前半6" : | G170: ary(168).kind = SDK_AWAY_PLAYER : | H170: ary(168).disp = 4073 : | I170: ary(168).v = "" | J170: ary(168).key = "A先_シュート延長前半6" : ary(168).kind = SDK_AWAY_PLAYER : ary(168).disp = 4073 : ary(168).v = ""
A171: 169 | B171: A先_シュート延長前半7 | C171: 84 | D171: 4084 | E171: SDK_AWAY_PLAYER | F171: ary(169).key = "A先_シュート延長前半7" : | G171: ary(169).kind = SDK_AWAY_PLAYER : | H171: ary(169).disp = 4084 : | I171: ary(169).v = "" | J171: ary(169).key = "A先_シュート延長前半7" : ary(169).kind = SDK_AWAY_PLAYER : ary(169).disp = 4084 : ary(169).v = ""
A172: 170 | B172: A先_シュート延長前半8 | C172: 95 | D172: 4095 | E172: SDK_AWAY_PLAYER | F172: ary(170).key = "A先_シュート延長前半8" : | G172: ary(170).kind = SDK_AWAY_PLAYER : | H172: ary(170).disp = 4095 : | I172: ary(170).v = "" | J172: ary(170).key = "A先_シュート延長前半8" : ary(170).kind = SDK_AWAY_PLAYER : ary(170).disp = 4095 : ary(170).v = ""
A173: 171 | B173: A先_シュート延長前半9 | C173: 106 | D173: 4106 | E173: SDK_AWAY_PLAYER | F173: ary(171).key = "A先_シュート延長前半9" : | G173: ary(171).kind = SDK_AWAY_PLAYER : | H173: ary(171).disp = 4106 : | I173: ary(171).v = "" | J173: ary(171).key = "A先_シュート延長前半9" : ary(171).kind = SDK_AWAY_PLAYER : ary(171).disp = 4106 : ary(171).v = ""
A174: 172 | B174: A先_シュート計0 | C174: 4 | D174: 4004 | E174: SDK_AWAY_PLAYER | F174: ary(172).key = "A先_シュート計0" : | G174: ary(172).kind = SDK_AWAY_PLAYER : | H174: ary(172).disp = 4004 : | I174: ary(172).v = "" | J174: ary(172).key = "A先_シュート計0" : ary(172).kind = SDK_AWAY_PLAYER : ary(172).disp = 4004 : ary(172).v = ""
A175: 173 | B175: A先_シュート計1 | C175: 15 | D175: 4015 | E175: SDK_AWAY_PLAYER | F175: ary(173).key = "A先_シュート計1" : | G175: ary(173).kind = SDK_AWAY_PLAYER : | H175: ary(173).disp = 4015 : | I175: ary(173).v = "" | J175: ary(173).key = "A先_シュート計1" : ary(173).kind = SDK_AWAY_PLAYER : ary(173).disp = 4015 : ary(173).v = ""
A176: 174 | B176: A先_シュート計10 | C176: 114 | D176: 4114 | E176: SDK_AWAY_PLAYER | F176: ary(174).key = "A先_シュート計10" : | G176: ary(174).kind = SDK_AWAY_PLAYER : | H176: ary(174).disp = 4114 : | I176: ary(174).v = "" | J176: ary(174).key = "A先_シュート計10" : ary(174).kind = SDK_AWAY_PLAYER : ary(174).disp = 4114 : ary(174).v = ""
A177: 175 | B177: A先_シュート計2 | C177: 26 | D177: 4026 | E177: SDK_AWAY_PLAYER | F177: ary(175).key = "A先_シュート計2" : | G177: ary(175).kind = SDK_AWAY_PLAYER : | H177: ary(175).disp = 4026 : | I177: ary(175).v = "" | J177: ary(175).key = "A先_シュート計2" : ary(175).kind = SDK_AWAY_PLAYER : ary(175).disp = 4026 : ary(175).v = ""
A178: 176 | B178: A先_シュート計3 | C178: 37 | D178: 4037 | E178: SDK_AWAY_PLAYER | F178: ary(176).key = "A先_シュート計3" : | G178: ary(176).kind = SDK_AWAY_PLAYER : | H178: ary(176).disp = 4037 : | I178: ary(176).v = "" | J178: ary(176).key = "A先_シュート計3" : ary(176).kind = SDK_AWAY_PLAYER : ary(176).disp = 4037 : ary(176).v = ""
A179: 177 | B179: A先_シュート計4 | C179: 48 | D179: 4048 | E179: SDK_AWAY_PLAYER | F179: ary(177).key = "A先_シュート計4" : | G179: ary(177).kind = SDK_AWAY_PLAYER : | H179: ary(177).disp = 4048 : | I179: ary(177).v = "" | J179: ary(177).key = "A先_シュート計4" : ary(177).kind = SDK_AWAY_PLAYER : ary(177).disp = 4048 : ary(177).v = ""
A180: 178 | B180: A先_シュート計5 | C180: 59 | D180: 4059 | E180: SDK_AWAY_PLAYER | F180: ary(178).key = "A先_シュート計5" : | G180: ary(178).kind = SDK_AWAY_PLAYER : | H180: ary(178).disp = 4059 : | I180: ary(178).v = "" | J180: ary(178).key = "A先_シュート計5" : ary(178).kind = SDK_AWAY_PLAYER : ary(178).disp = 4059 : ary(178).v = ""
A181: 179 | B181: A先_シュート計6 | C181: 70 | D181: 4070 | E181: SDK_AWAY_PLAYER | F181: ary(179).key = "A先_シュート計6" : | G181: ary(179).kind = SDK_AWAY_PLAYER : | H181: ary(179).disp = 4070 : | I181: ary(179).v = "" | J181: ary(179).key = "A先_シュート計6" : ary(179).kind = SDK_AWAY_PLAYER : ary(179).disp = 4070 : ary(179).v = ""
A182: 180 | B182: A先_シュート計7 | C182: 81 | D182: 4081 | E182: SDK_AWAY_PLAYER | F182: ary(180).key = "A先_シュート計7" : | G182: ary(180).kind = SDK_AWAY_PLAYER : | H182: ary(180).disp = 4081 : | I182: ary(180).v = "" | J182: ary(180).key = "A先_シュート計7" : ary(180).kind = SDK_AWAY_PLAYER : ary(180).disp = 4081 : ary(180).v = ""
A183: 181 | B183: A先_シュート計8 | C183: 92 | D183: 4092 | E183: SDK_AWAY_PLAYER | F183: ary(181).key = "A先_シュート計8" : | G183: ary(181).kind = SDK_AWAY_PLAYER : | H183: ary(181).disp = 4092 : | I183: ary(181).v = "" | J183: ary(181).key = "A先_シュート計8" : ary(181).kind = SDK_AWAY_PLAYER : ary(181).disp = 4092 : ary(181).v = ""
A184: 182 | B184: A先_シュート計9 | C184: 103 | D184: 4103 | E184: SDK_AWAY_PLAYER | F184: ary(182).key = "A先_シュート計9" : | G184: ary(182).kind = SDK_AWAY_PLAYER : | H184: ary(182).disp = 4103 : | I184: ary(182).v = "" | J184: ary(182).key = "A先_シュート計9" : ary(182).kind = SDK_AWAY_PLAYER : ary(182).disp = 4103 : ary(182).v = ""
A185: 183 | B185: A先_シュート後半0 | C185: 6 | D185: 4006 | E185: SDK_AWAY_PLAYER | F185: ary(183).key = "A先_シュート後半0" : | G185: ary(183).kind = SDK_AWAY_PLAYER : | H185: ary(183).disp = 4006 : | I185: ary(183).v = "" | J185: ary(183).key = "A先_シュート後半0" : ary(183).kind = SDK_AWAY_PLAYER : ary(183).disp = 4006 : ary(183).v = ""
A186: 184 | B186: A先_シュート後半1 | C186: 17 | D186: 4017 | E186: SDK_AWAY_PLAYER | F186: ary(184).key = "A先_シュート後半1" : | G186: ary(184).kind = SDK_AWAY_PLAYER : | H186: ary(184).disp = 4017 : | I186: ary(184).v = "" | J186: ary(184).key = "A先_シュート後半1" : ary(184).kind = SDK_AWAY_PLAYER : ary(184).disp = 4017 : ary(184).v = ""
A187: 185 | B187: A先_シュート後半10 | C187: 116 | D187: 4116 | E187: SDK_AWAY_PLAYER | F187: ary(185).key = "A先_シュート後半10" : | G187: ary(185).kind = SDK_AWAY_PLAYER : | H187: ary(185).disp = 4116 : | I187: ary(185).v = "" | J187: ary(185).key = "A先_シュート後半10" : ary(185).kind = SDK_AWAY_PLAYER : ary(185).disp = 4116 : ary(185).v = ""
A188: 186 | B188: A先_シュート後半2 | C188: 28 | D188: 4028 | E188: SDK_AWAY_PLAYER | F188: ary(186).key = "A先_シュート後半2" : | G188: ary(186).kind = SDK_AWAY_PLAYER : | H188: ary(186).disp = 4028 : | I188: ary(186).v = "" | J188: ary(186).key = "A先_シュート後半2" : ary(186).kind = SDK_AWAY_PLAYER : ary(186).disp = 4028 : ary(186).v = ""
A189: 187 | B189: A先_シュート後半3 | C189: 39 | D189: 4039 | E189: SDK_AWAY_PLAYER | F189: ary(187).key = "A先_シュート後半3" : | G189: ary(187).kind = SDK_AWAY_PLAYER : | H189: ary(187).disp = 4039 : | I189: ary(187).v = "" | J189: ary(187).key = "A先_シュート後半3" : ary(187).kind = SDK_AWAY_PLAYER : ary(187).disp = 4039 : ary(187).v = ""
A190: 188 | B190: A先_シュート後半4 | C190: 50 | D190: 4050 | E190: SDK_AWAY_PLAYER | F190: ary(188).key = "A先_シュート後半4" : | G190: ary(188).kind = SDK_AWAY_PLAYER : | H190: ary(188).disp = 4050 : | I190: ary(188).v = "" | J190: ary(188).key = "A先_シュート後半4" : ary(188).kind = SDK_AWAY_PLAYER : ary(188).disp = 4050 : ary(188).v = ""
A191: 189 | B191: A先_シュート後半5 | C191: 61 | D191: 4061 | E191: SDK_AWAY_PLAYER | F191: ary(189).key = "A先_シュート後半5" : | G191: ary(189).kind = SDK_AWAY_PLAYER : | H191: ary(189).disp = 4061 : | I191: ary(189).v = "" | J191: ary(189).key = "A先_シュート後半5" : ary(189).kind = SDK_AWAY_PLAYER : ary(189).disp = 4061 : ary(189).v = ""
A192: 190 | B192: A先_シュート後半6 | C192: 72 | D192: 4072 | E192: SDK_AWAY_PLAYER | F192: ary(190).key = "A先_シュート後半6" : | G192: ary(190).kind = SDK_AWAY_PLAYER : | H192: ary(190).disp = 4072 : | I192: ary(190).v = "" | J192: ary(190).key = "A先_シュート後半6" : ary(190).kind = SDK_AWAY_PLAYER : ary(190).disp = 4072 : ary(190).v = ""
A193: 191 | B193: A先_シュート後半7 | C193: 83 | D193: 4083 | E193: SDK_AWAY_PLAYER | F193: ary(191).key = "A先_シュート後半7" : | G193: ary(191).kind = SDK_AWAY_PLAYER : | H193: ary(191).disp = 4083 : | I193: ary(191).v = "" | J193: ary(191).key = "A先_シュート後半7" : ary(191).kind = SDK_AWAY_PLAYER : ary(191).disp = 4083 : ary(191).v = ""
A194: 192 | B194: A先_シュート後半8 | C194: 94 | D194: 4094 | E194: SDK_AWAY_PLAYER | F194: ary(192).key = "A先_シュート後半8" : | G194: ary(192).kind = SDK_AWAY_PLAYER : | H194: ary(192).disp = 4094 : | I194: ary(192).v = "" | J194: ary(192).key = "A先_シュート後半8" : ary(192).kind = SDK_AWAY_PLAYER : ary(192).disp = 4094 : ary(192).v = ""
A195: 193 | B195: A先_シュート後半9 | C195: 105 | D195: 4105 | E195: SDK_AWAY_PLAYER | F195: ="ary("&A195&").key = """ &B195&""" : " -> ary(193).key = "A先_シュート後半9" : | G195: ="ary("&A195&").kind = " &E195&" : " -> ary(193).kind = SDK_AWAY_PLAYER : | H195: ="ary("&A195&").disp = " &(HSH_VKIND(E195)+C195)&" : " -> ary(193).disp = 4105 : | I195: ="ary("&A195&").v = """"" -> ary(193).v = "" | J195: =F195&G195&H195&I195 -> ary(193).key = "A先_シュート後半9" : ary(193).kind = SDK_AWAY_PLAYER : ary(193).disp = 4105 : ary(193).v = ""
A196: 194 | B196: A先_シュート前半0 | C196: 5 | D196: 4005 | E196: SDK_AWAY_PLAYER | F196: ary(194).key = "A先_シュート前半0" : | G196: ary(194).kind = SDK_AWAY_PLAYER : | H196: ary(194).disp = 4005 : | I196: ary(194).v = "" | J196: ary(194).key = "A先_シュート前半0" : ary(194).kind = SDK_AWAY_PLAYER : ary(194).disp = 4005 : ary(194).v = ""
A197: 195 | B197: A先_シュート前半1 | C197: 16 | D197: 4016 | E197: SDK_AWAY_PLAYER | F197: ary(195).key = "A先_シュート前半1" : | G197: ary(195).kind = SDK_AWAY_PLAYER : | H197: ary(195).disp = 4016 : | I197: ary(195).v = "" | J197: ary(195).key = "A先_シュート前半1" : ary(195).kind = SDK_AWAY_PLAYER : ary(195).disp = 4016 : ary(195).v = ""
A198: 196 | B198: A先_シュート前半10 | C198: 115 | D198: 4115 | E198: SDK_AWAY_PLAYER | F198: ary(196).key = "A先_シュート前半10" : | G198: ary(196).kind = SDK_AWAY_PLAYER : | H198: ary(196).disp = 4115 : | I198: ary(196).v = "" | J198: ary(196).key = "A先_シュート前半10" : ary(196).kind = SDK_AWAY_PLAYER : ary(196).disp = 4115 : ary(196).v = ""
A199: 197 | B199: A先_シュート前半2 | C199: 27 | D199: 4027 | E199: SDK_AWAY_PLAYER | F199: ary(197).key = "A先_シュート前半2" : | G199: ary(197).kind = SDK_AWAY_PLAYER : | H199: ary(197).disp = 4027 : | I199: ary(197).v = "" | J199: ary(197).key = "A先_シュート前半2" : ary(197).kind = SDK_AWAY_PLAYER : ary(197).disp = 4027 : ary(197).v = ""
A200: 198 | B200: A先_シュート前半3 | C200: 38 | D200: 4038 | E200: SDK_AWAY_PLAYER | F200: ary(198).key = "A先_シュート前半3" : | G200: ary(198).kind = SDK_AWAY_PLAYER : | H200: ary(198).disp = 4038 : | I200: ary(198).v = "" | J200: ary(198).key = "A先_シュート前半3" : ary(198).kind = SDK_AWAY_PLAYER : ary(198).disp = 4038 : ary(198).v = ""
... 624 more rows

Sheet Sheet1
A1: idx | B1: key | C1: seg+ofst
A2: 0 | B2: シリーズ | C2: 2000
A3: =A2+1 -> 1 | B3: サブシリーズ | C3: 2001
A4: =A3+1 -> 2 | B4: シーズン | C4: 2002
A5: 3 | B5: 日時 | C5: 2003
A6: 4 | B6: 試合形式 | C6: 2004
A7: 5 | B7: 会場 | C7: 2005
A8: 6 | B8: マッチコミッショナー | C8: 2006
A9: 7 | B9: 審判アセッサー | C9: 2007
A10: 8 | B10: 主審 | C10: 2008
A11: 9 | B11: 副審1 | C11: 2009
A12: 10 | B12: 副審2 | C12: 2010
A13: 11 | B13: 第4の審判員 | C13: 2011
A14: 12 | B14: 運営責任者 | C14: 2012
A15: 13 | B15: 記録担当 | C15: 2013
A16: 14 | B16: 天気 | C16: 2014
A17: 15 | B17: 気温 | C17: 2015
A18: 16 | B18: 湿度 | C18: 2016
A19: 17 | B19: WBGT | C19: 2017
A20: 18 | B20: 風情報 | C20: 2018
A21: 19 | B21: 観客数 | C21: 2019
A22: 20 | B22: ピッチ芝 | C22: 2020
A23: 21 | B23: ピッチ表面 | C23: 2021
A24: 22 | B24: 備考 | C24: 2022
A25: 23 | B25: Aチーム名 | C25: 3000
A26: 24 | B26: Aキックオフ情報 | C26: 3001
A27: 25 | B27: A監督名 | C27: 3002
A28: 26 | B28: A得点合計 | C28: 3003
A29: 27 | B29: A得点前半 | C29: 3004
A30: 28 | B30: A得点後半 | C30: 3005
A31: 29 | B31: A得点延前 | C31: 3006
A32: 30 | B32: A得点延後 | C32: 3007
A33: 31 | B33: A_シュート計 | C33: 3008
A34: 32 | B34: A_シュート前半 | C34: 3009
A35: 33 | B35: A_シュート後半 | C35: 3010
A36: 34 | B36: A_シュート延長前半 | C36: 3011
A37: 35 | B37: A_シュート延長後半 | C37: 3012
A38: 36 | B38: A_GK計 | C38: 3013
A39: 37 | B39: A_GK前半 | C39: 3014
A40: 38 | B40: A_GK後半 | C40: 3015
A41: 39 | B41: A_GK延長前半 | C41: 3016
A42: 40 | B42: A_GK延長後半 | C42: 3017
A43: 41 | B43: A_CK計 | C43: 3018
A44: 42 | B44: A_CK前半 | C44: 3019
A45: 43 | B45: A_CK後半 | C45: 3020
A46: 44 | B46: A_CK延長前半 | C46: 3021
A47: 45 | B47: A_CK延長後半 | C47: 3022
A48: 46 | B48: A_直接FK計 | C48: 3023
A49: 47 | B49: A_直接FK前半 | C49: 3024
A50: 48 | B50: A_直接FK後半 | C50: 3025
A51: 49 | B51: A_直接FK延長前半 | C51: 3026
A52: 50 | B52: A_直接FK延長後半 | C52: 3027
A53: 51 | B53: A_間接FK計 | C53: 3028
A54: 52 | B54: A_間接FK前半 | C54: 3029
A55: 53 | B55: A_間接FK後半 | C55: 3030
A56: 54 | B56: A_間接FK延長前半 | C56: 3031
A57: 55 | B57: A_間接FK延長後半 | C57: 3032
A58: 56 | B58: A_PK計 | C58: 3033
A59: 57 | B59: A_PK前半 | C59: 3034
A60: 58 | B60: A_PK後半 | C60: 3035
A61: 59 | B61: A_PK延長前半 | C61: 3036
A62: 60 | B62: A_PK延長後半 | C62: 3037
A63: 61 | B63: A先_選手名0 | C63: 4000
A64: 62 | B64: A先_背番号0 | C64: 4001
A65: 63 | B65: A先_位置0 | C65: 4002
A66: 64 | B66: A先_得点0 | C66: 4003
A67: 65 | B67: A先_シュート計0 | C67: 4004
A68: =A67+1 -> 66 | B68: A先_シュート前半0 | C68: 4005
A69: 67 | B69: A先_シュート後半0 | C69: 4006
A70: 68 | B70: A先_シュート延長前半0 | C70: 4007
A71: 69 | B71: A先_シュート延長後半0 | C71: 4008
A72: 70 | B72: A先_交代背番号0 | C72: 4009
A73: 71 | B73: A先_交代時間0 | C73: 4010
A74: 72 | B74: A先_選手名1 | C74: 4011
A75: 73 | B75: A先_背番号1 | C75: 4012
A76: 74 | B76: A先_位置1 | C76: 4013
A77: 75 | B77: A先_得点1 | C77: 4014
A78: 76 | B78: A先_シュート計1 | C78: 4015
A79: 77 | B79: A先_シュート前半1 | C79: 4016
A80: 78 | B80: A先_シュート後半1 | C80: 4017
A81: 79 | B81: A先_シュート延長前半1 | C81: 4018
A82: 80 | B82: A先_シュート延長後半1 | C82: 4019
A83: 81 | B83: A先_交代背番号1 | C83: 4020
A84: 82 | B84: A先_交代時間1 | C84: 4021
A85: 83 | B85: A先_選手名2 | C85: 4022
A86: 84 | B86: A先_背番号2 | C86: 4023
A87: 85 | B87: A先_位置2 | C87: 4024
A88: 86 | B88: A先_得点2 | C88: 4025
A89: 87 | B89: A先_シュート計2 | C89: 4026
A90: 88 | B90: A先_シュート前半2 | C90: 4027
A91: 89 | B91: A先_シュート後半2 | C91: 4028
A92: 90 | B92: A先_シュート延長前半2 | C92: 4029
A93: 91 | B93: A先_シュート延長後半2 | C93: 4030
A94: 92 | B94: A先_交代背番号2 | C94: 4031
A95: 93 | B95: A先_交代時間2 | C95: 4032
A96: 94 | B96: A先_選手名3 | C96: 4033
A97: 95 | B97: A先_背番号3 | C97: 4034
A98: 96 | B98: A先_位置3 | C98: 4035
A99: 97 | B99: A先_得点3 | C99: 4036
A100: 98 | B100: A先_シュート計3 | C100: 4037
A101: 99 | B101: A先_シュート前半3 | C101: 4038
A102: 100 | B102: A先_シュート後半3 | C102: 4039
A103: 101 | B103: A先_シュート延長前半3 | C103: 4040
A104: 102 | B104: A先_シュート延長後半3 | C104: 4041
A105: 103 | B105: A先_交代背番号3 | C105: 4042
A106: 104 | B106: A先_交代時間3 | C106: 4043
A107: 105 | B107: A先_選手名4 | C107: 4044
A108: 106 | B108: A先_背番号4 | C108: 4045
A109: 107 | B109: A先_位置4 | C109: 4046
A110: 108 | B110: A先_得点4 | C110: 4047
A111: 109 | B111: A先_シュート計4 | C111: 4048
A112: 110 | B112: A先_シュート前半4 | C112: 4049
A113: 111 | B113: A先_シュート後半4 | C113: 4050
A114: 112 | B114: A先_シュート延長前半4 | C114: 4051
A115: 113 | B115: A先_シュート延長後半4 | C115: 4052
A116: 114 | B116: A先_交代背番号4 | C116: 4053
A117: 115 | B117: A先_交代時間4 | C117: 4054
A118: 116 | B118: A先_選手名5 | C118: 4055
A119: 117 | B119: A先_背番号5 | C119: 4056
A120: 118 | B120: A先_位置5 | C120: 4057
A121: 119 | B121: A先_得点5 | C121: 4058
A122: 120 | B122: A先_シュート計5 | C122: 4059
A123: 121 | B123: A先_シュート前半5 | C123: 4060
A124: 122 | B124: A先_シュート後半5 | C124: 4061
A125: 123 | B125: A先_シュート延長前半5 | C125: 4062
A126: 124 | B126: A先_シュート延長後半5 | C126: 4063
A127: 125 | B127: A先_交代背番号5 | C127: 4064
A128: 126 | B128: A先_交代時間5 | C128: 4065
A129: 127 | B129: A先_選手名6 | C129: 4066
A130: 128 | B130: A先_背番号6 | C130: 4067
A131: 129 | B131: A先_位置6 | C131: 4068
A132: =A131+1 -> 130 | B132: A先_得点6 | C132: 4069
A133: 131 | B133: A先_シュート計6 | C133: 4070
A134: 132 | B134: A先_シュート前半6 | C134: 4071
A135: 133 | B135: A先_シュート後半6 | C135: 4072
A136: 134 | B136: A先_シュート延長前半6 | C136: 4073
A137: 135 | B137: A先_シュート延長後半6 | C137: 4074
A138: 136 | B138: A先_交代背番号6 | C138: 4075
A139: 137 | B139: A先_交代時間6 | C139: 4076
A140: 138 | B140: A先_選手名7 | C140: 4077
A141: 139 | B141: A先_背番号7 | C141: 4078
A142: 140 | B142: A先_位置7 | C142: 4079
A143: 141 | B143: A先_得点7 | C143: 4080
A144: 142 | B144: A先_シュート計7 | C144: 4081
A145: 143 | B145: A先_シュート前半7 | C145: 4082
A146: 144 | B146: A先_シュート後半7 | C146: 4083
A147: 145 | B147: A先_シュート延長前半7 | C147: 4084
A148: 146 | B148: A先_シュート延長後半7 | C148: 4085
A149: 147 | B149: A先_交代背番号7 | C149: 4086
A150: 148 | B150: A先_交代時間7 | C150: 4087
A151: 149 | B151: A先_選手名8 | C151: 4088
A152: 150 | B152: A先_背番号8 | C152: 4089
A153: 151 | B153: A先_位置8 | C153: 4090
A154: 152 | B154: A先_得点8 | C154: 4091
A155: 153 | B155: A先_シュート計8 | C155: 4092
A156: 154 | B156: A先_シュート前半8 | C156: 4093
A157: 155 | B157: A先_シュート後半8 | C157: 4094
A158: 156 | B158: A先_シュート延長前半8 | C158: 4095
A159: 157 | B159: A先_シュート延長後半8 | C159: 4096
A160: 158 | B160: A先_交代背番号8 | C160: 4097
A161: 159 | B161: A先_交代時間8 | C161: 4098
A162: 160 | B162: A先_選手名9 | C162: 4099
A163: 161 | B163: A先_背番号9 | C163: 4100
A164: 162 | B164: A先_位置9 | C164: 4101
A165: 163 | B165: A先_得点9 | C165: 4102
A166: 164 | B166: A先_シュート計9 | C166: 4103
A167: 165 | B167: A先_シュート前半9 | C167: 4104
A168: 166 | B168: A先_シュート後半9 | C168: 4105
A169: 167 | B169: A先_シュート延長前半9 | C169: 4106
A170: 168 | B170: A先_シュート延長後半9 | C170: 4107
A171: 169 | B171: A先_交代背番号9 | C171: 4108
A172: 170 | B172: A先_交代時間9 | C172: 4109
A173: 171 | B173: A先_選手名10 | C173: 4110
A174: 172 | B174: A先_背番号10 | C174: 4111
A175: 173 | B175: A先_位置10 | C175: 4112
A176: 174 | B176: A先_得点10 | C176: 4113
A177: 175 | B177: A先_シュート計10 | C177: 4114
A178: 176 | B178: A先_シュート前半10 | C178: 4115
A179: 177 | B179: A先_シュート後半10 | C179: 4116
A180: 178 | B180: A先_シュート延長前半10 | C180: 4117
A181: 179 | B181: A先_シュート延長後半10 | C181: 4118
A182: 180 | B182: A先_交代背番号10 | C182: 4119
A183: 181 | B183: A先_交代時間10 | C183: 4120
A184: 182 | B184: A控_選手名0 | C184: 5000
A185: 183 | B185: A控_背番号0 | C185: 5001
A186: 184 | B186: A控_位置0 | C186: 5002
A187: 185 | B187: A控_得点0 | C187: 5003
A188: 186 | B188: A控_シュート計0 | C188: 5004
A189: 187 | B189: A控_シュート前半0 | C189: 5005
A190: 188 | B190: A控_シュート後半0 | C190: 5006
A191: 189 | B191: A控_シュート延長前半0 | C191: 5007
A192: 190 | B192: A控_シュート延長後半0 | C192: 5008
A193: 191 | B193: A控_交代背番号0 | C193: 5009
A194: 192 | B194: A控_交代時間0 | C194: 5010
A195: 193 | B195: A控_選手名1 | C195: 5011
A196: =A195+1 -> 194 | B196: A控_背番号1 | C196: 5012
A197: 195 | B197: A控_位置1 | C197: 5013
A198: 196 | B198: A控_得点1 | C198: 5014
A199: 197 | B199: A控_シュート計1 | C199: 5015
A200: 198 | B200: A控_シュート前半1 | C200: 5016
... 624 more rows

Sheet TBL_IDX
A1: INDEX | B1: 行 | C1: 列 | D1: 編集項目名
A2: 0 | B2: 5 | C2: 4 | D2: シリーズ
A3: 1 | B3: 8 | C3: 4 | D3: サブシリーズ
A4: 2 | B4: 10 | C4: 4 | D4: シーズン
A5: 3 | B5: 12 | C5: 15 | D5: 日時
A6: 4 | B6: 12 | C6: 47 | D6: 試合形式
A7: 5 | B7: 12 | C7: 70 | D7: 会場
A8: 6 | B8: 13 | C8: 15 | D8: マッチコミッショナー
A9: 7 | B9: 13 | C9: 40 | D9: 審判アセッサー
A10: 8 | B10: 13 | C10: 66 | D10: 主審
A11: 9 | B11: 14 | C11: 66 | D11: 副審1
A12: 10 | B12: 14 | C12: 91 | D12: 副審2
A13: 11 | B13: 13 | C13: 91 | D13: 第4の審判員
A14: 12 | B14: 14 | C14: 15 | D14: 運営責任者
A15: 13 | B15: 14 | C15: 40 | D15: 記録担当
A16: 14 | B16: 15 | C16: 15 | D16: 天候
A17: 15 | B17: 15 | C17: 40 | D17: 気温
A18: 16 | B18: 15 | C18: 66 | D18: 湿度
A19: 17 | B19: 15 | C19: 91 | D19: WBGT
A20: 18 | B20: 16 | C20: 15 | D20: 風情報
A21: 19 | B21: 16 | C21: 40 | D21: 観客数
A22: 20 | B22: 16 | C22: 66 | D22: ピッチ芝
A23: 21 | B23: 16 | C23: 91 | D23: ピッチ表面
A24: 22 | B24: 43 | C24: 34 | D24: H監督名
A25: 23 | B25: 17 | C25: 4 | D25: Hチーム名
A26: 24 | B26: 21 | C26: 4 | D26: Hキックオフ情報
A27: 25 | B27: 17 | C27: 31 | D27: H得点合計
A28: 26 | B28: 17 | C28: 42 | D28: H得点前半
A29: 27 | B29: 18 | C29: 42 | D29: H得点後半
A30: 28 | B30: 19 | C30: 42 | D30: H得点延前
A31: 29 | B31: 20 | C31: 42 | D31: H得点延後
A32: 30 | B32: 46 | C32: 46 | D32: H_シュート計
A33: 31 | B33: 46 | C33: 43 | D33: H_シュート前半
A34: 32 | B34: 46 | C34: 40 | D34: H_シュート後半
A35: 33 | B35: 46 | C35: 37 | D35: H_シュート延長前半
A36: 34 | B36: 46 | C36: 34 | D36: H_シュート延長後半
A37: 35 | B37: 47 | C37: 46 | D37: H_GK計
A38: 36 | B38: 47 | C38: 43 | D38: H_GK前半
A39: 37 | B39: 47 | C39: 40 | D39: H_GK後半
A40: 38 | B40: 47 | C40: 37 | D40: H_GK延長前半
A41: 39 | B41: 47 | C41: 34 | D41: H_GK延長後半
A42: 40 | B42: 48 | C42: 46 | D42: H_CK計
A43: 41 | B43: 48 | C43: 43 | D43: H_CK前半
A44: 42 | B44: 48 | C44: 40 | D44: H_CK後半
A45: 43 | B45: 48 | C45: 37 | D45: H_CK延長前半
A46: 44 | B46: 48 | C46: 34 | D46: H_CK延長後半
A47: 45 | B47: 49 | C47: 46 | D47: H_直接FK計
A48: 46 | B48: 49 | C48: 43 | D48: H_直接FK前半
A49: 47 | B49: 49 | C49: 40 | D49: H_直接FK後半
A50: 48 | B50: 49 | C50: 37 | D50: H_直接FK延長前半
A51: 49 | B51: 49 | C51: 34 | D51: H_直接FK延長後半
A52: 50 | B52: 50 | C52: 46 | D52: H_間接FK計
A53: 51 | B53: 50 | C53: 43 | D53: H_間接FK前半
A54: 52 | B54: 50 | C54: 40 | D54: H_間接FK後半
A55: 53 | B55: 50 | C55: 37 | D55: H_間接FK延長前半
A56: 54 | B56: 50 | C56: 34 | D56: H_間接FK延長後半
A57: 55 | B57: 51 | C57: 46 | D57: H_PK計
A58: 56 | B58: 51 | C58: 43 | D58: H_PK前半
A59: 57 | B59: 51 | C59: 40 | D59: H_PK後半
A60: 58 | B60: 51 | C60: 37 | D60: H_PK延長前半
A61: 59 | B61: 51 | C61: 34 | D61: H_PK延長後半
A62: 60 | B62: 43 | C62: 55 | D62: A監督名
A63: 61 | B63: 17 | C63: 79 | D63: Aチーム名
A64: 62 | B64: 21 | C64: 79 | D64: Aキックオフ情報
A65: 63 | B65: 17 | C65: 68 | D65: A得点合計
A66: 64 | B66: 17 | C66: 61 | D66: A得点前半
A67: 65 | B67: 18 | C67: 61 | D67: A得点後半
A68: 66 | B68: 19 | C68: 61 | D68: A得点延前
A69: 67 | B69: 20 | C69: 61 | D69: A得点延後
A70: 68 | B70: 46 | C70: 61 | D70: A_シュート計
A71: 69 | B71: 46 | C71: 64 | D71: A_シュート前半
A72: 70 | B72: 46 | C72: 67 | D72: A_シュート後半
A73: 71 | B73: 46 | C73: 70 | D73: A_シュート延長前半
A74: 72 | B74: 46 | C74: 73 | D74: A_シュート延長後半
A75: 73 | B75: 47 | C75: 61 | D75: A_GK計
A76: 74 | B76: 47 | C76: 64 | D76: A_GK前半
A77: 75 | B77: 47 | C77: 67 | D77: A_GK後半
A78: 76 | B78: 47 | C78: 70 | D78: A_GK延長前半
A79: 77 | B79: 47 | C79: 73 | D79: A_GK延長後半
A80: 78 | B80: 48 | C80: 61 | D80: A_CK計
A81: 79 | B81: 48 | C81: 64 | D81: A_CK前半
A82: 80 | B82: 48 | C82: 67 | D82: A_CK後半
A83: 81 | B83: 48 | C83: 70 | D83: A_CK延長前半
A84: 82 | B84: 48 | C84: 73 | D84: A_CK延長後半
A85: 83 | B85: 49 | C85: 61 | D85: A_直接FK計
A86: 84 | B86: 49 | C86: 64 | D86: A_直接FK前半
A87: 85 | B87: 49 | C87: 67 | D87: A_直接FK後半
A88: 86 | B88: 49 | C88: 70 | D88: A_直接FK延長前半
A89: 87 | B89: 49 | C89: 73 | D89: A_直接FK延長後半
A90: 88 | B90: 50 | C90: 61 | D90: A_間接FK計
A91: 89 | B91: 50 | C91: 64 | D91: A_間接FK前半
A92: 90 | B92: 50 | C92: 67 | D92: A_間接FK後半
A93: 91 | B93: 50 | C93: 70 | D93: A_間接FK延長前半
A94: 92 | B94: 50 | C94: 73 | D94: A_間接FK延長後半
A95: 93 | B95: 51 | C95: 61 | D95: A_PK計
A96: 94 | B96: 51 | C96: 64 | D96: A_PK前半
A97: 95 | B97: 51 | C97: 67 | D97: A_PK後半
A98: 96 | B98: 51 | C98: 70 | D98: A_PK延長前半
A99: 97 | B99: 51 | C99: 73 | D99: A_PK延長後半
A100: 98 | B100: 24 | C100: 31 | D100: H先_選手名0
A101: 99 | B101: 24 | C101: 49 | D101: H先_背番号0
A102: 100 | B102: 24 | C102: 52 | D102: H先_位置0
A103: 101 | B103: 24 | C103: 28 | D103: H先_得点0
A104: 102 | B104: 24 | C104: 25 | D104: H先_シュート計0
A105: 103 | B105: 24 | C105: 22 | D105: H先_シュート前半0
A106: 104 | B106: 24 | C106: 19 | D106: H先_シュート後半0
A107: 105 | B107: 24 | C107: 16 | D107: H先_シュート延長前半0
A108: 106 | B108: 24 | C108: 13 | D108: H先_シュート延長後半0
A109: 107 | B109: 24 | C109: 4 | D109: H先_交代背番号0
A110: 108 | B110: 24 | C110: 7 | D110: H先_交代時間0
A111: 109 | B111: 25 | C111: 31 | D111: H先_選手名1
A112: 110 | B112: 25 | C112: 49 | D112: H先_背番号1
A113: 111 | B113: 25 | C113: 52 | D113: H先_位置1
A114: 112 | B114: 25 | C114: 28 | D114: H先_得点1
A115: 113 | B115: 25 | C115: 25 | D115: H先_シュート計1
A116: 114 | B116: 25 | C116: 22 | D116: H先_シュート前半1
A117: 115 | B117: 25 | C117: 19 | D117: H先_シュート後半1
A118: 116 | B118: 25 | C118: 16 | D118: H先_シュート延長前半1
A119: 117 | B119: 25 | C119: 13 | D119: H先_シュート延長後半1
A120: 118 | B120: 25 | C120: 4 | D120: H先_交代背番号1
A121: 119 | B121: 25 | C121: 7 | D121: H先_交代時間1
A122: 120 | B122: 26 | C122: 31 | D122: H先_選手名2
A123: 121 | B123: 26 | C123: 49 | D123: H先_背番号2
A124: 122 | B124: 26 | C124: 52 | D124: H先_位置2
A125: 123 | B125: 26 | C125: 28 | D125: H先_得点2
A126: 124 | B126: 26 | C126: 25 | D126: H先_シュート計2
A127: 125 | B127: 26 | C127: 22 | D127: H先_シュート前半2
A128: 126 | B128: 26 | C128: 19 | D128: H先_シュート後半2
A129: 127 | B129: 26 | C129: 16 | D129: H先_シュート延長前半2
A130: 128 | B130: 26 | C130: 13 | D130: H先_シュート延長後半2
A131: 129 | B131: 26 | C131: 4 | D131: H先_交代背番号2
A132: 130 | B132: 26 | C132: 7 | D132: H先_交代時間2
A133: 131 | B133: 27 | C133: 31 | D133: H先_選手名3
A134: 132 | B134: 27 | C134: 49 | D134: H先_背番号3
A135: 133 | B135: 27 | C135: 52 | D135: H先_位置3
A136: 134 | B136: 27 | C136: 28 | D136: H先_得点3
A137: 135 | B137: 27 | C137: 25 | D137: H先_シュート計3
A138: 136 | B138: 27 | C138: 22 | D138: H先_シュート前半3
A139: 137 | B139: 27 | C139: 19 | D139: H先_シュート後半3
A140: 138 | B140: 27 | C140: 16 | D140: H先_シュート延長前半3
A141: 139 | B141: 27 | C141: 13 | D141: H先_シュート延長後半3
A142: 140 | B142: 27 | C142: 4 | D142: H先_交代背番号3
A143: 141 | B143: 27 | C143: 7 | D143: H先_交代時間3
A144: 142 | B144: 28 | C144: 31 | D144: H先_選手名4
A145: 143 | B145: 28 | C145: 49 | D145: H先_背番号4
A146: 144 | B146: 28 | C146: 52 | D146: H先_位置4
A147: 145 | B147: 28 | C147: 28 | D147: H先_得点4
A148: 146 | B148: 28 | C148: 25 | D148: H先_シュート計4
A149: 147 | B149: 28 | C149: 22 | D149: H先_シュート前半4
A150: 148 | B150: 28 | C150: 19 | D150: H先_シュート後半4
A151: 149 | B151: 28 | C151: 16 | D151: H先_シュート延長前半4
A152: 150 | B152: 28 | C152: 13 | D152: H先_シュート延長後半4
A153: 151 | B153: 28 | C153: 4 | D153: H先_交代背番号4
A154: 152 | B154: 28 | C154: 7 | D154: H先_交代時間4
A155: 153 | B155: 29 | C155: 31 | D155: H先_選手名5
A156: 154 | B156: 29 | C156: 49 | D156: H先_背番号5
A157: 155 | B157: 29 | C157: 52 | D157: H先_位置5
A158: 156 | B158: 29 | C158: 28 | D158: H先_得点5
A159: 157 | B159: 29 | C159: 25 | D159: H先_シュート計5
A160: 158 | B160: 29 | C160: 22 | D160: H先_シュート前半5
A161: 159 | B161: 29 | C161: 19 | D161: H先_シュート後半5
A162: 160 | B162: 29 | C162: 16 | D162: H先_シュート延長前半5
A163: 161 | B163: 29 | C163: 13 | D163: H先_シュート延長後半5
A164: 162 | B164: 29 | C164: 4 | D164: H先_交代背番号5
A165: 163 | B165: 29 | C165: 7 | D165: H先_交代時間5
A166: 164 | B166: 30 | C166: 31 | D166: H先_選手名6
A167: 165 | B167: 30 | C167: 49 | D167: H先_背番号6
A168: 166 | B168: 30 | C168: 52 | D168: H先_位置6
A169: 167 | B169: 30 | C169: 28 | D169: H先_得点6
A170: 168 | B170: 30 | C170: 25 | D170: H先_シュート計6
A171: 169 | B171: 30 | C171: 22 | D171: H先_シュート前半6
A172: 170 | B172: 30 | C172: 19 | D172: H先_シュート後半6
A173: 171 | B173: 30 | C173: 16 | D173: H先_シュート延長前半6
A174: 172 | B174: 30 | C174: 13 | D174: H先_シュート延長後半6
A175: 173 | B175: 30 | C175: 4 | D175: H先_交代背番号6
A176: 174 | B176: 30 | C176: 7 | D176: H先_交代時間6
A177: 175 | B177: 31 | C177: 31 | D177: H先_選手名7
A178: 176 | B178: 31 | C178: 49 | D178: H先_背番号7
A179: 177 | B179: 31 | C179: 52 | D179: H先_位置7
A180: 178 | B180: 31 | C180: 28 | D180: H先_得点7
A181: 179 | B181: 31 | C181: 25 | D181: H先_シュート計7
A182: 180 | B182: 31 | C182: 22 | D182: H先_シュート前半7
A183: 181 | B183: 31 | C183: 19 | D183: H先_シュート後半7
A184: 182 | B184: 31 | C184: 16 | D184: H先_シュート延長前半7
A185: 183 | B185: 31 | C185: 13 | D185: H先_シュート延長後半7
A186: 184 | B186: 31 | C186: 4 | D186: H先_交代背番号7
A187: 185 | B187: 31 | C187: 7 | D187: H先_交代時間7
A188: 186 | B188: 32 | C188: 31 | D188: H先_選手名8
A189: 187 | B189: 32 | C189: 49 | D189: H先_背番号8
A190: 188 | B190: 32 | C190: 52 | D190: H先_位置8
A191: 189 | B191: 32 | C191: 28 | D191: H先_得点8
A192: 190 | B192: 32 | C192: 25 | D192: H先_シュート計8
A193: 191 | B193: 32 | C193: 22 | D193: H先_シュート前半8
A194: 192 | B194: 32 | C194: 19 | D194: H先_シュート後半8
A195: 193 | B195: 32 | C195: 16 | D195: H先_シュート延長前半8
A196: 194 | B196: 32 | C196: 13 | D196: H先_シュート延長後半8
A197: 195 | B197: 32 | C197: 4 | D197: H先_交代背番号8
A198: 196 | B198: 32 | C198: 7 | D198: H先_交代時間8
A199: 197 | B199: 33 | C199: 31 | D199: H先_選手名9
A200: 198 | B200: 33 | C200: 49 | D200: H先_背番号9
... 624 more rows

Sheet 項目選択
A1: 項目名 | B1: 表示順
A2: シリーズ | B2: 0
A3: サブシリーズ | B3: 1
A4: シーズン | B4: 2
A5: 日時 | B5: 3
A6: 試合形式 | B6: 4
A7: 会場 | B7: 5
A8: マッチコミッショナー | B8: 6
A9: 審判アセッサー | B9: 7
A10: 主審 | B10: 8
A11: 副審1 | B11: 9
A12: 副審2 | B12: 10
A13: 第4の審判員 | B13: 11
A14: 運営責任者 | B14: 12
A15: 記録担当 | B15: 13
A16: 天気 | B16: 14
A17: 気温 | B17: 15
A18: 湿度 | B18: 16
A19: WBGT | B19: 17
A20: 風情報 | B20: 18
A21: 観客数 | B21: 19
A22: ピッチ芝 | B22: 20
A23: ピッチ表面 | B23: 21
A24: 備考 | B24: 22
